Workbook

Sheet Interfaccia
A8: consumo | B8: =INPUT!$J$295 -> 1218.106615 | D8: Gas | E8: 1 | F8: 48.98 | G8: =IF($B$8<E8,F8,"") -> 
A9: costo unitario | B9: =+G15/B8 -> 0.7977029525 | E9: 120 | F9: 100.85 | G9: =IF(AND(($B$8>E8),($B$8<=E9)),F9+(F8-F9)/(E8-E9)*($B$8-E9),"") -> 
E10: 480 | F10: 390.77 | G10: =IF(AND(($B$8>E9),($B$8<=E10)),F10+(F9-F10)/(E9-E10)*($B$8-E10),"") -> 
E11: 1560 | F11: 1240.77 | G11: =IF(AND(($B$8>E10),($B$8<=E11)),F11+(F10-F11)/(E10-E11)*($B$8-E11),"") -> 971.6872429
E12: 5000 | F12: 3885.48 | G12: =IF(AND(($B$8>E11),($B$8<=E12)),F12+(F11-F12)/(E11-E12)*($B$8-E12),"") -> 
E13: 80000 | F13: 57750.71 | G13: =IF(AND(($B$8>E12),($B$8<=E13)),F13+(F12-F13)/(E12-E13)*($B$8-E13),"") -> 
E14: 80001 | F14: 57751.4 | G14: =IF(AND(($B$8>E13),($B$8<=E14)),F14,"") -> 
G15: =SUM(G8:G14) -> 971.6872429
F19: RES | I19: NONRES | L19: potenza
A20: consumo | B20: =INPUT!$J$255 -> 653.8162562 | D20: Elettricità | E20: 10 | F20: 74.24 | G20: =IF($B$20<E20,F20,"") ->  | I20: 209.7 | J20: =IF($B$20<E20,I20,"") ->  | L20: 3
A21: tipo | B21: =INPUT!I239 -> Residente | E21: 1800 | F21: 309.66 | G21: =IF(AND(($B$20>E20),($B$20<=E21)),F21+(F20-F21)/(E20-E21)*($B$20-E21),"") -> 158.9144263 | I21: 489.82 | J21: =IF(AND(($B$20>E20),($B$20<=E21)),I21+(I20-I21)/(E20-E21)*($B$20-E21),"") -> 310.451849 | L21: 3
A22: costo unitario | B22: =IF(B21="Residente",G27/B20,J27/B20) -> 0.2430567071 | E22: 2640 | F22: 467.11 | G22: =IF(AND(($B$20>E21),($B$20<=E22)),F22+(F21-F22)/(E21-E22)*($B$20-E22),"") ->  | I22: 647.27 | L22: 3
E23: 4500 | F23: 832.31 | G23: =IF(AND(($B$20>E22),($B$20<=E23)),F23+(F22-F23)/(E22-E23)*($B$20-E23),"") ->  | I23: 967.52 | L23: 3
E24: 6750 | F24: 1254.84 | G24: =IF(AND(($B$20>E23),($B$20<=E24)),F24+(F23-F24)/(E23-E24)*($B$20-E24),"") ->  | I24: 1390.06 | L24: 4.5
E25: 9000 | F25: 1677.38 | G25: =IF(AND(($B$20>E24),($B$20<=E25)),F25+(F24-F25)/(E24-E25)*($B$20-E25),"") ->  | I25: 1812.59 | L25: 6
E26: 15000 | F26: 2804.14 | G26: =IF(AND(($B$20>E25),($B$20<=E26)),F26,"") ->  | I26: 2939.35 | L26: 10
G27: =SUM(G20:G26) -> 158.9144263 | J27: =SUM(J20:J26) -> 310.451849
A37: benchmark
A39: elettricità | E39: Intercetta | F39: 748.6783353 | H39: consumo | I39: =F39+C40*F40+C41*F41 -> 1713.918433
B40: S | C40: =+INPUT!J84 -> 79.2 | E40: Variabile X 1 | F40: 3.305516059
B41: persone | C41: =+MAX(INPUT!J31:M31) -> 2 | E41: Variabile X 2 | F41: 351.7216127
A44: GAS | E44: Intercetta | F44: -488.1918085 | H44: consumo | I44: =F44+C45*F45+C46*F46+C47*F47 -> 764.3447838
B45: S | C45: =+INPUT!J84 -> 79.2 | E45: Variabile X 1 | F45: 5.315144467
B46: persone | C46: =+MAX(INPUT!J31:M31) -> 2 | E46: Variabile X 2 | F46: 46.83927594
B47: GG | C47: =+INPUT!J22 -> 1415 | E47: Variabile X 3 | F47: 0.5214831086
B49: gas | C49: ele
A50: elettrificazione | B50: =1-C50 -> 0.642 | C50: 0.358

Sheet INPUT
B1: ENEA SMART-SIM PROCEDURA SEMPLIFICATA PER LA VALUTAZIONE DEL POTENZIALE DI AGGREGABILITÀ DI UTENZE RESIDENZIALI | CV1: 1
T2: Powered by ArchiEnergy
D3: Compili il questionario per conoscere la prestazione energetica della sua abitazione ed i possibili risparmi conseguibili grazie all'automazione domotica. Le caselle da compilare sono quelle gialle. Per maggiori informazioni sui dati da inserire clicchi sul triangolino rosso che compare in altro a destra sulle celle. | T3: www.IngEnergia.it | BE3: RIFERIMENTI VBA DEL FOGLIO, NON SPOSTARE!! | BO3: CHECK ERRORI
D4: ATTENZIONE!!! Se in alto compare una di queste barre: significa che le macro sono disattivate. Cliccare su "Abilita contenuto" oppure su "Opzioni.." e "Attiva Macro", altrimenti il foglio non funzionerà. | BS4: PARAGRAFO
BH5: Cella di riferimento VBA del foglio | BK5: Deb / Rel | BL5: Debug | BO5: ERRORI DI INPUT IN QUESTO FOGLIO | BS5: =IF(E11<>"",C10&" "&E10,IF(E17<>"",C16&" "&E16,IF(E27<>"",C26&" "&E26,IF(E36<>"",C35&" "&E35,IF(E47<>"",C46&" "&E46,IF(E91<>"",C90&" "&E90,IF(E102<>"",C101&" "&E101,IF(E110<>"",C109&" "&E109,IF(E120<>"",C119&" "&E119,IF(E124<>"",C123&" "&E123,IF(E131<>"",C130&" "&E130,IF(E140<>"",C139&" "&E139,IF(E154<>"",C153&" "&E153,IF(E162<>"",C161&" "&E161,IF(E177<>"",C176&" "&E176,IF(AQ168<>"",C187&" "&E187,IF(E204<>"",C203&" "&E203,IF(E217<>"",C216&" "&E216,IF(E224<>"",C223&" "&E223,IF(E238<>"",C237&" "&E237,IF(AR200<>"",C279&" "&E279,""))))))))))))))))))))) -> 
D6: Controllo errori | G6: =IF(BS5<>"","ATTENZIONE! SONO PRESENTI ERRORI AL PARAGRAFO: "&BS5,IF(LEFT(BS7,5)="1.2.5","ATTENZIONE! E' NECESSARIO UN RICALCOLO, PREMI IL BOTTONE RICALCOLA",IF(OR(BS6<>"",BS7<>"",BS8<>"",BS11<>""),"ATTENZIONE! SONO PRESENTI ERRORI DI CALCOLO! PROVA A RICALCOLARE (BOTTONE RICALCOLA) OPPURE TORNA INDIETRO (CTRL+Z) FINO AD UNA SITUAZIONE FUNZIONANTE, OPPURE CHIUDI E RIAPRI. SE ANCORA NON FUNZIONA RINSERISCI DA CAPO I DATI","OK! NESSUN ERRORE RILEVATO!"))) -> OK! NESSUN ERRORE RILEVATO! | BI6: Riga | BJ6: Colonna | BO6: ERRORI DI INPUT FOGLIO START | BS6: =START!BI22 -> 
T7: Versione 3.0 del 31/12/2019 | BH7: Occupanti | BI7: =ROW($J$31) -> 31 | BJ7: =COLUMN($J$31) -> 10 | BO7: ERRORI DI INPUT FOGLIO SOLUZIONE01 | BS7: =SOLUZIONE01!BY5 -> 
B8: 1. | D8: DATI GENERALI | BH8: Posizione nord | BI8: =ROW($L$50) -> 50 | BJ8: =COLUMN($L$50) -> 12 | BO8: ERRORI DI INPUT FOGLIO TECNOLOGIE | BS8: =TECNOLOGIE!BW5 -> 
BH9: Interventi involucro | BI9: =ROW($J$94) -> 94 | BJ9: =COLUMN($J$94) -> 10 | BO9: ERRORI DI INPUT FOGLIO INCENTIVI
C10: 1.1 | E10: ANAGRAFICA UTENTE | BH10: Impianto riscaldamento | BI10: =ROW($J$103) -> 103 | BJ10: =COLUMN($J$103) -> 10 | BO10: ERRORI DI INPUT FOGLIO PARAMETRI
E11: =IF(OR(P12<>"",P13<>""),"! ! !","") ->  | F11: =IF(E11="","","ATTENZIONE: C'E UN ERRORE IN QUESTO PARAGRAFO") ->  | BH11: Imp. di condizionamento | BI11: =ROW($J$111) -> 111 | BJ11: =COLUMN($J$111) -> 10 | BO11: ERRORI DI CALCOLO GENERALI | BS11: =SOLUZIONE01!BY11 -> 
E12: Nome | J12: Livio de Santoli, Francesco Mancini, Marco Cecconi | P12: =IF(J12<>"","","! ! !") ->  | Q12: =IF(P12="","","ATTENZIONE: CAMPO MANCANTE, INSERISCI UN VALORE") ->  | BH12: Apparecchi cdz | BI12: =ROW($J$116) -> 116 | BJ12: =COLUMN($J$116) -> 10
E13: Cognome | J13: CITERA | P13: =IF(J13<>"","","! ! !") ->  | Q13: =IF(P13="","","ATTENZIONE: CAMPO MANCANTE, INSERISCI UN VALORE") ->  | BH13: Fotovoltaico | BI13: =ROW($J$132) -> 132 | BJ13: =COLUMN($J$132) -> 10
E14: Identificativo scheda | J14: =LEFT(J12,1)&LEFT(J13,1)&LEN(J12)&LEN(J13)&LEN(J20) -> LC50615 | M14: Data | P14: =TODAY() -> 2020-01-28 | BH14: Cucina | BI14: =ROW($L$142) -> 142 | BJ14: =COLUMN($L$142) -> 12
BH15: Frigo | BI15: =ROW($J$156) -> 156 | BJ15: =COLUMN($J$156) -> 10
C16: 1.2 | E16: UBICAZIONE EDIFICIO | BH16: Lavaggio | BI16: =ROW($J$164) -> 164 | BJ16: =COLUMN($J$164) -> 10
E17: =IF(OR(N19<>"",N24<>"",P20<>""),"! ! !","") ->  | F17: =IF(E17="","","ATTENZIONE: C'E UN ERRORE IN QUESTO PARAGRAFO") ->  | BH17: Illuminazione | BI17: =ROW($J$182) -> 182 | BJ17: =COLUMN($J$182) -> 10
E18: Provincia | J18: RM | BH18: Audio-video | BI18: =ROW($AR$170) -> 170 | BJ18: =COLUMN($AR$170) -> 44
E19: Comune | J19: Roma | N19: =IF(IFERROR(VLOOKUP(J19,CQ475:CQ834,1,FALSE),"!")<>"!","","! ! !") ->  | O19: =IF(N19="","","ERRORE: IL COMUNE SCELTO NON FA PARTE DELLA PROVINCIA INDICATA, SCEGLI UN ALTRO COMUNE") ->  | BH19: Computer | BI19: =ROW($J$206) -> 206 | BJ19: =COLUMN($J$206) -> 10
E20: Indirizzo | J20: Via Gramsci, 53 | P20: =IF(J20<>"","","! ! !") ->  | Q20: =IF(P20="","","ATTENZIONE: CAMPO MANCANTE, INSERISCI UN VALORE") ->  | BH20: Altri apparecchi | BI20: =ROW($E$226) -> 226 | BJ20: =COLUMN($E$226) -> 5
E21: CAP | J21: 00186 | L21: =IF(AND(J21<>"",ISTEXT(J21)),"","! ! !") ->  | M21: =IF(L21="","","ATTENZIONE: CAMPO MANCANTE, INSERISCI UN VALORE") -> 
E22: Gradi-giorno | J22: =VLOOKUP($J$19,Luoghi!$E$14:$H$8031,Luoghi!$G$8032,FALSE) -> 1415
E23: Zona climatica | J23: =VLOOKUP($J$19,Luoghi!$E$14:$H$8031,Luoghi!$H$8032,FALSE) -> D | BC23: SI/NO | BE23: OMBREGGIAMENTO | BH23: TIPI DI PIANTA | BK23: GIORNI AL MESE E FESTIVITA'
E24: Ombreggiamento dal sole | J24: Alcune ore | N24: =IF(J24<>"","","! ! !") ->  | O24: =IF(N24="","","ATTENZIONE: CAMPO MANCANTE, INSERISCI UN VALORE") ->  | BC24: SI | BE24: Esp. | BF24: Presenza schermo | BH24: Pianta rettangolare o quadrata | BI24: Pianta1 | BL24: GEN | BM24: FEB | BN24: MAR | BO24: APR | BP24: MAG | BQ24: GIU | BR24: LUG | BS24: AGO | BT24: SET | BU24: OTT | BV24: NOV | BW24: DIC | BX24: TOT
BC25: NO | BE25: Mai | BF25: 0.05 | BH25: Pianta ad angolo | BI25: Pianta2 | BK25: Giorni al mese | BL25: 31 | BM25: 28 | BN25: 31 | BO25: 30 | BP25: 31 | BQ25: 30 | BR25: 31 | BS25: 31 | BT25: 30 | BU25: 31 | BV25: 30 | BW25: 31 | BX25: =SUM(BL25:BW25) -> 365
C26: 1.3 | E26: UTILIZZO DELLA CASA | BE26: Alcune ore | BF26: 0.12 | BH26: Pianta a doppio angolo | BI26: Pianta3 | BK26: Giorni di festività nazionale | BL26: 2 | BM26: 0 | BN26: 1 | BO26: 1 | BP26: 1 | BQ26: 1 | BR26: 0 | BS26: 1 | BT26: 0 | BU26: 0 | BV26: 1 | BW26: 3 | BX26: =SUM(BL26:BW26) -> 11
E27: =IF(OR(O31<>""),"! ! !","") ->  | F27: =IF(E27="","","ATTENZIONE: C'E UN ERRORE IN QUESTO PARAGRAFO") ->  | BE27: Diverse ore | BF27: 0.25
E28: Inserisci il numero di occupanti che si trovano in casa nei giorni in cui è abitata: | BE28: Metà giornata | BF28: 0.4 | BK28: INPUT ELIMINATO
J29: Mattina | K29: Pomeriggio | L29: Sera | M29: Notte | BE29: Gran parte della giornata | BF29: 0.6 | BK29: Periodi dell'anno in cui la casa è abitata | BP29: Sempre tranne 1 weekend al mese
J30: (8-13) | K30: (13-19) | L30: (19-0) | M30: (0-8) | BE30: Quasi sempre | BF30: 0.8
E31: Numero di occupanti | J31: 1 | K31: 2 | L31: 2 | M31: 2 | N31: persone | O31: =IF(AND(OR(J31="",ISNUMBER(J31)),OR(K31="",ISNUMBER(K31)),OR(L31="",ISNUMBER(L31)),OR(M31="",ISNUMBER(M31))),"","! ! !") ->  | P31: =IF(O31="","","ATTENZIONE: CAMPO MANCANTE, INSERISCI UN VALORE") -> 
B33: 2. | D33: CARATTERISTICHE ARCHITETTONICHE | BC33: OCCUPAZIONE ANNUALE | CE33: PERSONE E ORARI DI ATTIVITA' | CQ33: CORRISPONDENZA SCHEDULING | DB33: OCCUPAZIONE - TRASF. A.E.
BC34: Descr. | BD34: Giorni al mese di non funzionamento struttura | BQ34: Numero interruzioni lunghe | CF34: Matt | CG34: Pom | CH34: Sera | CI34: Notte | CJ34: Max | CK34: Min | CL34: Med | CM34: Primo periodo | CQ34: INVERNALE | CR34: Alba | CS34: =AVERAGE(Sole!F603:H603,Sole!O603:Q603)*24 -> 6.833333333 | CT34: Tram. | CU34: =AVERAGE(Sole!F604:H604,Sole!O604:Q604)*24 -> 17.66666667 | CV34: ESTIVO | CW34: Alba | CX34: =AVERAGE(Sole!I603:N603)*24 -> 6 | CY34: Tram. | CZ34: =AVERAGE(Sole!I604:N604)*24 -> 20.16666667 | DB34: Affolam. ore attive | DF34: =(CF40*CF35+CG40*CG35+CH40*CH35+CI40*CI35)/$CF$43/$J$84 -> 0.01999158249 | DG34: persone/m2
C35: 2.1 | E35: DATI GENERALI | BD35: GEN | BE35: FEB | BF35: MAR | BG35: APR | BH35: MAG | BI35: GIU | BJ35: LUG | BK35: AGO | BL35: SET | BM35: OTT | BN35: NOV | BO35: DIC | BP35: TOT | BQ35: GEN | BR35: FEB | BS35: MAR | BT35: APR | BU35: MAG | BV35: GIU | BW35: LUG | BX35: AGO | BY35: SET | BZ35: OTT | CA35: NOV | CB35: DIC | CC35: TOT | CE35: Media pond occupaz | CF35: =J31 -> 1 | CG35: =K31 -> 2 | CH35: =L31 -> 2 | CI35: =M31 -> 2 | CJ35: =MAX($CF$35:$CI$35) -> 2 | CK35: =MIN($CF$35:$CI$35) -> 1 | CL35: =(CF35*CF39+CG35*CG39+CH35*CH39+CI35*CI39)/24 -> 1.791666667 | CM35: =IF(CF35=CG35,IF(CF35=CH35,CG34,IF(CF35=CJ35,CF34,CH34)),IF(CF35=CH35,IF(CF35=$CJ$35,CF34,CG34),IF(CF35=$CJ$35,CF34,IF(CF35=CK35,IF(CG35=CJ35,CG34,CH34),IF(CG35>CH35,CG34,CH34))))) -> Pom | CQ35: ore di sole | CR35: nelle ore attive | CT35: nelle ore non attive | CV35: ore di sole | CW35: nelle ore attive | CY35: nelle ore non attive | DB35: Affollam. ore non attive | DF35: =(CF41*CF35+CG41*CG35+CH41*CH35+CI41*CI35)/(24-$CF$43)/$J$84*(365-$BP$49)/365 -> 0.02359208524 | DG35: persone/m2
E36: =IF(OR(L37<>"",L38<>"",L40<>"",L41<>"",L42<>"",L43<>"",L44<>""),"! ! !","") ->  | F36: =IF(E36="","","ATTENZIONE: C'E UN ERRORE IN QUESTO PARAGRAFO") ->  | BC36: Sempre | BD36: 0 | BE36: 0 | BF36: 0 | BG36: 0 | BH36: 0 | BI36: 0 | BJ36: 0 | BK36: 0 | BL36: 0 | BM36: 0 | BN36: 0 | BO36: 0 | BP36: =SUM(BD36:BO36) -> 0 | BQ36: 0 | BR36: 0 | BS36: 0 | BT36: 0 | BU36: 0 | BV36: 0 | BW36: 0 | BX36: 0 | BY36: 0 | BZ36: 0 | CA36: 0 | CB36: 0 | CC36: =SUM(BQ36:CB36) -> 0 | CE36: Progressione | CF36: =IF(CF35>0,1,CI36+1) -> 1 | CG36: =IF(CF35>0,2,IF(CG35>0,1,CF36+1)) -> 2 | CH36: =IF(CF35>0,3,IF(CG35>0,2,1)) -> 3 | CI36: =CH36+1 -> 4 | CJ36: 1 | CR36: di giorno | CS36: di notte | CT36: di giorno | CU36: di notte | CW36: di giorno | CX36: di notte | CY36: di giorno | CZ36: di notte
E37: Periodo di costruzione | J37: 1946-61 | L37: =IF(J37<>"","","! ! !") ->  | M37: =IF(L37="","","ATTENZIONE: CAMPO MANCANTE, INSERISCI UN VALORE") ->  | BC37: Sempre tranne le ferie | BD37: 2 | BE37: 0 | BF37: 0 | BG37: 0 | BH37: 0 | BI37: 0 | BJ37: 0 | BK37: 15 | BL37: 0 | BM37: 0 | BN37: 0 | BO37: 7 | BP37: 24 | BQ37: 1 | BR37: 0 | BS37: 0 | BT37: 0 | BU37: 0 | BV37: 0 | BW37: 0 | BX37: 1 | BY37: 0 | BZ37: 0 | CA37: 0 | CB37: 1 | CC37: 3 | CE37: Ora inizio periodo | CF37: 8 | CG37: 13 | CH37: 19 | CI37: 0 | CJ37: 2 | CO37: Ore | CQ37: =CU34-CS34 -> 10.83333333 | CR37: =MAX(0,IF($CU34>(SOLUZIONE01!$H$205+$CF$43),SOLUZIONE01!$H$206,$CU34)-IF($CS34<SOLUZIONE01!$H$205,SOLUZIONE01!$H$205,$CS34)) -> 9.666666667 | CS37: =$CF$43-CR37 -> 2.333333333 | CT37: =CQ37-CR37 -> 1.166666667 | CU37: =24-CT37-CS37-CR37 -> 10.83333333 | CV37: =CZ34-CX34 -> 14.16666667 | CW37: =MAX(0,IF($CZ34>(SOLUZIONE01!$H$205+$CF$43),SOLUZIONE01!$H$206,$CZ34)-IF($CX34<SOLUZIONE01!$H$205,SOLUZIONE01!$H$205,$CX34)) -> 12 | CX37: =$CF$43-CW37 -> 0 | CY37: =CV37-CW37 -> 2.166666667 | CZ37: =24-CY37-CX37-CW37 -> 9.833333333 | DF37: COMPOSIZ. OCCUPANTI | DI37: POTENZA SENSIBILE | DL37: POTENZA LATENTE | DO37: QUOTA
E38: Numero di piani dell'abitazione (non dell'intero edificio) | J38: 1 | L38: =IF(AND(J38<>"",ISNUMBER(J38)),"","! ! !") ->  | BC38: Sempre tranne 1 weekend al mese | BD38: 2 | BE38: 2 | BF38: 2 | BG38: 2 | BH38: 2 | BI38: 2 | BJ38: 2 | BK38: 2 | BL38: 2 | BM38: 2 | BN38: 2 | BO38: 2 | BP38: 24 | BQ38: 1 | BR38: 1 | BS38: 1 | BT38: 1 | BU38: 1 | BV38: 1 | BW38: 1 | BX38: 1 | BY38: 1 | BZ38: 1 | CA38: 1 | CB38: 1 | CC38: 12 | CE38: Ora fine periodo | CF38: 13 | CG38: 19 | CH38: 0 | CI38: 8 | CJ38: 3 | CO38: Ore mattina | CQ38: =$CF$39-MAX(AVERAGE(Sole!$F$603:$H$603,Sole!$O$603:$Q$603)*24-8,0) -> 5 | CR38: =$CF$40-CS38 -> 5 | CS38: =MIN(($CF$39-$CQ38),$CF$40) -> 0 | CT38: =MIN($CF$41,$CQ38-CR38) -> 0 | CU38: =$CF$41-CT38 -> 0 | CV38: =$CF$39-MAX(AVERAGE(Sole!$I$603:$N$603)*24-8,0) -> 5 | CW38: =$CF$40-CX38 -> 5 | CX38: =MIN(($CF$39-$CV38),$CF$40) -> 0 | CY38: =MIN($CF$41,$CV38-CW38) -> 0 | CZ38: =$CF$41-CY38 -> 0 | DF38: Percent | DG38: Ore attive | DH38: Ore nn att. | DI38: Potenza | DJ38: Ore attive | DK38: Ore nn att. | DL38: Potenza | DM38: Ore attive | DN38: Ore nn att. | DO38: CARICO
E39: Numero di piani dell'intero edificio | J39: 1 | L39: =IF(AND(J39<>"",ISNUMBER(J39)),"","! ! !") ->  | M39: =IF(L39="","","ATTENZIONE: CAMPO MANCANTE, INSERISCI UN VALORE") ->  | BC39: Sempre tranne 1 weekend al mese e le feste nazionali | BD39: =BD38+BL26 -> 4 | BE39: 2 | BF39: 3 | BG39: 3 | BH39: 3 | BI39: 3 | BJ39: 2 | BK39: 3 | BL39: 2 | BM39: 2 | BN39: 3 | BO39: 5 | BP39: 35 | BQ39: 2 | BR39: 1 | BS39: 2 | BT39: 2 | BU39: 2 | BV39: 2 | BW39: 1 | BX39: 2 | BY39: 1 | BZ39: 1 | CA39: 2 | CB39: 2 | CC39: 20 | CE39: Durata periodo | CF39: =CF38-CF37 -> 5 | CG39: =CG38-CG37 -> 6 | CH39: 5 | CI39: =CI38-CI37 -> 8 | CJ39: 4 | CO39: Ore pom | CQ39: =$CG$39-MAX(19-AVERAGE(Sole!$F$604:$H$604,Sole!$O$604:$Q$604)*24,0) -> 4.666666667 | CR39: =MIN($CQ39,$CG$40) -> 4.666666667 | CS39: =$CG$40-CR39 -> 1.333333333 | CT39: =MIN($CG$41,$CQ39-CR39) -> 0 | CU39: =$CG$41-CT39 -> 0 | CV39: =$CG$39-MAX(19-AVERAGE(Sole!$I$604:$N$604)*24,0) -> 6 | CW39: =MIN($CV39,$CG$40) -> 6 | CX39: =$CG$40-CW39 -> 0 | CY39: =MIN($CG$41,$CV39-CW39) -> 0 | CZ39: =$CG$41-CY39 -> 0 | DB39: TIPO DI OCCUPANTI | DF39: sul totale | DG39: [n° pers.] | DH39: [n° pers.] | DI39: [W/pers.] | DJ39: [kW] | DK39: [kW] | DL39: [W/pers.] | DM39: [kW] | DN39: [kW] | DO39: TERM.
E40: Altezza media (in metri) di ogni piano | J40: 2.66 | L40: =IF(AND(J40<>"",ISNUMBER(J40)),"","! ! !") ->  | BC40: Sempre tranne 2 weekend al mese | BD40: 4 | BE40: 4 | BF40: 4 | BG40: 4 | BH40: 4 | BI40: 4 | BJ40: 4 | BK40: 4 | BL40: 4 | BM40: 4 | BN40: 4 | BO40: 4 | BP40: 48 | BQ40: 2 | BR40: 2 | BS40: 2 | BT40: 2 | BU40: 2 | BV40: 2 | BW40: 2 | BX40: 2 | BY40: 2 | BZ40: 2 | CA40: 2 | CB40: 2 | CC40: 24 | CE40: N. ore attive | CF40: =IF(CF36=1,MIN(CF39,$CF$43),IF(CF36=3,MIN(CF39,MAX(0,$CF$43-CI40-CH40)),MIN(CF39,MAX(0,$CF$43-CI40-CH40-CG40)))) -> 5 | CG40: =IF(CG36=1,MIN(CG39,$CF$43),IF(CG36=2,MIN(CG39,MAX(0,$CF$43-CF40)),MIN(CG39,MAX(0,$CF$43-CF40-CI40-CH40)))) -> 6 | CH40: =IF(CH36=1,MIN(CH39,$CF$43),IF(CH36=2,MIN(CH39,MAX(0,$CF$43-CG40)),IF(CH36=3,MIN(CH39,MAX(0,$CF$43-CG40-CF40)),MIN(CH39,MAX(0,$CF$43-CG40-CF40-CI40))))) -> 1 | CI40: =IF(CI36=2,MIN(CI39,MAX(0,$CF$43-CH40)),IF(CI36=3,MIN(CI39,MAX(0,$CF$43-CH40-CG40)),MIN(CI39,MAX(0,$CF$43-CH40-CG40-CF40)))) -> 0 | CJ40: 5 | CO40: Ore sera | CQ40: =CQ37-CQ38-CQ39-CQ41 -> 0 | CR40: =MIN($CQ40,$CH$40) -> 0 | CS40: =$CH$40-CR40 -> 1 | CT40: =MIN($CH$41,$CQ40-CR40) -> 0 | CU40: =$CH$41-CT40 -> 4 | CV40: =CV37-CV38-CV39-CV41 -> 1.166666667 | CW40: =MIN($CV40,$CH$40) -> 1 | CX40: =$CH$40-CW40 -> 0 | CY40: =MIN($CH$41,$CV40-CW40) -> 0.1666666667 | CZ40: =$CH$41-CY40 -> 3.833333333 | DB40: Abitanti | DF40: 1 | DI40: 65 | DL40: 35 | DO40: 0.8
E41: Numero di stanze (compresi disimpegni e corridoi) | J41: 7 | L41: =IF(AND(J41<>"",ISNUMBER(J41)),"","! ! !") ->  | BC41: Sempre tranne 1 weekend al mese, feste nazionali e ferie | BD41: =BD40+BD37 -> 6 | BE41: 4 | BF41: 4 | BG41: 4 | BH41: 4 | BI41: 4 | BJ41: 4 | BK41: 19 | BL41: 4 | BM41: 4 | BN41: 4 | BO41: 11 | BP41: 72 | BQ41: 2 | BR41: 1 | BS41: 1 | BT41: 1 | BU41: 1 | BV41: 1 | BW41: 1 | BX41: 2 | BY41: 1 | BZ41: 1 | CA41: 1 | CB41: 2 | CC41: 15 | CE41: N. ore non attive | CF41: =CF39-CF40 -> 0 | CG41: =CG39-CG40 -> 0 | CH41: =CH39-CH40 -> 4 | CI41: =CI39-CI40 -> 8 | CJ41: 6 | CO41: Ore notte | CQ41: =MAX(8-AVERAGE(Sole!$F$603:$H$603,Sole!$O$603:$Q$603)*24,0) -> 1.166666667 | CR41: =$CI$40-CS41 -> 0 | CS41: =MIN(($CI$39-$CQ41),$CI$40) -> 0 | CT41: =MIN($CI$41,$CQ41-CR41) -> 1.166666667 | CU41: =$CI$41-CT41 -> 6.833333333 | CV41: =MAX(8-AVERAGE(Sole!$I$603:$N$603)*24,0) -> 2 | CW41: =$CI$40-CX41 -> 0 | CX41: =MIN(($CI$39-$CV41),$CI$40) -> 0 | CY41: =MIN($CI$41,$CV41-CW41) -> 2 | CZ41: =$CI$41-CY41 -> 6
E42: Numero di finestre | J42: 8 | L42: =IF(AND(J42<>"",ISNUMBER(J42)),"","! ! !") ->  | BC42: Sempre tranne 2 weekend al mese, feste nazionali e ferie | BD42: 8 | BE42: 6 | BF42: 6 | BG42: 6 | BH42: 6 | BI42: 6 | BJ42: 6 | BK42: 21 | BL42: 6 | BM42: 6 | BN42: 6 | BO42: 13 | BP42: 96 | BQ42: 3 | BR42: 3 | BS42: 3 | BT42: 3 | BU42: 3 | BV42: 3 | BW42: 3 | BX42: 3 | BY42: 3 | BZ42: 3 | CA42: 3 | CB42: 3 | CC42: 36 | CO42: Numero di persone | CR42: =IFERROR(($CF$35*CR$38+$CG$35*CR$39+$CH$35*CR$40+$CI$35*CR$41)/CR$37,0) -> 1.482758621 | CS42: 2 | CT42: 2 | CU42: 2 | CW42: 1.583333333 | CX42: 0 | CY42: 2 | CZ42: 2 | DF42: CARICO TERMICO SENSIBILE [kW] | DT42: CARICO TERMICO LATENTE [kW]
E43: Colore dei muri esterni | J43: Molto chiaro (bianco) | L43: =IF(J43<>"","","! ! !") ->  | BC43: Sempre tranne tutti i weekend, feste nazionali e ferie | BD43: =BD42+BD40-2 -> 10 | BE43: =BE42+BE40-1 -> 9 | BF43: 9 | BG43: 9 | BH43: 9 | BI43: 9 | BJ43: 9 | BK43: =BK42+BK40-2 -> 23 | BL43: =BL42+BL40-1 -> 9 | BM43: =BM42+BM40-1 -> 9 | BN43: =BN42+BN40-1 -> 9 | BO43: =BO42+BO40-2 -> 15 | BP43: 129 | BQ43: 4 | BR43: 4 | BS43: 4 | BT43: 4 | BU43: 4 | BV43: 4 | BW43: 4 | BX43: 4 | BY43: 4 | BZ43: 4 | CA43: 4 | CB43: 4 | CC43: 48 | CE43: Totale ore attive | CF43: =BH104 -> 12 | CO43: Perc. del massimo | CR43: =CR42/$CJ$35 -> 0.7413793103 | CS43: =CS42/$CJ$35 -> 1 | CT43: =CT42/$CJ$35 -> 1 | CU43: =CU42/$CJ$35 -> 1 | CW43: =CW42/$CJ$35 -> 0.7916666667 | CX43: =CX42/$CJ$35 -> 0 | CY43: =CY42/$CJ$35 -> 1 | CZ43: =CZ42/$CJ$35 -> 1 | DF43: INVERNALE | DJ43: ESTIVO | DT43: INVERNALE | DX43: ESTIVO
E44: Colore della copertura | J44: Medio | L44: =IF(J44<>"","","! ! !") ->  | BC44: Solo weekend, feste nazionali e ferie | BD44: =BL25-BD43 -> 21 | BE44: 19 | BF44: 22 | BG44: 21 | BH44: 22 | BI44: 21 | BJ44: 22 | BK44: 8 | BL44: 21 | BM44: 22 | BN44: 21 | BO44: 16 | BP44: 236 | BQ44: 4 | BR44: 4 | BS44: 4 | BT44: 4 | BU44: 4 | BV44: 4 | BW44: 4 | BX44: 4 | BY44: 4 | BZ44: 4 | CA44: 4 | CB44: 4 | CC44: 48 | CE44: Ora inizio | CF44: =IF($CF$36=1,$CF$37,IF($CM$35=$CG$34,$CG$37,CH37-CG40)) -> 8 | CO44: Percentuale di stanze occupate | CR44: =CR42/$J$41 -> 0.2118226601 | CS44: =CS42/$J$41 -> 0.2857142857 | CT44: =CT42/$J$41 -> 0.2857142857 | CU44: =CU42/$J$41 -> 0.2857142857 | CW44: =CW42/$J$41 -> 0.2261904762 | CX44: =CX42/$J$41 -> 0 | CY44: =CY42/$J$41 -> 0.2857142857 | CZ44: =CZ42/$J$41 -> 0.2857142857 | DF44: nelle ore attive | DH44: nelle ore non attive | DJ44: nelle ore attive | DL44: nelle ore non attive | DT44: nelle ore attive | DV44: nelle ore non attive | DX44: nelle ore attive | DZ44: nelle ore non attive
BC45: 1 | BD45: 2 | BE45: 3 | BF45: 4 | BG45: 5 | BH45: 6 | BI45: 7 | BJ45: 8 | BK45: 9 | BL45: 10 | BM45: 11 | BN45: 12 | BO45: 13 | BP45: 14 | BQ45: 15 | BR45: 16 | BS45: 17 | BT45: 18 | BU45: 19 | BV45: 20 | BW45: 21 | BX45: 22 | BY45: 23 | BZ45: 24 | CA45: 25 | CB45: 26 | CC45: 27 | CE45: Ora fine | CF45: =MOD(CF44+CF43,24) -> 20 | CO45: Pecentuale di stanze occupate per carichi termici illuminazione | CR45: =CR42/$J$41 -> 0.2118226601 | CS45: =CS42/$J$41 -> 0.2857142857 | CT45: =CT42/$J$41 -> 0.2857142857 | CU45: =CU42/$J$41*0.2 -> 0.05714285714 | CW45: =CW42/$J$41 -> 0.2261904762 | CX45: =CX42/$J$41 -> 0 | CY45: =CY42/$J$41 -> 0.2857142857 | CZ45: =CZ42/$J$41*0.2 -> 0.05714285714 | DB45: TIPO DI CARICO SENSIBILE | DF45: di giorno | DG45: di notte | DH45: di giorno | DI45: di notte | DJ45: di giorno | DK45: di notte | DL45: di giorno | DM45: di notte | DP45: TIPO DI CARICO SENSIBILE | DT45: di giorno | DU45: di notte | DV45: di giorno | DW45: di notte | DX45: di giorno | DY45: di notte | DZ45: di giorno | EA45: di notte
C46: 2.2 | E46: PIANTA E CONFINI | CO46: Perc. di pers. rispetto alla media | CR46: =CR$42/$CL$35 -> 0.8275862069 | CS46: =CS$42/$CL$35 -> 1.11627907 | CT46: 1.11627907 | CU46: 1.11627907 | CW46: 0.8837209302 | CX46: 0 | CY46: 1.11627907 | CZ46: 1.11627907 | DB46: Occupanti | DF46: =CR42*$DI$40/1000*$DO$40 -> 0.07710344828 | DG46: =CS42*$DI$40/1000*$DO$40 -> 0.104 | DH46: =CT42*$DI$40/1000*$DO$40 -> 0.104 | DI46: =CU42*$DI$40/1000*$DO$40 -> 0.104 | DJ46: =CW42*$DI$40/1000*$DO$40 -> 0.08233333333 | DK46: =CX42*$DI$40/1000*$DO$40 -> 0 | DL46: =CY42*$DI$40/1000*$DO$40 -> 0.104 | DM46: =CZ42*$DI$40/1000*$DO$40 -> 0.104 | DN46: kW | DP46: Occupanti | DT46: =CR42*$DL$40/1000*$DO$40 -> 0.04151724138 | DU46: =CS42*$DL$40/1000*$DO$40 -> 0.056 | DV46: =CT42*$DL$40/1000*$DO$40 -> 0.056 | DW46: =CU42*$DL$40/1000*$DO$40 -> 0.056 | DX46: =CW42*$DL$40/1000*$DO$40 -> 0.04433333333 | DY46: =CX42*$DL$40/1000*$DO$40 -> 0 | DZ46: =CY42*$DL$40/1000*$DO$40 -> 0.056 | EA46: =CZ42*$DL$40/1000*$DO$40 -> 0.056 | EB46: kW
E47: =IF(OR(O49<>"",O50<>"",O62<>"",S64<>""),"! ! !","") ->  | F47: =IF(E47="","","ATTENZIONE: C'E UN ERRORE IN QUESTO PARAGRAFO") ->  | BC47: OCCUPAZIONE: INPUT EFFETTIVO A.E. | CO47: Perc. di pers. rispetto alla media per carichi termici apparecchiature | CR47: =CR$42/(($CR$42*$CR$37+$CS$42*$CS$37+$CT$42*$CT$37+$CU$42*$CQ$48*$CU$37)/24) -> 1.386475593 | CS47: =CS$42/(($CR$42*$CR$37+$CS$42*$CS$37+$CT$42*$CT$37+$CU$42*$CQ$48*$CU$37)/24) -> 1.87012987 | CT47: =CT$42/(($CR$42*$CR$37+$CS$42*$CS$37+$CT$42*$CT$37+$CU$42*$CQ$48*$CU$37)/24) -> 1.87012987 | CU47: =CU$42*$CQ$48/(($CR$42*$CR$37+$CS$42*$CS$37+$CT$42*$CT$37+$CU$42*$CQ$48*$CU$37)/24) -> 0.374025974 | CW47: =CW$42/(($CW$42*$CW$37+$CX$42*$CX$37+$CY$42*$CY$37+$CZ$42*$CQ$48*$CZ$37)/24) -> 1.393643032 | CX47: =CX$42/(($CW$42*$CW$37+$CX$42*$CX$37+$CY$42*$CY$37+$CZ$42*$CQ$48*$CZ$37)/24) -> 0 | CY47: =CY$42/(($CW$42*$CW$37+$CX$42*$CX$37+$CY$42*$CY$37+$CZ$42*$CQ$48*$CZ$37)/24) -> 1.760391198 | CZ47: =CZ$42*$CQ$48/(($CW$42*$CW$37+$CX$42*$CX$37+$CY$42*$CY$37+$CZ$42*$CQ$48*$CZ$37)/24) -> 0.3520782396
E48: Scegli la tipologia di pianta più appropriata guardando la figura sotto: | BD48: GEN | BE48: FEB | BF48: MAR | BG48: APR | BH48: MAG | BI48: GIU | BJ48: LUG | BK48: AGO | BL48: SET | BM48: OTT | BN48: NOV | BO48: DIC | BP48: TOT | CP48: Fattore di riduzione | CQ48: 0.2
E49: Forma della pianta dell'abitazione | J49: Pianta ad angolo | O49: =IF(J49<>"","","! ! !") ->  | P49: =IF(O49="","","ATTENZIONE: CAMPO MANCANTE, INSERISCI UN VALORE") ->  | BC49: Giorni al mese di non funzionamento struttura | BD49: =VLOOKUP($BP$29,$BC$36:$CC$44,BD$45,FALSE) -> 2 | BE49: 2 | BF49: 2 | BG49: 2 | BH49: 2 | BI49: 2 | BJ49: 2 | BK49: 2 | BL49: 2 | BM49: 2 | BN49: 2 | BO49: 2 | BP49: =SUM(BD49:BO49) -> 24
E50: Posizione del nord (vedi disegno sotto) | J50: 0 | L50: =VLOOKUP($J$49,$BH$24:$BI$26,2,FALSE) -> Pianta2 | O50: =IF(J50<>"","","! ! !") ->  | P50: =IF(O50="","","ATTENZIONE: CAMPO MANCANTE, INSERISCI UN VALORE") -> 
BC51: Numero di interruzioni lunghe ogni mese | BD51: =VLOOKUP($BP$29,$BC$36:$CC$44,BQ$45,FALSE) -> 1 | BE51: 1 | BF51: 1 | BG51: 1 | BH51: 1 | BI51: 1 | BJ51: 1 | BK51: 1 | BL51: 1 | BM51: 1 | BN51: 1 | BO51: 1 | BP51: =SUM(BD51:BO51) -> 12
J52: Indica la lunghezza dei lati ed il relativo confine: | O52: LUNGHEZZA [metri] | Q52: CONFINE
O53: [m]
J54: ="Lato A ( "&BM69&" )" -> Lato A ( Ovest ) | O54: 8.2 | Q54: Altro appartamento | BC54: INPUT ELIMINATI | BL54: COLORI | BO54: DIMENSIONE FINESTRE | BT54: CONFINE | BW54: INTERVENTI | BZ54: ORIENTAMENTI | CB54: GRAFICO DEL NORD | CE54: TRASFERIMENTO A.E. - TECNOLOGIE - PARETI VETRATE | CJ54: D.LGS 192/05 + D.LGS 311/06 + DM 26/06/2015 | CQ54: D.LGS 192/05 + D.LGS 311/06 + DM 26/06/2015 | CX54: D.LGS 192/05 + D.LGS 311/06 + DM 26/06/2015 | DE54: D.LGS 192/05 + D.LGS 311/06 + DM 26/06/2015
J55: ="Lato B ( "&BM70&" )" -> Lato B ( Nord ) | O55: 9 | Q55: Esterno | BC55: Dimensione media delle finestre | BH55: 1/8 del pavimento | BL55: Colore | BM55: Alfa | BO55: Nome | BP55: Dim. [m2] | BQ55: Def | BT55: ENEA | BU55: A.E. | BW55: Prima del 1991 | BZ55: 0 | CB55: Etichetta | CC55: Nord | CG55: FinBase | CH55: FinEff | CJ55: Vincolo di trasmittanza termica opaca verticale Uo | CQ55: Vincolo di trasmittanza termica copertura Uc | CX55: Vincolo di trasmittanza termica pavimenti Up | DE55: Vincolo di trasmittanza termica pareti vetrate Uv
J56: ="Lato C ( "&BM71&" )" -> Lato C ( Est ) | O56: 10 | Q56: Altro appartamento | BL56: Molto chiaro (bianco) | BM56: 0.15 | BO56: Molto piccole | BP56: 0.5 | BQ56: circa 70x70cm | BT56: Esterno | BU56: =SOLUZIONE01!BJ48 -> Esterno | BW56: 1991-2005 | BZ56: 45 | CB56: Spess. nord | CC56: 20 | CE56: Descrizione libera | CG56: Finestra di base | CH56: Finestra eventualm. riqualif. in perc. effettiva | CK56: Anno | CR56: Anno | CY56: Anno | DF56: Anno
J57: ="Lato D ( "&BM72&" )" -> Lato D ( Sud ) | O57: 3 | Q57: Esterno | BC57: Spessore medio dei muri esterni | BH57: =IF($J$94=$BC$25,VLOOKUP($J$37,$BC$85:$BN$95,BM$96,FALSE),VLOOKUP($J$37,$BC$85:$BN$95,BM$96,FALSE)*(1-$N$94)+VLOOKUP($L$94,$BC$85:$BN$95,BM$96,FALSE)*$N$94) -> 40 | BJ57: cm | BL57: Chiaro | BM57: 0.35 | BO57: Piccole | BP57: =0.8*1 -> 0.8 | BQ57: circa 80x100cm | BT57: Altro appartamento | BU57: =SOLUZIONE01!BJ51 -> Spazi climatizzati | BW57: Dopo il 2005 | BZ57: 90 | CB57: Val. max | CC57: 3600 | CE57: Dati tecnici | CJ57: Zona clima | CK57: 2006 | CL57: 2008 | CM57: 2010 | CN57: 2015 | CO57: 2021 | CQ57: Zona clima | CR57: 2006 | CS57: 2008 | CT57: 2010 | CU57: 2015 | CV57: 2021 | CX57: Zona clima | CY57: 2006 | CZ57: 2008 | DA57: 2010 | DB57: 2015 | DC57: 2021 | DE57: Zona clima | DF57: 2006 | DG57: 2008 | DH57: 2010 | DI57: 2015 | DJ57: 2021
J58: ="Lato E ( "&BM73&" )" -> Lato E ( Ovest ) | O58: 3 | Q58: Spazio non riscaldato (soffitta, garage, locale sfitto, ecc) | BC58: Spessore medio dei solai | BH58: =AVERAGE(IF($J$96=$BC$25,VLOOKUP($J$37,$BC$85:$BN$95,BN$96,FALSE),VLOOKUP($J$37,$BC$85:$BN$95,BN$96,FALSE)*(1-$N$96)+VLOOKUP($L$96,$BC$85:$BN$95,BN$96,FALSE)*$N$95), IF($J$95=$BC$25,VLOOKUP($J$37,$BC$85:$BN$95,BN$96,FALSE),VLOOKUP($J$37,$BC$85:$BN$95,BN$96,FALSE)*(1-$N$95)+VLOOKUP($L$95,$BC$85:$BN$95,BN$96,FALSE)*$N$95)) -> 40 | BJ58: cm | BL58: Medio | BM58: 0.55 | BO58: Medie | BP58: 1 | BQ58: circa 80x120cm | BT58: Spazio non riscaldato (soffitta, garage, locale sfitto, ecc) | BU58: =SOLUZIONE01!BJ49 -> Spazio non clima | BZ58: 135 | CB58: Dati | CE58: Trasmittanza termica (U) [W/m2K] | CG58: =$BG$98 -> 5 | CH58: =BG100 -> 5 | CJ58: A | CK58: 0.85 | CL58: 0.72 | CM58: 0.62 | CN58: 0.45 | CO58: 0.4 | CQ58: A | CR58: 0.8 | CS58: 0.42 | CT58: 0.38 | CU58: 0.34 | CV58: 0.32 | CX58: A | CY58: 0.8 | CZ58: 0.74 | DA58: 0.65 | DB58: 0.48 | DC58: 0.42 | DE58: A | DF58: 5.5 | DG58: 5 | DH58: 4.6 | DI58: 3.2 | DJ58: 3
J59: ="Lato F ( "&BM74&" )" -> Lato F ( Sud ) | O59: 3 | Q59: Esterno | BL59: Scuro | BM59: 0.75 | BO59: Medio-grandi | BP59: 1.5 | BQ59: circa 80x150cm | BT59: Terreno | BU59: =SOLUZIONE01!BJ50 -> Terreno | BZ59: 180 | CB59: =J50*10 -> 0 | CE59: Tipo di vetro | CG59: =IF(CG58>3.3,"Sing.","Doppio") -> Sing. | CH59: =IF(CH58>3.3,"Sing.","Doppio") -> Sing. | CJ59: B | CK59: 0.64 | CL59: 0.54 | CM59: 0.48 | CN59: 0.45 | CO59: 0.4 | CQ59: B | CR59: 0.6 | CS59: 0.42 | CT59: 0.38 | CU59: 0.34 | CV59: 0.32 | CX59: B | CY59: 0.6 | CZ59: 0.55 | DA59: 0.49 | DB59: 0.48 | DC59: 0.38 | DE59: B | DF59: 4 | DG59: 3.6 | DH59: 3 | DI59: 3.2 | DJ59: 3
J60: ="Lato X ( "&BM75&" )" -> Lato X ( Ovest ) | O60: =IF($J$49=$BH$24,$O$54,IF($J$49=$BH$25,ABS($O$56-$O$54),ABS($O$54+$O$58-$O$56))) -> 1.8 | Q60: Esterno | BL60: Molto scuro (nero) | BM60: 0.9 | BO60: Grandi | BP60: 2 | BQ60: circa 120x170cm | BZ60: 225 | CB60: =CC56 -> 20 | CE60: Fattore di telaio (Ff) [adim] | CG60: 0.4 | CH60: 0.4 | CJ60: C | CK60: 0.57 | CL60: 0.46 | CM60: 0.4 | CN60: 0.4 | CO60: 0.36 | CQ60: C | CR60: 0.55 | CS60: 0.42 | CT60: 0.38 | CU60: 0.34 | CV60: 0.32 | CX60: C | CY60: 0.55 | CZ60: 0.49 | DA60: 0.42 | DB60: 0.42 | DC60: 0.32 | DE60: C | DF60: 3.3 | DG60: 3 | DH60: 2.6 | DI60: 2.4 | DJ60: 2
J61: ="Lato Y ( "&BM76&" )" -> Lato Y ( Sud ) | O61: =IF($J$49=$BH$24,$O$55,IF($J$49=$BH$25,ABS($O$55-$O$57),ABS($O$55-$O$57-$O$59))) -> 6 | Q61: Esterno | BO61: Molto grandi | BP61: 3 | BQ61: circa 140x220cm | BZ61: 270 | CB61: =CC57-CB60-CB59 -> 3580 | CJ61: D | CK61: 0.5 | CL61: 0.4 | CM61: 0.36 | CN61: 0.36 | CO61: 0.32 | CQ61: D | CR61: 0.46 | CS61: 0.35 | CT61: 0.32 | CU61: 0.28 | CV61: 0.26 | CX61: D | CY61: 0.46 | CZ61: 0.41 | DA61: 0.36 | DB61: 0.36 | DC61: 0.32 | DE61: D | DF61: 3.1 | DG61: 2.8 | DH61: 2.4 | DI61: 2.1 | DJ61: 1.8
O62: =IF(OR(O54<0,O55<0,AND(J49=BH25,OR(O57>O55,O56<O54,O56<0,O57<0)),AND(J49=BH26,OR(O57>O55,ABS(O58)>O56,O59>O55-O57,O56<0,O57<0,O59<0))),"! ! !","") ->  | P62: =IF(O62="","","ERRORE: LE DIMENSIONI INSERITE SONO IMPOSSIBILI, CONTROLLA MEGLIO E CORREGGI") ->  | BO62: 1/8 del pavimento | BP62: =IFERROR(J84/8/J42,0) -> 1.2375 | BZ62: 315 | CJ62: E | CK62: 0.46 | CL62: 0.37 | CM62: 0.34 | CN62: 0.3 | CO62: 0.28 | CQ62: E | CR62: 0.43 | CS62: 0.32 | CT62: 0.3 | CU62: 0.26 | CV62: 0.24 | CX62: E | CY62: 0.43 | CZ62: 0.38 | DA62: 0.33 | DB62: 0.31 | DC62: 0.29 | DE62: E | DF62: 2.8 | DG62: 2.4 | DH62: 2.2 | DI62: 1.9 | DJ62: 1.4
J63: Confine superiore (cosa si trova sopra) | O63: Spazio non riscaldato (soffitta, garage, locale sfitto, ecc) | CJ63: F | CK63: 0.44 | CL63: 0.35 | CM63: 0.33 | CN63: 0.28 | CO63: 0.26 | CQ63: F | CR63: 0.41 | CS63: 0.31 | CT63: 0.29 | CU63: 0.24 | CV63: 0.22 | CX63: F | CY63: 0.41 | CZ63: 0.36 | DA63: 0.32 | DB63: 0.3 | DC63: 0.28 | DE63: F | DF63: 2.4 | DG63: 2.2 | DH63: 2 | DI63: 1.7 | DJ63: 1
J64: Confine inferiore (cosa si trova sotto) | O64: Altro appartamento | S64: =IF(OR(Q54="",Q55="",Q60="",Q61="",O63="",O64="",AND($J$49=$BH$25,OR(Q56="",Q57="")),AND($J$49=$BH$26,OR(Q58="",Q59=""))),"! ! !","") ->  | T64: =IF(S64="","","ATTENZIONE: HAI DIMENTICATO DI INSERIRE IL CONFINE DI UN COMPONENTE") -> 
BO65: TRASFERIMENTO A.E. - TABELLA PARETI
BC66: AZIMUT | BG66: CARATTERISTICHE DELLE PARETI | BP66: ESPOSIZIONE E CONFINI | BX66: COMPONENTI DELL'INVOLUCRO | CE66: OMBREGGIAMENTI | CN66: DESCRIZIONE LIBERA
BC67: Azimut | BD67: Codice | BE67: Nomi | BG67: Nome | BH67: Spess. eff | BI67: Lungh. lorda | BJ67: Azimut | BK67: Azimut | BL67: Esposiz. | BM67: Nome | BP67: CONFINE DEL COMPONENTE | BR67: SPAZI NON CLIMATIZZATI | BT67: ESPOSIZIONE COMPONENTE | BV67: CONFINE COL TERRENO | BX67: SUP. LORDA | BY67: COMPONENTI VETRATI | CB67: COMPONENTI OPACHI | CE67: OSTRUZIONI ORIZZONTALI | CG67: AGGETTI ORIZZONTALI E VERTIC. | CK67: ALTRE OSTRUZIONI
BC68: 180 | BD68: N | BE68: Nord | BH68: [m] | BI68: [m] | BJ68: standard | BK68: effettivo | BL68: effettiva | BM68: completo | BR68: Tecnologia | BV68: Tipologia | BX68: [m2] | BY68: Tecnologia | CA68: Area [m2] | CB68: Tecnologia | CD68: Area [m2] | CE68: Tipo | CF68: Presenza % | CG68: Orizz. Tipo | CH68: Vert. Tipo | CI68: Pres. opaca | CJ68: Pres. vetrata | CK68: Tipo | CL68: Pres. opaca | CM68: Pres. vetrata
BC69: 225 | BD69: NE | BE69: Nord-Est | BG69: =J54 -> Lato A ( Ovest ) | BH69: =IF($Q54=$BT$57,$BH$57/2/100,$BH$57/100) -> 0.2 | BI69: =O54+BH70+BH76 -> 9 | BJ69: 90 | BK69: =MOD((BJ69+$J$50),360) -> 90 | BL69: =VLOOKUP(BK69,$BC$68:$BD$75,2,FALSE) -> O | BM69: =VLOOKUP(BK69,$BC$68:$BE$75,3,FALSE) -> Ovest | BO69: A | BP69: =IF(Q54=$BT$57,"",IF(Q54=$BT$58,$BU$58,Q54)) ->  | BR69: =IF(BP69=$BU$58,TECNOLOGIE!$F$72,"") ->  | BT69: =IF(BP69="","",BL69) ->  | BV69: =IF(BP69=$BU$59,SOLUZIONE01!$BQ$48,"") ->  | BX69: =IF(BP69="",0,BI69*$CJ$88) -> 0 | BY69: =IF(CA69<>0,$CH$55,"") ->  | CA69: =IF(BP69=$BU$56,CA$79/$BX$79*$BX69,0) -> 0 | CB69: =IF(BX69<>0,$BR$82,"") ->  | CD69: =IF(BP69<>"",BX69-CA69,0) -> 0 | CK69: =IF($BP69<>$BU$56,"",TECNOLOGIE!$F$180) ->  | CL69: =IF(CK69="","",VLOOKUP($J$24,$BE$25:$BF$30,2,FALSE)) ->  | CM69: =CL69 ->  | CN69: A
BC70: 270 | BD70: E | BE70: Est | BG70: Lato B ( Nord ) | BH70: 0.4 | BI70: =O55+BH69+IF($J$49=$BH$24,BH75,BH71) -> 9.4 | BJ70: 180 | BK70: 180 | BL70: N | BM70: =VLOOKUP(BK70,$BC$68:$BE$75,3,FALSE) -> Nord | BO70: B | BP70: =IF(Q55=$BT$57,"",IF(Q55=$BT$58,$BU$58,Q55)) -> Esterno | BR70: =IF(BP70=$BU$58,TECNOLOGIE!$F$72,"") ->  | BT70: N | BV70: =IF(BP70=$BU$59,SOLUZIONE01!$BQ$48,"") ->  | BX70: 25.004 | BY70: FinEff | CA70: 4.517475728 | CB70: ParEff | CD70: 20.48652427 | CK70: =IF($BP70<>$BU$56,"",TECNOLOGIE!$F$180) -> Ostruzione totale | CL70: 0.12 | CM70: =CL70 -> 0.12 | CN70: B
BC71: 315 | BD71: SE | BE71: Sud-Est | BG71: Lato C ( Est ) | BH71: 0.2 | BI71: =IF($J$49=$BH$24,0,O56+BH70+BH72) -> 10.8 | BJ71: 270 | BK71: 270 | BL71: E | BM71: Est | BO71: C | BP71: =IF(OR($J$49=$BH$24,Q56=$BT$57),"",IF(Q56=$BT$58,$BU$58,Q56)) ->  | BR71: =IF(BP71=$BU$58,TECNOLOGIE!$F$72,"") ->  | BV71: =IF(BP71=$BU$59,SOLUZIONE01!$BQ$48,"") ->  | BX71: 0 | CA71: 0 | CD71: 0 | CK71: =IF($BP71<>$BU$56,"",TECNOLOGIE!$F$180) ->  | CN71: C
BC72: 0 | BD72: S | BE72: Sud | BG72: Lato D ( Sud ) | BH72: 0.4 | BI72: =IF($J$49=$BH$24,0,IF($J$49=$BH$25,O57+BH75+BH71,O57+BH73+BH71)) -> 3.6 | BJ72: 0 | BK72: 0 | BL72: S | BM72: Sud | BO72: D | BP72: =IF(OR($J$49=$BH$24,Q57=$BT$57),"",IF(Q57=$BT$58,$BU$58,Q57)) -> Esterno | BR72: =IF(BP72=$BU$58,TECNOLOGIE!$F$72,"") ->  | BT72: S | BV72: =IF(BP72=$BU$59,SOLUZIONE01!$BQ$48,"") ->  | BX72: 9.576 | BY72: FinEff | CA72: 1.730097087 | CB72: ParEff | CD72: 7.845902913 | CK72: =IF($BP72<>$BU$56,"",TECNOLOGIE!$F$180) -> Ostruzione totale | CL72: 0.12 | CM72: 0.12 | CN72: D
BC73: 45 | BD73: SO | BE73: Sud-Ovest | BG73: Lato E ( Ovest ) | BH73: 0.4 | BI73: =IF($J$49=$BH$24,0,IF($J$49=$BH$25,0,ABS(O58)-BH57/100+BH72)) -> 0 | BJ73: =IF(O58<0,270,90) -> 90 | BK73: 90 | BL73: O | BM73: Ovest | BO73: E | BP73: =IF(OR($J$49<>$BH$26,Q58=$BT$57),"",IF(Q58=$BT$58,$BU$58,Q58)) ->  | BR73: =IF(BP73=$BU$58,TECNOLOGIE!$F$72,"") ->  | BV73: =IF(BP73=$BU$59,SOLUZIONE01!$BQ$48,"") ->  | BX73: 0 | CA73: 0 | CD73: 0 | CK73: =IF($BP73<>$BU$56,"",TECNOLOGIE!$F$180) ->  | CN73: E
BC74: 90 | BD74: O | BE74: Ovest | BG74: Lato F ( Sud ) | BH74: 0.4 | BI74: =IF($J$49=$BH$24,0,IF($J$49=$BH$25,0,O59-BH57/100)) -> 0 | BJ74: 0 | BK74: 0 | BL74: S | BM74: Sud | BO74: F | BP74: =IF(OR($J$49<>$BH$26,Q59=$BT$57),"",IF(Q59=$BT$58,$BU$58,Q59)) ->  | BR74: =IF(BP74=$BU$58,TECNOLOGIE!$F$72,"") ->  | BV74: =IF(BP74=$BU$59,SOLUZIONE01!$BQ$48,"") ->  | BX74: 0 | CA74: 0 | CD74: 0 | CK74: =IF($BP74<>$BU$56,"",TECNOLOGIE!$F$180) ->  | CN74: F
BC75: 135 | BD75: NO | BE75: Nord-Ovest | BG75: Lato X ( Ovest ) | BH75: 0.4 | BI75: =IF($J$49=$BH$24,BI69,IF($J$49=$BH$25,O60-BH57/100+BH72,O60-BH57/100+BH76)) -> 1.8 | BJ75: =IF($J$49=$BH$24,270,IF($J$49=$BH$25,IF(O56<O54,270,90),IF(AND(O58<0,O54<(O56+O58)),90,270))) -> 90 | BK75: 90 | BL75: O | BM75: Ovest | BO75: X | BP75: =IF(Q60=$BT$57,"",IF(Q60=$BT$58,$BU$58,Q60)) -> Esterno | BR75: =IF(BP75=$BU$58,TECNOLOGIE!$F$72,"") ->  | BT75: O | BV75: =IF(BP75=$BU$59,SOLUZIONE01!$BQ$48,"") ->  | BX75: 4.788 | BY75: FinEff | CA75: 0.8650485437 | CB75: ParEff | CD75: 3.922951456 | CK75: =IF($BP75<>$BU$56,"",TECNOLOGIE!$F$180) -> Ostruzione totale | CL75: 0.12 | CM75: 0.12 | CN75: X
BD76: OR-A | BG76: Lato Y ( Sud ) | BH76: 0.4 | BI76: =IF($J$49=$BH$24,BI70,IF($J$49=$BH$25,O61-BH57/100+BH69,O61+BH69+BH75)) -> 5.8 | BJ76: 0 | BK76: 0 | BL76: S | BM76: Sud | BO76: Y | BP76: =IF(Q61=$BT$57,"",IF(Q61=$BT$58,$BU$58,Q61)) -> Esterno | BR76: =IF(BP76=$BU$58,TECNOLOGIE!$F$72,"") ->  | BT76: S | BV76: =IF(BP76=$BU$59,SOLUZIONE01!$BQ$48,"") ->  | BX76: 15.428 | BY76: FinEff | CA76: 2.787378641 | CB76: ParEff | CD76: 12.64062136 | CK76: =IF($BP76<>$BU$56,"",TECNOLOGIE!$F$180) -> Ostruzione totale | CL76: 0.12 | CM76: 0.12 | CN76: Y
BD77: OR-B | BO77: UP | BP77: =IF(O63=$BT$57,"",IF(O63=$BT$58,$BU$58,O63)) -> Spazio non clima | BR77: =IF(BP77=$BU$58,TECNOLOGIE!$F$72,"") -> Standard | BT77: OR-A | BV77: =IF(BP77=$BU$59,SOLUZIONE01!$BQ$48,"") ->  | BX77: =IF(BP77="",0,J85) -> 91.08 | BY77: =IF(CA77<>0,TECNOLOGIE!$F$48,"") ->  | CB77: =IF(BX77<>0,$BW$82,"") -> CopEff | CD77: 91.08 | CK77: =IF($BP77<>$BU$56,"",TECNOLOGIE!$F$180) ->  | CN77: Copertura
BO78: DOWN | BP78: =IF(O64=$BT$57,"",IF(O64=$BT$58,$BU$58,O64)) ->  | BR78: =IF(BP78=$BU$58,TECNOLOGIE!$F$72,"") ->  | BT78: OR-B | BV78: =IF(BP78=$BU$59,SOLUZIONE01!$BQ$48,"") ->  | BX78: =IF(BP78="",0,J85) -> 0 | BY78: =IF(CA78<>0,TECNOLOGIE!$F$48,"") ->  | CB78: =IF(BX78<>0,$CB$82,"") ->  | CD78: 0 | CN78: Pavimento
BW79: TOT. SUP. VERT. EST. | BX79: =SUMIF(BP69:BQ76,"Esterno",BX69:BX76) -> 54.796 | BZ79: TOT | CA79: =IFERROR(VLOOKUP($BH$55,$BO$56:$BP$62,2,FALSE)*$J$42,0) -> 9.9
C81: 2.3 | E81: RIEPILOGO DATI GEOMETRICI | BC81: CARATTERISTICHE EDIFICI PER EPOCA | BP81: TRASFERIMENTO A.E. - TECNOLOGIE - PARETI OPACHE | CE81: TRASFERIMENTO A.E. - SOLUZIONE01 - DATI GENERALI
BD82: Trasmittanza termica di base | BH82: Rendimento sottosistemi (non utilizzato) | BL82: Isolam. | BM82: Spessore | BN82: Spessore | BQ82: ParBase | BR82: ParEff | BV82: CopBase | BW82: CopEff | CA82: PavBase | CB82: PavEff | CE82: Superficie in pianta totale lorda (di tutti i piani) | CJ82: =J86 -> 91.08 | CL82: m2
E83: Superficie calpestabile di un piano | J83: =IF($J$49=$BH$24,O54*O55,IF($J$49=$BH$25,O54*O61+O56*O57,O54*O61+O59*(O56-ABS(O58))+O56*O57)) -> 79.2 | L83: m2 | BD83: Uo | BE83: Uc | BF83: Up | BG83: Uv | BH83: eta,e | BI83: eta,d | BJ83: eta,r | BK83: eta,p | BL83: distribuz. | BM83: muri | BN83: solai | BP83: Descrizione libera | BQ83: Parete di base senza riqualificazione | BR83: Parete eventualm. riqualificata in percentuale effettiva | BV83: Copertura di base senza riqualificazione | BW83: Copertura eventualm. riqualificata in percentuale effettiva | CA83: Pavim. di base senza riqualificazione | CB83: Pavim. eventualm. riqualificata in percentuale effettiva | CE83: Superficie in pianta totale netta (di tutti i piani) | CJ83: =J84 -> 79.2 | CL83: m2
E84: Superficie calpestabile totale | J84: =J83*$J$38 -> 79.2 | K84: 73 | L84: m2 | BC84: Epoca | BD84: [W/mqK] | BE84: [W/mqK] | BF84: [W/mqK] | BG84: [W/mqK] | BH84: [%] | BI84: [%] | BJ84: [%] | BK84: [%] | BM84: [cm] | BN84: [cm] | CE84: Volume totale lordo | CJ84: =J88 -> 278.7048 | CL84: m3
E85: Superficie lorda di un piano | J85: =IF($J$49=$BH$24,BI69*BI70,IF($J$49=$BH$25,BI69*BI76+BI71*BI72,BI69*BI76+BI74*(BI71-BI73)+BI71*BI72)) -> 91.08 | L85: m2 | BC85: prima del 1919 | BD85: 1.3 | BE85: 2 | BF85: 1.1 | BG85: 5 | BH85: 0.96 | BI85: 0.96 | BJ85: 0.96 | BK85: 0.96 | BL85: E | BM85: 60 | BN85: 40 | CE85: Volume totale netto | CJ85: =J87 -> 210.672 | CL85: m3
E86: Superficie lorda totale | J86: =J85*$J$38 -> 91.08 | K86: 73 | L86: m2 | BC86: 1919-45 | BD86: 1.2 | BE86: 1.3 | BF86: 1.2 | BG86: 5 | BH86: 0.96 | BI86: 0.96 | BJ86: 0.96 | BK86: 0.96 | BL86: E | BM86: 50 | BN86: 40 | BP86: Dati tecnici | CE86: Quota minima da terra della zona di calcolo | CJ86: 0 | CL86: m
E87: Volume totale netto | J87: =J84*$J$40 -> 210.672 | K87: 74 | L87: m3 | BC87: 1946-61 | BD87: 1.2 | BE87: 1.3 | BF87: 1.2 | BG87: 5 | BH87: 0.96 | BI87: 0.96 | BJ87: 0.96 | BK87: 0.96 | BL87: E | BM87: 40 | BN87: 40 | BP87: Trasm. term. senza isolante [W/m2K] | BQ87: =IF(BQ88=0,BQ91,$BD$88) -> 1.2 | BR87: =IF(BR88=0,BR91,$BD$88) -> 1.2 | BV87: =IF(BV88=0,BV91,$BE$88) -> 1.3 | BW87: =IF(BW88=0,BW91,$BE$88) -> 1.3 | CA87: =IF(CA88=0,CA91,$BF$88) -> 1.2 | CB87: =IF(CB88=0,CB91,$BF$88) -> 1.2 | CE87: Quota massima da terra della zona di calcolo | CJ87: =J38*J40 -> 2.66 | CL87: m
E88: Volume totale lordo | J88: =J86*($J$40+0.4) -> 278.7048 | K88: 75 | L88: m3 | BC88: 1962-71 | BD88: 1.2 | BE88: 1.3 | BF88: 1.2 | BG88: 5 | BH88: 0.96 | BI88: 0.96 | BJ88: 0.96 | BK88: 0.96 | BL88: D | BM88: 30 | BN88: 35 | BP88: Spessore dell'isolante [cm] | BQ88: =IF(BD98>=BD$88,0,(1/BD98-1/BD$88)*0.035*100) -> 0 | BR88: =IF(BD100>=BD$88,0,(1/BD100-1/BD$88)*0.035*100) -> 0 | BV88: =IF(BE98>=BE$88,0,(1/BE98-1/BE$88)*0.035*100) -> 0 | BW88: =IF(BE100>=BE$88,0,(1/BE100-1/BE$88)*0.035*100) -> 0 | CA88: =IF(BF98>=BF$88,0,(1/BF98-1/BF$88)*0.035*100) -> 0 | CB88: =IF(BF100>=BF$88,0,(1/BF100-1/BF$88)*0.035*100) -> 0 | CE88: Altezza media della zona di calcolo climatizzata | CJ88: =CJ87-CJ86 -> 2.66 | CL88: m
BC89: 1972-81 | BD89: 1 | BE89: 1.1 | BF89: 0.9 | BG89: 5 | BH89: 0.96 | BI89: 0.96 | BJ89: 0.96 | BK89: 0.96 | BL89: C | BM89: 30 | BN89: 35 | BP89: Conduttività term. isolante [W/mK] | BQ89: 0.035 | BR89: 0.035 | BV89: 0.035 | BW89: 0.035 | CA89: 0.035 | CB89: 0.035 | CE89: Numero di ambienti totali nell'edificio | CJ89: =J41 -> 7
C90: 2.4 | E90: LAVORI EFFETTUATI SULL'INVOLUCRO EDILIZIO | BC90: 1982-91 | BD90: 1 | BE90: 0.9 | BF90: 0.6 | BG90: 5 | BH90: 0.96 | BI90: 0.96 | BJ90: 0.96 | BK90: 0.96 | BL90: B | BM90: 30 | BN90: 35 | BP90: Posizione dell'isolante | BQ90: Esterno | BR90: Esterno | BV90: Esterno | BW90: Esterno | CA90: Esterno | CB90: Esterno | CE90: Numero medio di piani climatizzati | CJ90: =J38 -> 1
E91: =IF(OR(P94<>"",P95<>"",P96<>"",P97<>""),"! ! !","") ->  | F91: =IF(E91="","","ATTENZIONE: C'E UN ERRORE IN QUESTO PARAGRAFO") ->  | BC91: 1991-2005 | BD91: 0.8 | BE91: 0.8 | BF91: 0.6 | BG91: 3 | BH91: 0.96 | BI91: 0.96 | BJ91: 0.96 | BK91: 0.96 | BL91: A | BM91: 30 | BN91: 35 | BP91: Trasm. term. con isolante [W/m2K] | BQ91: =INPUT!$BD$98 -> 1.2 | BR91: =INPUT!$BD$100 -> 1.2 | BV91: =INPUT!$BE$98 -> 1.3 | BW91: =INPUT!$BE$100 -> 1.3 | CA91: =INPUT!$BF$98 -> 1.2 | CB91: =INPUT!$BF$100 -> 1.2 | CE91: Superficie in pianta lorda media (di un piano) | CJ91: =J85 -> 91.08 | CL91: m2
E92: Inserisci se sono stati effettuati interventi di miglioramento energetico dell'involucro edilizio. | BC92: 2006-2008 | BD92: =VLOOKUP($J$23,$CJ$58:$CM$63,2,FALSE) -> 0.5 | BE92: =VLOOKUP($J$23,$CQ$58:$CT$63,2,FALSE) -> 0.46 | BF92: =VLOOKUP($J$23,$CX$58:$DA$63,2,FALSE) -> 0.46 | BG92: =VLOOKUP($J$23,$DE$58:$DH$63,2,FALSE) -> 3.1 | BH92: 0.96 | BI92: 0.96 | BJ92: 0.96 | BK92: 0.96 | BL92: A | BM92: 30 | BN92: 35 | BP92: Massa superficiale della parete [kg/m2] | BQ92: 300 | BR92: 300 | BV92: 400 | BW92: 400 | CA92: 400 | CB92: 400 | CE92: Superficie in pianta netta media (di un piano) | CJ92: =J83 -> 79.2 | CK92: 73 | CL92: m2
J93: SI/NO | L93: PERIODO | N93: % DI REALIZZAZIONE | BC93: 2008-2010 | BD93: =VLOOKUP($J$23,$CJ$58:$CM$63,3,FALSE) -> 0.4 | BE93: =VLOOKUP($J$23,$CQ$58:$CT$63,3,FALSE) -> 0.35 | BF93: =VLOOKUP($J$23,$CX$58:$DA$63,3,FALSE) -> 0.41 | BG93: =VLOOKUP($J$23,$DE$58:$DH$63,3,FALSE) -> 2.8 | BH93: 0.96 | BI93: 0.96 | BJ93: 0.96 | BK93: 0.96 | BL93: A | BM93: 40 | BN93: 40 | BP93: Assorbività solare | BQ93: =VLOOKUP($J$43,$BL$56:$BM$60,2,FALSE) -> 0.15 | BR93: =BQ93 -> 0.15 | BV93: =VLOOKUP($J$44,$BL$56:$BM$60,2,FALSE) -> 0.55 | BW93: =BV93 -> 0.55 | CA93: 0 | CB93: 0 | CE93: Altezza media netta interpiano | CJ93: =J40 -> 2.66 | CL93: m
E94: Isolamento delle pareti | J94: NO | L94: Dopo 2015 | N94: 1 | P94: =IF(AND(J94=$BC$24,OR(L94="",N94="")),"! ! !","") ->  | Q94: =IF(P94="","","ATTENZIONE: HAI DIMENTICATO DI INSERIRE I DATI DEI LAVORI EFFETTUATI") ->  | BC94: 2010-2015 | BD94: =VLOOKUP($J$23,$CJ$58:$CM$63,4,FALSE) -> 0.36 | BE94: =VLOOKUP($J$23,$CQ$58:$CT$63,4,FALSE) -> 0.32 | BF94: =VLOOKUP($J$23,$CX$58:$DA$63,4,FALSE) -> 0.36 | BG94: =VLOOKUP($J$23,$DE$58:$DH$63,4,FALSE) -> 2.4 | BH94: 0.96 | BI94: 0.96 | BJ94: 0.96 | BK94: 0.96 | BL94: A | BM94: 40 | BN94: 40
E95: Isolamento del soffitto | J95: NO | L95: 2010-2015 | N95: 1 | P95: =IF(AND(J95=$BC$24,OR(L95="",N95="")),"! ! !","") ->  | Q95: =IF(P95="","","ATTENZIONE: HAI DIMENTICATO DI INSERIRE I DATI DEI LAVORI EFFETTUATI") ->  | BC95: Dopo 2015 | BD95: =VLOOKUP($J$23,$CJ$58:$CO$63,5,FALSE) -> 0.36 | BE95: =VLOOKUP($J$23,$CQ$58:$CV$63,5,FALSE) -> 0.28 | BF95: =VLOOKUP($J$23,$CX$58:$DC$63,5,FALSE) -> 0.36 | BG95: =VLOOKUP($J$23,$DE$58:$DJ$63,5,FALSE) -> 2.1 | BH95: 0.96 | BI95: 0.96 | BJ95: 0.96 | BK95: 0.96 | BL95: A | BM95: 40 | BN95: 40
E96: Isolamento del pavimento | J96: NO | L96: Dopo 2015 | N96: 0.5 | P96: =IF(AND(J96=$BC$24,OR(L96="",N96="")),"! ! !","") ->  | Q96: =IF(P96="","","ATTENZIONE: HAI DIMENTICATO DI INSERIRE I DATI DEI LAVORI EFFETTUATI") ->  | BC96: 1 | BD96: 2 | BE96: 3 | BF96: 4 | BG96: 5 | BH96: 6 | BI96: 7 | BJ96: 8 | BK96: 9 | BL96: 10 | BM96: 11 | BN96: 12
E97: Sostituzione infissi | J97: NO | L97: 1991-2005 | N97: 0.85 | P97: =IF(AND(J97=$BC$24,OR(L97="",N97="")),"! ! !","") ->  | Q97: =IF(P97="","","ATTENZIONE: HAI DIMENTICATO DI INSERIRE I DATI DEI LAVORI EFFETTUATI") ->  | BC97: Valori edificio scelto
V98: pagina 1 fino a qui | BB98: Senza riqualificazione | BC98: =$J$37 -> 1946-61 | BD98: =VLOOKUP($BC98,$BC$85:$BK$95,BD$96,FALSE) -> 1.2 | BE98: 1.3 | BF98: 1.2 | BG98: 5 | BH98: 0.96 | BI98: 0.96 | BJ98: 0.96 | BK98: 0.96
B99: 3. | D99: IMPIANTI | BC99: Con riqualificazione totale | BD99: =VLOOKUP($L$94,$BC$85:$BK$95,BD$96,FALSE) -> 0.36 | BE99: =VLOOKUP($L$95,$BC$85:$BK$95,BE$96,FALSE) -> 0.32 | BF99: =VLOOKUP($L$96,$BC$85:$BK$95,BF$96,FALSE) -> 0.36 | BG99: =VLOOKUP($L$97,$BC$85:$BK$95,BG$96,FALSE) -> 3
BC100: Con riqualificazione effettiva | BD100: =IF($J$94=$BC$25,BD98,$N$94*BD99+(1-$N$94)*BD98) -> 1.2 | BE100: =IF($J$95=$BC$25,BE98,$N$95*BE99+(1-$N$95)*BE98) -> 1.3 | BF100: =IF($J$96=$BC$25,BF98,$N$96*BF99+(1-$N$96)*BF98) -> 1.2 | BG100: =IF($J$97=$BC$25,BG98,$N$97*BG99+(1-$N$97)*BG98) -> 5
C101: 3.1 | E101: IMPIANTO DI RISCALDAMENTO
E102: =IF(OR(J103="",J104="",AND(J104=$BO$107,J105=""),BH106="",NOT(ISNUMBER(BH106)),AND(J104<>$BO$107,OR(J106="",J107=""))),"! ! !","") ->  | F102: =IF(E102="","","ATTENZIONE: C'E UN ERRORE IN QUESTO PARAGRAFO") -> 
E103: Tipo di impianto di riscaldamento | J103: Centralizzato | BC103: INPUT ELIMINATI | BL103: TIPO IMPIANTO | BO103: NOMI GEN. RISC. | BT103: NOMI GEN. ACS | BW103: NOMI GEN. RAFF. | BZ103: NOMI SOLARE TERMICO | CE103: NOMI FV | CH103: NOMI EMISSIONE | CK103: NOMI REGOLAZIONE | CP103: NOMI DISTRIBUZIONE | CS103: NOMI ACCUMULO ACS | CV103: PERCENTUALE CLIMATIZZAZIONE | CZ103: FUNZIONALITA'
E104: Tipo di generatore di calore | J104: Caldaia a gas naturale tradizionale | BC104: Numero max di ore al giorno di accensione impianti | BH104: 12 | BJ104: ore/giorno | BL104: Autonomo | BQ104: BACS (1.3) | BT104: Caldaia a gas istantanea | BU104: Caldaia Trad. ACS | BW104: Nessuno | BZ104: Nessuno | CE104: FV Tradiz. | CH104: Radiatori (termosifoni) | CI104: Radiatori Tradizionali | CM104: BACS (1.1) | CN104: BACS (1.5) | CP104: Tubaz.AcquaAltaTempCentralizz. | CS104: Nessun accumulo | CV104: Inverno | CW104: =IF(CX104=0,"NON ATTIVA","ATTIVA") -> ATTIVA | CX104: =IF($BH$106=0,0,IF($BH$106+2<$J$41,$BH$106+2,$J$41))/$J$41 -> 1 | CZ104: Solo riscaldamento
E105: Classe energetica media in riscaldamento | J105: A+ | BL105: Centralizzato | BO105: Caldaia a gas naturale tradizionale | BP105: Caldaia Trad Gas | BQ105: =IF(J103=BL105,1,0) -> 1 | BR105: 1 se centralizz. | BT105: Caldaia a condensazione con accumulo integrato | BU105: Caldaia Cond. ACS | BW105: Condizionatore elettrico | BX105: =BP107 -> Split | BZ105: Pannelli piani a circolaz. naturale | CA105: Collettori piani vetrati | CB105: Naturale | CC105: Solare Vetrato Circ. Nat. | CH105: Fancoil (ventilconvettori) | CI105: Fancoil | CK105: Solo climatica in caldaia | CL105: Climatica | CM105: 0 | CN105: 0 | CP105: Tubaz.AcquaAlta TempAutonomo | CS105: Accumulo 80 litri interno | CV105: Estate | CW105: =IF(CX105=0,"NON ATTIVA","ATTIVA") -> ATTIVA | CX105: =IF($J$111=$BW$104,0,IF($J$113=0,0,IF($J$113+2<$J$41,$J$113+2,$J$41))/$J$41) -> 1 | CZ105: Solo produzione ACS
E106: Terminali in ambiente | J106: Radiatori (termosifoni) | BC106: Numero di stanze riscaldate | BH106: =$J$41 -> 7 | BJ106: ="su un totale di "&$J$41&" stanze" -> su un totale di 7 stanze | BO106: Caldaia a gas naturale a condensazione | BP106: Caldaia Condens Gas | BQ106: 1 | BT106: Scaldabagno a pompa di calore | BU106: P.C. Ar-Ac ACS | BZ106: Pannelli piani a circolaz. forzata | CA106: Collettori piani vetrati | CB106: Forzata | CC106: Solare Vetrato Circ. Forz. | CE106: SCELTA SOL. FV | CH106: Pavimento radiante | CI106: Pavimento radiante | CK106: Termostato manuale | CL106: Zona(On/Off) | CM106: 0 | CN106: 0 | CP106: Tubaz.AcquaBassaTemp | CS106: Accumulo 200 litri non clima | CZ106: Riscald. e produz. ACS
E107: Modalità di regolazione | J107: Termostato manuale | BO107: Pompa di calore elettrica | BP107: Split | BQ107: NA | BT107: Scaldabagno elettrico | BU107: BoilerACS | BW107: SCELTA PC | BZ107: Pannelli sottovuoto a circolaz. naturale | CA107: Collettori a tubi sottovuoto con assorbitore piano | CB107: Naturale | CC107: Solare Sottovuoto Circ. Nat. | CE107: Nome | CF107: =IF(J132>0,CE104,"") -> FV Tradiz. | CH107: Split | CI107: Unità Espansione Diretta | CK107: Termostato programmabile | CL107: Zona(P1) | CM107: 1 | CN107: 1 | CP107: Tubaz.GasRefrig.
BC108: Apertura finestre nella stagione di riscaldamento | BH108: 1 | BJ108: ore/giorno | BW108: Nome | BX108: =IF(OR($J$104=$BO$107,$J$111=$BW$105),$BX$105,"") -> Split | BZ108: Pannelli sottovuoto a circolaz. forzata | CA108: Collettori a tubi sottovuoto con assorbitore piano | CB108: Forzata | CC108: Solare Sottovuoto Circ. Forz. | CE108: Pn | CF108: =IF(CF107<>"",J132,0) -> 1 | CG108: kWp | CK108: Termostato e valvole termostatiche su ogni radiatore | CL108: Ambiente(P2) | CM108: 2 | CN108: 2
C109: 3.2 | E109: IMPIANTO DI RAFFRESCAMENTO | BC109: Apertura finestre nella stagione di raffrescamento | BH109: 3 | BJ109: ore/giorno | BO109: SCELTA CALDAIA | BT109: SCELTA CALDAIA ACS | BW109: Pterm | BX109: =IF(BX108<>"",3*$BH$106,0) -> 21 | CK109: Termostato e valvole termost. programmabili su ogni radiatore | CL109: Ambiente(P05) | CM109: 3 | CN109: 2 | CP109: Isolamento distr. | CQ109: =VLOOKUP($J$37,$BC$85:$BL$95,$BL$96,FALSE) -> E
E110: =IF(J111<>BW105,"",IF(OR(J111="",J112="",J113="",NOT(ISNUMBER(J113))),"! ! !","")) ->  | F110: =IF(E110="","","ATTENZIONE: C'E UN ERRORE IN QUESTO PARAGRAFO") ->  | BO110: Nome | BP110: =IFERROR(VLOOKUP($J$104,$BO$105:$BP$106,2,FALSE),"") -> Caldaia Trad Gas | BT110: Nome | BU110: =IFERROR(VLOOKUP($J$121,$BT$104:$BU$105,2,FALSE),"") -> Caldaia Trad. ACS | BW110: Pfrig | BX110: =IF(BX108<>"",3*$J$113,0) -> 15 | BZ110: SCELTA SOL. TERM. | CE110: Contemporaneità FV | CK110: Split | CL110: Clima+Ambiente, P banda 2° | CM110: 2 | CN110: 2
E111: Tipo di impianto di raffrescamento | J111: Condizionatore elettrico | BO111: Pterm | BP111: =IF(BP110="",0,24) -> 24 | BT111: Pterm | BU111: =IF(BU110="",0,24) -> 24 | BW111: SCOP | BX111: =IFERROR(VLOOKUP($J$105,$CB$117:$CH$126,4,FALSE),1) -> 4.3 | BZ111: Nome | CA111: =IF($J$125=$BZ$104,"",VLOOKUP($J$125,$BZ$104:$CC$108,4,FALSE)) ->  | CE111: Valore base | CF111: 0.25 | CP111: Rendim. distr. gas refrig. | CQ111: 0.98
E112: Classe energetica media in raffrescamento | J112: A+ | BW112: SEER | BX112: =IFERROR(VLOOKUP($J$112,$CB$117:$CH$126,7,FALSE),1) -> 5.85 | BZ112: Area | CA112: =J126*2 -> 2 | CE112: Perdite batteria | CF112: 0.08 | CP112: Rendim. distr. ACS | CQ112: 0.8
E113: Numero di stanze climatizzate | J113: 5 | L113: ="su un totale di "&$J$41&" stanze" -> su un totale di 7 stanze | BT113: SCELTA PC/BOILER ACS | CE113: Fattore di utilizzo batteria | CF113: 0.8
J114: =$J$41 -> 7 | BT114: Nome | BU114: =IF(J121=BT106,BU106,IF(J121=BT107,BU107,"")) -> 
E115: ALTRI APPARECCHI | J115: QUANTITA' | L115: ORE USO GIORNALIERO | BC115: CONFIG. RISCALDAMENTO - TRASF. A.E. | BJ115: TRASFERIMENTO A.E. - CALDAIE | BT115: Pterm | BU115: =IF($J$121<>"",1.2,0) -> 1.2 | CB115: CLASSE CONDIZIONATORI | CJ115: NOMI ESPOSIZIONI PER SOLARE | CP115: VENTILAZIONE
E116: Ventilatore | L116: 10 | BC116: IMPIANTO 1 (Priorità 1) | BJ116: NOME TECNOLOGIA | BL116: Caldaia Trad Gas | BN116: Caldaia Condens Gas | BP116: Caldaia Pellet | BT116: COP PC ACS | BU116: 2.8 | CB116: Classe | CC116: SCOP max | CD116: SCOP min | CE116: SCOP med | CF116: SEER min | CG116: SEER max | CH116: SEER med | CJ116: Azimut | CK116: Valore | CM116: Tilt | CN116: Valore | CQ116: Ric. max | CR116: Infiltr. | CS116: Ric. med.
E117: Deumidificatore portatile | L117: 10 | BC117: Sistema di GENERAZIONE | BG117: =IF($BP$110<>"",$BP$110,$BX$108) -> Caldaia Trad Gas | BJ117: Descrizione libera | BL117: Caldaia a gas naturale tradizionale | BN117: Caldaia a gas naturale a condensazione | BP117: Caldaia a pellet | CB117: A+++ | CC117: =CD117*1.1 -> 5.61 | CD117: 5.1 | CE117: =AVERAGE(CC117:CD117) -> 5.355 | CF117: =CG117*1.1 -> 9.35 | CG117: 8.5 | CH117: =AVERAGE(CF117:CG117) -> 8.925 | CJ117: Est (-90°) | CK117: -90 | CM117: Orizzontale (0°) | CN117: 0 | CP117: Inverno | CQ117: 3 | CR117: 0.2 | CS117: =CR117+BH108/24*CQ117 -> 0.325 | CT117: vol/h
BC118: Sistema di EMISSIONE | BG118: =IF($BG$117=$BP$107,$CI$107,VLOOKUP($J$106,$CH$104:$CI$106,2,FALSE)) -> Radiatori Tradizionali | BJ118: Limitazioni | CB118: A++ | CC118: 5.1 | CD118: 4.6 | CE118: 4.85 | CF118: 8.5 | CG118: 6.1 | CH118: 7.3 | CJ118: Sud-Est (-75°) | CK118: -75 | CM118: 10° | CN118: 10 | CP118: Estate | CQ118: 3 | CR118: 0.2 | CS118: =CR118+BH109/24*CQ118 -> 0.575 | CT118: vol/h
C119: 3.3 | E119: IMPIANTO DI PREPARAZIONE DELL'ACQUA CALDA SANITARIA | BC119: Sistema di REGOLAZIONE | BG119: =IF($BG$117=$BP$107,$CL$110,VLOOKUP($J$107,$CK$105:$CL$109,2,FALSE)) -> Zona(On/Off) | BJ119: Dati generali | CB119: A+ | CC119: 4.6 | CD119: 4 | CE119: 4.3 | CF119: 6.1 | CG119: 5.6 | CH119: 5.85 | CJ119: Sud-Est (-60°) | CK119: -60 | CM119: 20° | CN119: 20
E120: =IF(J121="","! ! !","") ->  | F120: =IF(E120="","","ATTENZIONE: C'E UN ERRORE IN QUESTO PARAGRAFO") ->  | BC120: Sistema di DISTRIBUZIONE | BG120: =IF($BG$117=$BP$107,$CP$107,IF($J$106=$CH$105,$CP$106,IF($J$103=$BL$105,$CP$104,$CP$105))) -> Tubaz.AcquaAltaTempCentralizz. | BJ120: Funzionalità | BL120: =IF(VLOOKUP($J$104,$BO$105:$BP$107,2,FALSE)=BL$116,IF($J$121=$J$104,$CZ$106,$CZ$104),$CZ$104) -> Solo riscaldamento | BN120: =IF(VLOOKUP($J$104,$BO$105:$BP$107,2,FALSE)=BN$116,IF($J$121=$J$104,$CZ$106,$CZ$104),$CZ$104) -> Solo riscaldamento | BP120: =IF(VLOOKUP($J$104,$BO$105:$BP$107,2,FALSE)=BP$116,IF($J$121=$J$104,$CZ$106,$CZ$104),$CZ$104) -> Solo riscaldamento | CB120: A | CC120: 4 | CD120: 3.4 | CE120: 3.7 | CF120: 5.6 | CG120: 5.1 | CH120: 5.35 | CJ120: Sud-Est (-45°) | CK120: -45 | CM120: 30° (ottimale) | CN120: 30 | CS120: PORTATA ARIA | CU120: POTENZA DEI VENTILATORI | CY120: Fattori di utilizzo INVERNALI | DC120: Fattori di utilizzo ESTIVI
E121: Tipo di impianto di preparazione dell'acqua calda sanitaria | J121: Caldaia a gas istantanea | CB121: B | CC121: 3.4 | CD121: 3.1 | CE121: 3.25 | CF121: 5.1 | CG121: 4.6 | CH121: 4.85 | CJ121: Sud-Est (-30°) | CK121: -30 | CM121: 40° | CN121: 40 | CS121: Portata nominale | CU121: Potenza nominale | CW121: Fatt. pot. | CX121: Q. carico termico | CY121: nelle ore attive | DA121: nelle ore non attive | DC121: nelle ore attive | DE121: nelle ore non attive
BC122: CONFIG. RAFFRESCAM- TRASF. A.E. | BJ122: FABBISOGNI ACS - TRASF. A.E. | BS122: Fattore invernale | BU122: 1 | BW122: Fattore estivo | BY122: 0.8 | CB122: C | CC122: 3.1 | CD122: 2.8 | CE122: 2.95 | CF122: 4.6 | CG122: 4.1 | CH122: 4.35 | CJ122: Sud-Est (-15°) | CK122: -15 | CM122: 50° | CN122: 50 | CS122: [vol/h] | CT122: [m3/h] | CU122: [W / m3/h] | CV122: [kW] | CW122: cosφ | CY122: di giorno | CZ122: di notte | DA122: di giorno | DB122: di notte | DC122: di giorno | DD122: di notte | DE122: di giorno | DF122: di notte
C123: 3.4 | E123: IMPIANTO SOLARE TERMICO (per acqua calda) | BC123: IMPIANTO 1 (Priorità 1) | BM123: TEMPERATURE | BP123: FABBISOGNO MAX DI ACQUA | BR123: MAX P. | BS123: Fattori di utilizzo INVERNALI | BW123: Fattori di utilizzo ESTIVI | CB123: D | CC123: 2.8 | CD123: 2.5 | CE123: 2.65 | CF123: 4.1 | CG123: 3.6 | CH123: 3.85 | CJ123: Sud (0° - ottimale) | CK123: 0 | CM123: 60° | CN123: 60 | CP123: VENTILAZ. CON ARIA ESTERNA
E124: =IF(J125=$BZ$104,"",IF(OR(J125="",J126="",NOT(ISNUMBER(J126)),J127="",NOT(ISNUMBER(J127)),J128="",NOT(ISNUMBER(J128))),"! ! !","")) ->  | F124: =IF(E124="","","ATTENZIONE: C'E UN ERRORE IN QUESTO PARAGRAFO") ->  | BC124: Sistema di GENERAZIONE | BG124: =IF($BX$108<>"",$BX$108,"") -> Split | BM124: Ingresso | BN124: Erogaz. | BO124: DT | BR124: ORARIA | BS124: nelle ore attive | BU124: nelle ore non attive | BW124: nelle ore attive | BY124: nelle ore non attive | CB124: E | CC124: 2.5 | CD124: 2.2 | CE124: 2.35 | CF124: 3.6 | CG124: 3.1 | CH124: 3.35 | CJ124: Sud-Ovest (15°) | CK124: 15 | CM124: 70° | CN124: 70 | CP124: Vent. naturale esterna | CS124: =MAX(CQ117:CQ118)+CR117 -> 3.2 | CY124: =3*CS117/(CY126+2)/CS124 -> 0.1384943182 | CZ124: =CY126*CY124 -> 0.02769886364 | DA124: =CY124 -> 0.1384943182 | DB124: =CZ124 -> 0.02769886364 | DC124: =3*CS118/(DC126+2)/CS124 -> 0.1796875 | DD124: =DC126*DC124 -> 0.1796875 | DE124: =DC124 -> 0.1796875 | DF124: =DD124 -> 0.1796875
E125: Tipo di impianto | J125: Nessuno | BC125: Sistema di EMISSIONE | BG125: =IF($BG$124<>"",$CI$107,"") -> Unità Espansione Diretta | BJ125: TIPO DI UTENZA | BM125: [°C] | BN125: [°C] | BO125: [°C] | BP125: [litri/ora] | BQ125: [mc/G] | BR125: [kW] | BS125: di giorno | BT125: di notte | BU125: di giorno | BV125: di notte | BW125: di giorno | BX125: di notte | BY125: di giorno | BZ125: di notte | CB125: F | CC125: 2.2 | CD125: 1.9 | CE125: 2.05 | CF125: 3.1 | CG125: 2.6 | CH125: 2.85 | CJ125: Sud-Ovest (30°) | CK125: 30 | CM125: 80° | CN125: 80 | CP125: Vent. meccanica esterna
E126: Numero di pannelli solari termici | J126: 1 | BC126: Sistema di REGOLAZIONE | BG126: =IF($BG$124<>"",$CL$110,"") -> Clima+Ambiente, P banda 2° | BJ126: Abitanti | BM126: 15 | BN126: 35 | BO126: =IF(BN126>BM126,BN126-BM126,0) -> 20 | BP126: 600 | BQ126: =BP126/1000*24 -> 14.4 | BR126: =PARAMETRI!$K$133*BP126*BO126/1000000 -> 13.91640482 | BS126: =$BZ$127/$BP$126*CR$42*$BU$122 -> 0.00617816092 | BT126: =$BZ$127/$BP$126*CS$42*$BU$122 -> 0.008333333333 | BU126: =$BZ$127/$BP$126*CT$42*$BU$122 -> 0.008333333333 | BV126: =$BZ$127/$BP$126*CU$42*$BU$122 -> 0.008333333333 | BW126: =$BZ$127/$BP$126*CW$42*BY122 -> 0.005277777778 | BX126: =$BZ$127/$BP$126*CX$42*BY122 -> 0 | BY126: =$BZ$127/$BP$126*CY$42*BY122 -> 0.006666666667 | BZ126: =$BZ$127/$BP$126*CZ$42*BY122 -> 0.006666666667 | CB126: G | CC126: 1.9 | CD126: =CC126/1.2 -> 1.583333333 | CE126: 1.741666667 | CF126: 2.6 | CG126: =CF126/1.2 -> 2.166666667 | CH126: 2.383333333 | CJ126: Sud-Ovest (45°) | CK126: 45 | CM126: Verticale (90°) | CN126: 90 | CX126: Rapp. notte/giorno | CY126: 0.2 | DB126: Rapp. notte/giorno | DC126: 1
E127: Inclinazione (tilt) | J127: 45 | L127: ° | BC127: Sistema di DISTRIBUZIONE | BG127: =IF($BG$124<>"",$CP$107,"") -> Tubaz.GasRefrig. | BY127: Litri/ora/persona | BZ127: =IF(J166>0,2.5,3.5) -> 2.5 | CJ127: Sud-Ovest (60°) | CK127: 60
E128: Orientamento rispetto al sud (azimut) | J128: 0 | L128: ° | CJ128: Sud-Ovest (75°) | CK128: 75
BC129: CONFIG. ACS - TRASF. A.E. | CJ129: Ovest (90°) | CK129: 90
C130: 3.5 | E130: IMPIANTO SOLARE FOTOVOLTAICO (per energia elettrica) | BC130: IMPIANTO 1 (Priorità 1)
E131: =IF(J132=0,"",IF(OR(J132="",J132<0,NOT(ISNUMBER(J132)),J133="",NOT(ISNUMBER(J133)),J134="",NOT(ISNUMBER(J134))),"! ! !","")) ->  | F131: =IF(E131="","","ATTENZIONE: C'E UN ERRORE IN QUESTO PARAGRAFO") ->  | BC131: Sistema di GENERAZIONE | BG131: =IF($BU$110<>"",$BU$110,IF($BU$114<>"",$BU$114,$BP$110)) -> Caldaia Trad. ACS
E132: Potenza dell'impianto fotovoltaico | J132: 1 | L132: kWp | M132: Potenza consigliata: | P132: =(J255+BE265)/CK474 -> 1.626795974 | Q132: kWp | BC132: Sistema di EROGAZIONE | BG132: Erogazione standard
E133: Inclinazione (tilt) | J133: 30 | L133: ° | M133: Stima max potenza installabile: | P133: =++J83/J39*J38/19.8 -> 4 | Q133: kWp | BC133: Sistema di DISTRIBUZIONE | BG133: Distrib. ACS
E134: Orientamento rispetto al sud (azimut) | J134: 0 | L134: ° | BC134: Sistema di ACCUMULO | BG134: =IF($CA$111<>"",$CS$106,IF(OR($BU$114<>"",$BU$110=$BU$105),$CS$105,$CS$104)) -> Nessun accumulo
E135: Capacità della batteria di accumulo | J135: 5.9 | L135: kWh | M135: Valore consigliato: | P135: =J132*SOLUZIONE01!$T$3369/365 -> 4.188791096 | Q135: kWh | BC135: Sistema di ACCUMULO PER ACS 2 | BG135: =IF($CA$111<>"",$CS$106,$CS$105) -> Accumulo 80 litri interno
V136: pagina 2 fino a qui
B137: 4. | D137: ELETTRODOMESTICI
C139: 4.1 | E139: CUCINA
E140: =IF(OR(N142<>"",N143<>"",N144<>"",AZ159<>"",AZ160<>"",AZ161<>"",AZ162<>"",AZ163<>"",AZ164<>"",AZ165<>""),"! ! !","") ->  | F140: =IF(E140="","","ATTENZIONE: C'E UN ERRORE IN QUESTO PARAGRAFO") -> 
J141: Elettrico a induzione | L141: MINUTI USO GIORN.
E142: Piano cottura | J142: A gas | L142: 120 | N142: =IF(OR(J142="",AND(L142<>"",NOT(ISNUMBER(L142)),L142<0)),"! ! !","") ->  | BC142: PIANO COTTURA | BF142: STAMPANTE | BI142: CICLI LAVAGGIO/ASCIUGATURA | BL142: CICLI LAVASTOVIGLIE | BO142: FRIGO - CLASSI | BT142: FRIGO, dati da REg.UE 1060/2010 | BY142: LAVATRICE - CLASSI | CD142: ASCIUGATRICE - CLASSI | CI142: LAVASTOVIGLIE - CLASSI | CN142: LAVASCIUGA - CLASSI | CQ142: Consumo in kWh/kg per ciclo
E143: Forno a microonde | L143: 10 | N143: =IF(AND(L143<>"",OR(NOT(ISNUMBER(L143)),L143<0)),"! ! !","") ->  | BC143: Tipo | BD143: Rendim. | BF143: Tipo | BI143: Dicitura | BJ143: Valore | BL143: Dicitura | BM143: Valore | BO143: Classe | BP143: EEI max | BQ143: EEI min | BR143: EEI med | BT143: Tipo | BU143: M | BV143: N | BW143: CH [kWh/anno] | BY143: Classe | BZ143: EEI max | CA143: EEI min | CB143: EEI med | CD143: Classe | CE143: EEI max | CF143: EEI min | CG143: EEI med | CI143: Classe | CJ143: EEI max | CK143: EEI min | CL143: EEI med | CN143: Classe | CO143: EEI max | CP143: EEI min | CQ143: EEI med
E144: Forno | J144: Elettrico | L144: 20 | N144: =IF(AND(L144<>"",OR(NOT(ISNUMBER(L144)),L144<0)),"! ! !","") ->  | V144: RIGA CON INPUT eliminato | BC144: A gas | BD144: 0.55 | BF144: Nessuna | BI144: Nessuno | BJ144: 0 | BL144: Nessuno | BM144: 0 | BO144: A+++ | BP144: =BQ144/1.1 -> 20 | BQ144: 22 | BR144: =AVERAGE(BP144:BQ144) -> 21 | BT144: Nessuno | BY144: A+++ | BZ144: =CA144/1.1 -> 41.81818182 | CA144: 46 | CB144: =AVERAGE(BZ144:CA144) -> 43.90909091 | CD144: A+++ | CE144: =CF144/1.1 -> 21.81818182 | CF144: 24 | CG144: =AVERAGE(CE144:CF144) -> 22.90909091 | CI144: A+++ | CJ144: =CK144/1.1 -> 45.45454545 | CK144: 50 | CL144: =AVERAGE(CJ144:CK144) -> 47.72727273 | CN144: A | CO144: =CP144/1.1 -> 0.6181818182 | CP144: 0.68 | CQ144: =AVERAGE(CO144:CP144) -> 0.6490909091
V145: RIGA CON INPUT eliminato | BC145: Elettrico | BD145: 0.6 | BF145: Getto di inchiostro | BI145: 0.5 | BJ145: 0.5 | BL145: 0.5 | BM145: 0.5 | BO145: A++ | BP145: 22 | BQ145: 33 | BR145: =AVERAGE(BP145:BQ145) -> 27.5 | BT145: Frigorifero a temperatura moderata o cantina (0 stelle) | BU145: 0.233 | BV145: 245 | BW145: 50 | BY145: A++ | BZ145: 46 | CA145: 52 | CB145: =AVERAGE(BZ145:CA145) -> 49 | CD145: A++ | CE145: 24 | CF145: 32 | CG145: =AVERAGE(CE145:CF145) -> 28 | CI145: A++ | CJ145: 50 | CK145: 56 | CL145: =AVERAGE(CJ145:CK145) -> 53 | CN145: B | CO145: =+CP144 -> 0.68 | CP145: 0.81 | CQ145: =AVERAGE(CO145:CP145) -> 0.745
V146: RIGA CON INPUT eliminato | BC146: Elettrico a induzione | BD146: 0.9 | BF146: Laser | BI146: 1 | BJ146: 1 | BL146: 1 | BM146: 1 | BO146: A+ | BP146: 33 | BQ146: 43 | BR146: 38 | BT146: Frigorifero con scomparto a 1 stella | BU146: 0.643 | BV146: 191 | BW146: 50 | BY146: A+ | BZ146: 52 | CA146: 59 | CB146: 55.5 | CD146: A+ | CE146: 32 | CF146: 42 | CG146: 37 | CI146: A+ | CJ146: 56 | CK146: 63 | CL146: 59.5 | CN146: C | CO146: 0.81 | CP146: 0.93 | CQ146: 0.87
V147: RIGA CON INPUT eliminato | BI147: 1.5 | BJ147: 1.5 | BL147: 1.5 | BM147: 1.5 | BO147: A | BP147: 43 | BQ147: 55 | BR147: 49 | BT147: Frigorifero con scomparto a 2 stelle | BU147: 0.45 | BV147: 245 | BW147: 50 | BY147: A | BZ147: 59 | CA147: 68 | CB147: 63.5 | CD147: A | CE147: 42 | CF147: 65 | CG147: 53.5 | CI147: A | CJ147: 63 | CK147: 71 | CL147: 67 | CN147: D | CO147: 0.93 | CP147: 1.05 | CQ147: 0.99
V148: RIGA CON INPUT eliminato | BF148: CONNESSIONE INTERNET | BI148: 1,9 (val. medio per 1 persona) | BJ148: 1.9 | BL148: 2 | BM148: 2 | BO148: B | BP148: 55 | BQ148: 75 | BR148: 65 | BT148: Frigorifero con scomparto a 3 stelle | BU148: 0.777 | BV148: 303 | BW148: 50 | BY148: B | BZ148: 67 | CA148: 77 | CB148: 72 | CD148: B | CE148: 65 | CF148: 76 | CG148: 70.5 | CI148: B | CJ148: 71 | CK148: 80 | CL148: 75.5 | CN148: E | CO148: 1.05 | CP148: 1.17 | CQ148: 1.11
V149: RIGA CON INPUT eliminato | BF149: Tipo | BI149: 2 | BJ149: 2 | BL149: 2.5 | BM149: 2.5 | BO149: C | BP149: 75 | BQ149: 95 | BR149: 85 | BT149: Frigo-congelatore | BU149: 0.777 | BV149: 303 | BW149: 50 | BY149: C | BZ149: 77 | CA149: 87 | CB149: 82 | CD149: C | CE149: 76 | CF149: 85 | CG149: 80.5 | CI149: C | CJ149: 80 | CK149: 90 | CL149: 85 | CN149: F | CO149: 1.17 | CP149: 1.29 | CQ149: 1.23
V150: RIGA CON INPUT eliminato | BF150: Nessuna | BI150: 2.5 | BJ150: 2.5 | BL150: 2,6 (val. medio per 1 persona) | BM150: 2.6 | BO150: D | BP150: 95 | BQ150: 110 | BR150: 102.5 | BT150: Congelatore verticale | BU150: 0.539 | BV150: 315 | BW150: 50 | BY150: D | BZ150: 87 | CA150: =BZ150*1.2 -> 104.4 | CB150: 95.7 | CD150: D | CE150: 85 | CF150: =CE150*1.2 -> 102 | CG150: 93.5 | CI150: D | CJ150: 90 | CK150: =CJ150*1.2 -> 108 | CL150: 99 | CN150: G | CO150: 1.29 | CP150: =CO150*1.2 -> 1.548 | CQ150: 1.419
BF151: A consumo (connessione a tempo) | BI151: 2,9 (val. medio per 2 persone) | BJ151: 2.9 | BL151: 3 | BM151: 3 | BO151: E | BP151: 110 | BQ151: 125 | BR151: 117.5 | BT151: Congelatore a pozzetto | BU151: 0.472 | BV151: 286 | BW151: 50
BC152: Potenza cottura utile | BD152: 2700 | BE152: W | BF152: Flat (sempre connessa) | BI152: 3 | BJ152: 3 | BL152: 3.5 | BM152: 3.5 | BO152: F | BP152: 125 | BQ152: 150 | BR152: 137.5 | BT152: 1 | BU152: 2 | BV152: 3 | BW152: 4
C153: 4.2 | E153: REFRIGERAZIONE | BI153: 3.5 | BJ153: 3.5 | BL153: 3,6 (val. medio per 2 persone) | BM153: 3.6 | BO153: G | BP153: 150 | BQ153: =BP153*1.2 -> 180 | BR153: 165
E154: =IF(OR(N156<>"",N157<>"",N158<>"",N159<>""),"! ! !","") ->  | F154: =IF(E154="","","ATTENZIONE: C'E UN ERRORE IN QUESTO PARAGRAFO") ->  | BC154: CUCINA - ASSORBIMENTI ELETTRICI | BI154: 4 | BJ154: 4 | BL154: 4 | BM154: 4
E155: TIPO DI FRIGORIFERO | J155: VOLUME [litri] | L155: CLASSE ENERGETICA | BC155: Nome | BD155: Pn [W] | BE155: Tempo [ore/g] | BF155: Pmed [W] | BG155: Fu | BI155: 4,4 (val. medio per 3 persone) | BJ155: 4.4 | BL155: 4,5 (val. medio per 3 persone) | BM155: 4.5 | BO155: REFRIGERAZIONE - ASSORBIMENTI ELETTRICI | BW155: Elenco capacità lavatrice/asciugatrice [kg], lavastoviglie [coperti] | BY155: LAVAGGIO, ASCIUGATURA, STIRATURA - CALCOLI | CI155: LAVAGGIO, ASCIUGATURA, STIRATURA - ASSORB. ELETTRICI
E156: Frigo-congelatore | J156: 320 | L156: A+ | N156: =IF(AND(E156<>"Nessuno",OR(NOT(ISNUMBER(J156)),J156<0,L156="")),"! ! !","") ->  | BC156: =E142 -> Piano cottura | BD156: =IF($J$142=$BC$146,BD152/$BD$146,IF($J$142=$BC$145,BD152/$BD$145,0)) -> 0 | BE156: =$L$142/60 -> 2 | BF156: =BD156*BE156/24 -> 0 | BG156: =IFERROR(BF156/BD156,0) -> 0 | BI156: 4.5 | BJ156: 4.5 | BL156: 5 | BM156: 5 | BO156: Tipo | BP156: Veq | BQ156: SAEc | BR156: AEc [kWh/anno] | BS156: Pn [W] | BT156: Pmed [W] | BU156: Fu | BW156: Assente | BY156: Tipo | BZ156: Capacità | CA156: SAEc [kWh] | CB156: cicli_s | CC156: AEc [kWh/anno] | CD156: cicli_eff | CE156: Pn [W] | CF156: Pmed [W] | CG156: Fu | CI156: Nome | CJ156: Pn [W] | CK156: Tempo [ore/g] | CL156: Pmed [W] | CM156: Fu
E157: Congelatore a pozzetto | J157: 125 | L157: A+ | N157: =IF(AND(E157<>"Nessuno",OR(NOT(ISNUMBER(J157)),J157<0,L157="")),"! ! !","") ->  | BC157: =E143 -> Forno a microonde | BD157: 819 | BE157: =L143/60 -> 0.1666666667 | BF157: =BD157*BE157/24 -> 5.6875 | BG157: =IFERROR(BF157/BD157,0) -> 0.006944444444 | BI157: 5 | BJ157: 5 | BL157: 5,4 (val. medio per 4 persone) | BM157: 5.4 | BO157: =E156 -> Frigo-congelatore | BP157: =IF(BO157=$BT$144,0,J156) -> 320 | BQ157: =+BP157*VLOOKUP($BO157,$BT$144:$BW$151,BU$152,FALSE)+VLOOKUP($BO157,$BT$144:$BW$151,BV$152,FALSE)+VLOOKUP($BO157,$BT$144:$BW$151,BW$152,FALSE) -> 601.64 | BR157: =BQ157*VLOOKUP(L156,$BO$144:$BR$153,4,FALSE)/100 -> 228.6232 | BS157: =BT157*2.5 -> 65.24634703 | BT157: =BR157/365/24*1000 -> 26.09853881 | BU157: =IFERROR(BT157/BS157,0) -> 0.4 | BW157: 5 | BY157: =E164 -> Lavatrice | BZ157: =+H164 -> 7 | CA157: =IF(OR(BZ157=BW156,BZ157=0),0,47*BZ157+51.7) -> 380.7 | CB157: 220 | CC157: =IFERROR(CA157*VLOOKUP($M164,$BY$144:$CB$150,4,FALSE)/100,0) -> 211.2885 | CD157: =IFERROR(VLOOKUP($J164,$BI$144:$BJ$169,2,FALSE),0) -> 5 | CE157: 2000 | CF157: =CC157/CB157*CD157*1000/24/7 -> 28.58340097 | CG157: =IFERROR(CF157/CE157,0) -> 0.01429170049 | CI157: =E164 -> Lavatrice | CJ157: =CE157 -> 2000 | CL157: =CF157 -> 28.58340097 | CM157: =IFERROR(CL157/CJ157,0) -> 0.01429170049
E158: Nessuno | J158: 250 | L158: A+++ | N158: =IF(AND(E158<>"Nessuno",OR(NOT(ISNUMBER(J158)),J158<0,L158="")),"! ! !","") ->  | AQ158: INPUT CONGELATI | AX158: valori medi | BC158: =E144 -> Forno | BD158: 2200 | BE158: =IF(J144="Elettrico",L144/60,0) -> 0.3333333333 | BF158: 30.55555556 | BG158: 0.01388888889 | BI158: 5,6 (val. medio per 4 persone) | BJ158: 5.6 | BL158: 5,8 (val. medio per 5 o più persone) | BM158: 5.8 | BO158: =E157 -> Congelatore a pozzetto | BP158: =IF(BO158=$BT$144,0,J157) -> 125 | BQ158: =+BP158*VLOOKUP($BO158,$BT$144:$BW$151,BU$152,FALSE)+VLOOKUP($BO158,$BT$144:$BW$151,BV$152,FALSE)+VLOOKUP($BO158,$BT$144:$BW$151,BW$152,FALSE) -> 395 | BR158: =BQ158*VLOOKUP(L157,$BO$144:$BR$153,4,FALSE)/100 -> 150.1 | BS158: =BT158*2.5 -> 42.83675799 | BT158: =BR158/365/24*1000 -> 17.1347032 | BU158: =IFERROR(BT158/BS158,0) -> 0.4 | BW158: 6 | BY158: =E165 -> Asciugatrice | BZ158: =+H165 -> 0 | CA158: =IF(OR(BZ158=BW156,BZ158=0),0,140*BZ158^0.8) -> 0 | CB158: 160 | CC158: =IFERROR(CA158*VLOOKUP($M165,$CD$144:$CG$150,4,FALSE)/100,0) -> 0 | CD158: =IFERROR(VLOOKUP($J165,$BI$144:$BJ$169,2,FALSE),0) -> 0 | CE158: 1000 | CF158: =CC158/CB158*CD158*1000/24/7 -> 0 | CG158: =IFERROR(CF158/CE158,0) -> 0 | CI158: =E165 -> Asciugatrice | CJ158: =CE158 -> 1000 | CL158: =CF158 -> 0 | CM158: 0
V159: RIGA CON INPUT eliminato | AQ159: Griglia | AX159: 4.7 | AZ159: =IF(AND(AX159<>"",OR(NOT(ISNUMBER(AX159)),AX159<0)),"! ! !","") ->  | BC159: =AQ159 -> Griglia | BD159: 2200 | BE159: =AX159/60 -> 0.07833333333 | BF159: 7.180555556 | BG159: 0.003263888889 | BI159: 6 | BJ159: 6 | BL159: 6 | BM159: 6 | BO159: =E158 -> Nessuno | BP159: =IF(BO159=$BT$144,0,J158) -> 0 | BQ159: =+BP159*VLOOKUP($BO159,$BT$144:$BW$151,BU$152,FALSE)+VLOOKUP($BO159,$BT$144:$BW$151,BV$152,FALSE)+VLOOKUP($BO159,$BT$144:$BW$151,BW$152,FALSE) -> 0 | BR159: =BQ159*VLOOKUP(L158,$BO$144:$BR$153,4,FALSE)/100 -> 0 | BS159: =BT159*2.5 -> 0 | BT159: =BR159/365/24*1000 -> 0 | BU159: =IFERROR(BT159/BS159,0) -> 0 | BW159: 7 | BY159: =E166 -> Lavastoviglie | BZ159: =+H166 -> 0 | CA159: =IF(OR(BZ159=BW156,BZ159=0),0,25.2*BZ159+126) -> 0 | CB159: 280 | CC159: =IFERROR(CA159*VLOOKUP($M166,$CI$144:$CL$150,4,FALSE)/100,0) -> 0 | CD159: =IFERROR(VLOOKUP($J166,$BL$144:$BM$169,2,FALSE),0) -> 0 | CE159: 2200 | CF159: =CC159/CB159*CD159*1000/24/7 -> 0 | CG159: =IFERROR(CF159/CE159,0) -> 0 | CI159: =E166 -> Lavastoviglie | CJ159: =CE159 -> 2200 | CL159: =CF159 -> 0 | CM159: 0
AQ160: Bistecchiera/Piastra elettrica | AX160: 0 | BC160: Bistecchiera/Piastra elettrica | BD160: 2200 | BE160: 0 | BF160: 0 | BG160: 0 | BI160: 6,8 (val. medio per 5 persone) | BJ160: 6.8 | BL160: 7 | BM160: 7 | BO160: Nessuno | BP160: 0 | BQ160: 0 | BR160: 0 | BS160: 0 | BT160: 0 | BU160: 0 | BW160: 8 | BY160: Lavasciuga | BZ160: =+H167 -> 0 | CB160: 160 | CC160: =IFERROR(BZ160*CB160*VLOOKUP($M167,$CN$144:$CQ$150,4,FALSE),0) -> 0 | CD160: =IFERROR(VLOOKUP($J167,$BI$144:$BJ$169,2,FALSE),0) -> 0 | CE160: 2000 | CF160: =CC160/CB160*CD160*1000/24/7 -> 0 | CG160: =IFERROR(CF160/CE160,0) -> 0 | CI160: =E167 -> Lavasciuga | CJ160: 2000 | CL160: =CF160 -> 0 | CM160: 0
C161: 4.3 | E161: LAVAGGIO, PULIZIA E STIRATURA | AQ161: Tostapane | AX161: 0 | BC161: Tostapane | BD161: 573 | BE161: 0 | BF161: 0 | BG161: 0 | BI161: 7 | BJ161: 7 | BL161: 8 | BM161: 8 | BP161: TOT | BQ161: =SUM(BQ157:BQ160) -> 996.64 | BR161: =SUM(BR157:BR160) -> 378.7232 | BS161: =SUM(BS157:BS160) -> 108.083105 | BT161: =SUM(BT157:BT160) -> 43.23324201 | BU161: =IFERROR(BT161/BS161,0) -> 0.4 | BW161: 9 | BZ161: TOT | CA161: =SUM(CA157:CA160) -> 380.7 | CC161: =SUM(CC157:CC160) -> 211.2885 | CE161: =SUM(CE157:CE160) -> 7200 | CF161: =SUM(CF157:CF160) -> 28.58340097 | CG161: =IFERROR(CF161/CE161,0) -> 0.003969916802 | CI161: =E170 -> Aspirapolvere | CJ161: 1463 | CK161: =J170/60 -> 0.08333333333 | CL161: =CJ161*CK161/24 -> 5.079861111 | CM161: 0.003472222222
E162: =IF(OR(O164<>"",O165<>"",O166<>"",O167<>"",L170<>"",L171<>"",L172<>"",L173<>""),"! ! !","") ->  | F162: =IF(E162="","","ATTENZIONE: C'E UN ERRORE IN QUESTO PARAGRAFO") ->  | AQ162: Macchina caffè espresso elettrica | AX162: 0 | BC162: Macchina caffè espresso elettrica | BD162: 1176 | BE162: 0 | BF162: 0 | BG162: 0 | BI162: 8 | BJ162: 8 | BL162: 9 | BM162: 9 | BW162: 10 | CI162: =E171 -> Scopa elettrica | CJ162: 1350 | CK162: =J171/60 -> 0 | CL162: =CJ162*CK162/24 -> 0 | CM162: 0
H163: CAPACITA' DI CARICO [kg o coperti] | J163: CICLI SETTIMANALI | M163: CLASSE ENERGETICA | AQ163: Macchina moka elettrica | AX163: 0 | BC163: Macchina moka elettrica | BD163: 443 | BE163: 0 | BF163: 0 | BG163: 0 | BI163: 9 | BJ163: 9 | BL163: 10 | BM163: 10 | BO163: RAFFRESCAMENTO PORTATILE - ASSORBIMENTI | BW163: 11 | CI163: =E172 -> Ferro da stiro senza caldaia | CJ163: 1287 | CK163: =J172/60 -> 0 | CL163: =CJ163*CK163/24 -> 0 | CM163: 0
E164: Lavatrice | G164: [kg] | H164: 7 | J164: 5 | M164: A+ | O164: =IF(AND(AND(H164<>"",H164<>$BW$156),OR(J164="",M164="")),"! ! !","") ->  | AQ164: Frullatore | AX164: 0 | BC164: Frullatore | BD164: 301 | BE164: 0 | BF164: 0 | BG164: 0 | BI164: 10 | BJ164: 10 | BL164: 11 | BM164: 11 | BO164: Nome | BP164: Pn [W] | BQ164: Tempo [ore/g] | BR164: Pmed [W] | BS164: Fu | BW164: 12 | CI164: =E173 -> Ferro da stiro con caldaia | CJ164: 2043 | CK164: =J173/60 -> 0 | CL164: =CJ164*CK164/24 -> 0 | CM164: 0
E165: Asciugatrice | G165: [kg] | J165: 5,8 (val. medio per 5 o più persone) | M165: B | O165: =IF(AND(AND(H165<>"",H165<>$BW$156),OR(J165="",M165="")),"! ! !","") ->  | AQ165: Robot cucina | AX165: 0 | BC165: Robot cucina | BD165: 780 | BE165: 0 | BF165: 0 | BG165: 0 | BI165: 11 | BJ165: 11 | BL165: 12 | BM165: 12 | BO165: =E116 -> Ventilatore | BP165: =J116*51 -> 0 | BQ165: =L116 -> 10 | BR165: =BP165*BQ165/24 -> 0 | BS165: =IFERROR(BR165/BP165,0) -> 0 | BW165: 13 | CI165: TOTALE | CJ165: =SUM(CJ157:CJ164) -> 13343 | CL165: =SUM(CL157:CL164) -> 33.66326209 | CM165: 0.002522915543
E166: Lavastoviglie | G166: [coperti] | J166: 6,8 (val. medio per 5 persone) | M166: A | O166: =IF(AND(AND(H166<>"",H166<>$BW$156),OR(J166="",M166="")),"! ! !","") ->  | BC166: TOTALE | BD166: =SUM(BD156:BD165) -> 10692 | BE166: =BB166/60 -> 0 | BF166: =SUM(BF156:BF165) -> 43.42361111 | BG166: 0.004061317912 | BI166: 12 | BJ166: 12 | BL166: 13 | BM166: 13 | BO166: =E117 -> Deumidificatore portatile | BP166: =J117*326 -> 0 | BQ166: =L117 -> 10 | BR166: =BP166*BQ166/24 -> 0 | BS166: =IFERROR(BR166/BP166,0) -> 0 | BW166: 14
E167: Lavasciuga | G167: [kg] | O167: =IF(AND(AND(H167<>"",H167<>$BW$156),OR(J167="",M167="")),"! ! !","") ->  | BI167: 13 | BJ167: 13 | BL167: 14 | BM167: 14 | BO167: TOTALE | BP167: =SUM(BP165:BP166) -> 0 | BQ167: =SUM(BQ165:BQ166) -> 20 | BR167: =SUM(BR165:BR166) -> 0 | BS167: =IFERROR(BR167/BP167,0) -> 0 | BW167: 15
J168: =MAX($J$31:$M$31) -> 2 | AQ168: =IF(OR(AZ170<>"",AZ171<>"",AZ172<>"",AZ173<>"",AV176<>"",AV177<>"",AV178<>"",AV179<>"",AV180<>""),"! ! !","") ->  | AR168: =IF(AQ168="","","ATTENZIONE: C'E UN ERRORE IN QUESTO PARAGRAFO") ->  | BI168: 14 | BJ168: 14 | BL168: 15 | BM168: 15 | BW168: 16
J169: MINUTI USO GIORN. | AO169: INPUT CONGELATI | AR169: QUANTITA' | AT169: DIMENSIONI [pollici] | AV169: CLASSE ENERGETICA | AX169: ORE USO GIORNALIERO | BC169: CUCINA A GAS | BI169: 15 | BJ169: 15
E170: Aspirapolvere | J170: 5 | L170: =IF(AND(J170<>"",OR(NOT(ISNUMBER(J170)),J170<0)),"! ! !","") ->  | AO170: Televisore o monitor 1 | AR170: 3 | AT170: 40" = 101,6 cm | AV170: A+ | AX170: 6 | AZ170: =IF(AND(AR170<>"",OR(NOT(ISNUMBER(AR170)),AR170<0,AT170="",AV170="",OR(NOT(ISNUMBER(AX170)),AX170<=0))),"! ! !","") ->  | BC170: Nome | BD170: Pn [W] | BE170: Tempo [ore/g] | BF170: Pmed [W] | BG170: Fu
E171: Scopa elettrica | L171: =IF(AND(J171<>"",OR(NOT(ISNUMBER(J171)),J171<0)),"! ! !","") ->  | AO171: Televisore o monitor 2 | AT171: 26" = 66 cm | AV171: A+ | AX171: 6 | AZ171: =IF(AND(AR171<>"",OR(NOT(ISNUMBER(AR171)),AR171<0,AT171="",AV171="",OR(NOT(ISNUMBER(AX171)),AX171<=0))),"! ! !","") ->  | BC171: =BC144 -> A gas | BD171: =IF($J$142=$BC$144,BD152/$BD$144,0) -> 4909.090909 | BE171: =$L$142/60 -> 2 | BF171: =BD171*BE171/24 -> 409.0909091 | BG171: =IFERROR(BF171/BD171,0) -> 0.08333333333
E172: Ferro da stiro senza caldaia | L172: =IF(AND(J172<>"",OR(NOT(ISNUMBER(J172)),J172<0)),"! ! !","") ->  | AO172: Televisore o monitor 3 | AT172: 20" = 50.8 cm | AV172: A+ | AX172: 1 | AZ172: =IF(AND(AR172<>"",OR(NOT(ISNUMBER(AR172)),AR172<0,AT172="",AV172="",OR(NOT(ISNUMBER(AX172)),AX172<=0))),"! ! !","") ->  | BC172: Forno a gas | BD172: 2200 | BE172: =IF(J144="A gas",L144/60,0) -> 0 | BF172: =BD172*BE172/24 -> 0 | BG172: =IFERROR(BF172/BD172,0) -> 0
E173: Ferro da stiro con caldaia | L173: =IF(AND(J173<>"",OR(NOT(ISNUMBER(J173)),J173<0)),"! ! !","") ->  | AO173: Televisore o monitor 4 | AT173: 15" = 13,7 cm | AV173: F | AX173: 2 | AZ173: =IF(AND(AR173<>"",OR(NOT(ISNUMBER(AR173)),AR173<0,AT173="",AV173="",OR(NOT(ISNUMBER(AX173)),AX173<=0))),"! ! !","") ->  | BC173: TOTALE | BD173: =SUM(BD171:BD172) -> 7109.090909 | BE173: =SUM(BE171:BE172) -> 2 | BF173: =SUM(BF171:BF172) -> 409.0909091 | BG173: =IFERROR(BF173/BD173,0) -> 0.05754475703
AR175: QUANTITA' | AT175: ORE USO GIORNALIERO | BC175: FORNO
C176: 4.4 | E176: ILLUMINAZIONE | AO176: Decoder | AT176: 2 | AV176: =IF(AND(AR176<>"",OR(NOT(ISNUMBER(AR176)),AR176<0,OR(NOT(ISNUMBER(AT176)),AT176<=0))),"! ! !","") ->  | BC176: Elettrico
E177: =IF(OR(L182<>"",L183<>"",L184<>"",L185<>""),"! ! !","") ->  | F177: =IF(E177="","","ATTENZIONE: C'E UN ERRORE IN QUESTO PARAGRAFO") ->  | AO177: Videoregistratore | AT177: 2 | AV177: =IF(AND(AR177<>"",OR(NOT(ISNUMBER(AR177)),AR177<0,OR(NOT(ISNUMBER(AT177)),AT177<=0))),"! ! !","") ->  | BC177: A gas
E178: Inserisci qui sotto tutte le lampadine che hai a casa; non inserire lampade ad uso marginale (cappe, specchi, frigo, ecc.). | AO178: Lettore DVD | AT178: 2 | AV178: =IF(AND(AR178<>"",OR(NOT(ISNUMBER(AR178)),AR178<0,OR(NOT(ISNUMBER(AT178)),AT178<=0))),"! ! !","") -> 
AO179: Riproduttore audio (radio, stereo piccolo, ecc) | AT179: 2 | AV179: =IF(AND(AR179<>"",OR(NOT(ISNUMBER(AR179)),AR179<0,OR(NOT(ISNUMBER(AT179)),AT179<=0))),"! ! !","") -> 
AO180: Impianto hi-fi/home theatre | AT180: 3 | AV180: =IF(AND(AR180<>"",OR(NOT(ISNUMBER(AR180)),AR180<0,OR(NOT(ISNUMBER(AT180)),AT180<=0))),"! ! !","") -> 
E181: TIPO LAMPADE | J181: NUMERO DI LAMPADE | AO181: Altri apparecchi non inclusi nella lista possono essere inseriti in 4.8 | BC181: ILLUMINAZIONE - ASSORBIMENTI ELETTRICI | BH181: ASSORBIMENTO SCHERMI | BP181: TV- CLASSI | BY181: COMPUTER/INTERNET - ASSORBIMENTI
E182: Obsolete (lampade a incandescenza) | J182: 2 | L182: =IF(AND(J182<>"",OR(NOT(ISNUMBER(J182)),J182<0)),"! ! !","") ->  | BC182: Tipo | BD182: Pn [W/lamp] | BE182: N | BF182: Pn [W] | BH182: dicitura | BI182: diag [inch] | BJ182: diag [cm] | BK182: larg [cm] | BL182: alt [cm] | BM182: area [dm2] | BP182: Classe | BQ182: EEI max | BR182: EEI min | BS182: EEI med | BY182: Nome | BZ182: Pn [W] | CA182: Tempo [ore/g] | CB182: Pmed [W] | CC182: Fu
E183: Tradizionali (lampade alogene) | J183: 4 | L183: =IF(AND(J183<>"",OR(NOT(ISNUMBER(J183)),J183<0)),"! ! !","") ->  | BC183: Nessuna | BD183: 0 | BE183: 0 | BF183: =BD183*BE183 -> 0 | BH183: =BI183&_xlfn.UNICHAR(34)&" = "&ROUND(BJ183,1)&" cm" -> 13" = 33 cm | BI183: 13 | BJ183: =BI183*2.54 -> 33.02 | BK183: =$BJ183/25*16 -> 21.1328 | BL183: =$BJ183/25*9 -> 11.8872 | BM183: =BL183*BK183/100 -> 2.512098202 | BP183: A+++ | BQ183: =BR183/1.1 -> 0.09090909091 | BR183: 0.1 | BS183: =AVERAGE(BQ183:BR183) -> 0.09545454545 | BY183: =E206 -> Computer fisso | BZ183: =J206*170 -> 0 | CA183: =L206 -> 1 | CB183: =BZ183*CA183/24 -> 0 | CC183: =IFERROR(CB183/BZ183,0) -> 0
E184: A risparmio energetico (lampade fluorescenti) | J184: 10 | L184: =IF(AND(J184<>"",OR(NOT(ISNUMBER(J184)),J184<0)),"! ! !","") ->  | BC184: Obsoleta (lampade a incandescenza) | BD184: 60 | BE184: =J182 -> 2 | BF184: =BD184*BE184 -> 120 | BH184: =BI184&_xlfn.UNICHAR(34)&" = "&ROUND(BJ184,1)&" cm" -> 15" = 38.1 cm | BI184: 15 | BJ184: 38.1 | BK184: 24.384 | BL184: 13.716 | BM184: =BL184*BK184/100 -> 3.34450944 | BP184: A++ | BQ184: 0.1 | BR184: 0.16 | BS184: =AVERAGE(BQ184:BR184) -> 0.13 | BY184: =E207 -> Computer portatile | BZ184: =45*J207 -> 180 | CA184: =L207 -> 1 | CB184: =BZ184*CA184/24 -> 7.5 | CC184: 0.04166666667
E185: Ad alta efficienza (lampade, moduli o strisce LED) | J185: 2 | L185: =IF(AND(J185<>"",OR(NOT(ISNUMBER(J185)),J185<0)),"! ! !","") ->  | BC185: Tradizionale (lampade alogene) | BD185: 38 | BE185: =J183 -> 4 | BF185: =BD185*BE185 -> 152 | BH185: 17" = 43.2 cm | BI185: 17 | BJ185: 43.18 | BK185: 27.6352 | BL185: 15.5448 | BM185: 4.29583657 | BP185: A+ | BQ185: 0.16 | BR185: 0.23 | BS185: 0.195 | BY185: Modem | BZ185: 10 | CA185: =IF(AW187=BF152,24,IF(AW187=BF151,1,0)) -> 24 | CB185: =BZ185*CA185/24 -> 10 | CC185: 1
J186: =$J$41 -> 7 | BC186: A risparmio energetico (lampade fluorescenti) | BD186: 18 | BE186: =J184 -> 10 | BF186: =BD186*BE186 -> 180 | BH186: 20" = 50.8 cm | BI186: 20 | BJ186: 50.8 | BK186: 32.512 | BL186: 18.288 | BM186: 5.94579456 | BP186: A | BQ186: 0.23 | BR186: 0.3 | BS186: 0.265 | BY186: =AR190 -> Stampante a getto di inchiostro | BZ186: =AW190*20 -> 0 | CA186: =0.083*AY190 -> 0.0166 | CB186: =BZ186*CA186/24 -> 0 | CC186: 0
C187: 4.5 | E187: AUDIO/VIDEO | AR187: Connessione a internet | AW187: Flat (sempre connessa) | BA187: =IF(AW187="","! ! !","") ->  | BC187: Ad alta efficienza (lampade LED) | BD187: 8 | BE187: =J185 -> 2 | BF187: =BD187*BE187 -> 16 | BH187: 23" = 58.4 cm | BI187: 23 | BJ187: 58.42 | BK187: 37.3888 | BL187: 21.0312 | BM187: 7.863313306 | BP187: B | BQ187: 0.3 | BR187: 0.42 | BS187: 0.36 | BY187: =AR191 -> Stampante laser | BZ187: =AW191*350 -> 0 | CA187: =0.067*AY191 -> 0.067 | CB187: =BZ187*CA187/24 -> 0 | CC187: 0
BD188: TOTALE | BE188: =SUM(BE184:BE187) -> 18 | BF188: =SUM(BF183:BF187) -> 468 | BH188: 26" = 66 cm | BI188: 26 | BJ188: 66.04 | BK188: 42.2656 | BL188: 23.7744 | BM188: 10.04839281 | BP188: C | BQ188: 0.42 | BR188: 0.6 | BS188: 0.51 | BY188: TOTALE | BZ188: =SUM(BZ183:BZ187) -> 190 | CA188: =SUM(CA183:CA187) -> 26.0836 | CB188: =SUM(CB183:CB187) -> 17.5 | CC188: 0.09210526316
AW189: QUANTITA' | AY189: STAMPE AL GIORNO | BH189: 30" = 76.2 cm | BI189: 30 | BJ189: 76.2 | BK189: 48.768 | BL189: 27.432 | BM189: 13.37803776 | BP189: D | BQ189: 0.6 | BR189: 0.8 | BS189: 0.7
V190: RIGA CON INPUT eliminato | AR190: Stampante a getto di inchiostro | AW190: 0 | AY190: 0.2 | BA190: =IF(AND(AW190<>"",OR(NOT(ISNUMBER(AW190)),AW190<0,OR(NOT(ISNUMBER(AY190)),AY190<=0))),"! ! !","") ->  | BC190: INPUT ELIMINATI | BH190: 33" = 83.8 cm | BI190: 33 | BJ190: 83.82 | BK190: 53.6448 | BL190: 30.1752 | BM190: 16.18742569 | BP190: E | BQ190: 0.8 | BR190: 0.9 | BS190: 0.85
V191: RIGA CON INPUT eliminato | AR191: Stampante laser | AW191: 0 | AY191: 1 | BA191: =IF(AND(AW191<>"",OR(NOT(ISNUMBER(AW191)),AW191<0,OR(NOT(ISNUMBER(AY191)),AY191<=0))),"! ! !","") ->  | BC191: STANDBY | BH191: 37" = 94 cm | BI191: 37 | BJ191: 93.98 | BK191: 60.1472 | BL191: 33.8328 | BM191: 20.34948188 | BP191: F | BQ191: 0.9 | BR191: 1 | BS191: 0.95
V192: RIGA CON INPUT eliminato | AR192: Altri apparecchi non inclusi nella lista possono essere inseriti in 4.8 | BC192: SI | BH192: 40" = 101.6 cm | BI192: 40 | BJ192: 101.6 | BK192: 65.024 | BL192: 36.576 | BM192: 23.78317824 | BP192: G | BQ192: 1 | BR192: =BQ192*1.2 -> 1.2 | BS192: 1.1 | BY192: STANDBY | CA192: Pn_standby | CB192: 1 | CC192: W
V193: RIGA CON INPUT eliminato | BC193: NO | BH193: 45" = 114.3 cm | BI193: 45 | BJ193: 114.3 | BK193: 73.152 | BL193: 41.148 | BM193: 30.10058496 | BY193: Nome | BZ193: Pn [W] | CA193: Tempo [ore/g] | CB193: Pmed [W] | CC193: Fu
BC194: SI | BH194: 50" = 127 cm | BI194: 50 | BJ194: 127 | BK194: 81.28 | BL194: 45.72 | BM194: 37.161216 | BP194: AUDIO/VIDEO - ASSORBIMENTI | BY194: Caldaia | BZ194: =IF($BP$110<>"",$CB$192,0) -> 1 | CA194: 24 | CB194: =BZ194*CA194/24 -> 1 | CC194: =IFERROR(CB194/BZ194,0) -> 1 | CL194: Fattore luci di giorno | CN194: 0.1
BC195: NO | BH195: 55" = 139.7 cm | BI195: 55 | BJ195: 139.7 | BK195: 89.408 | BL195: 50.292 | BM195: 44.96507136 | BP195: Nome | BQ195: Area [m2] | BR195: Pref [W] | BS195: Pn [W] | BT195: Tempo [ore/g] | BU195: Pmed [W] | BV195: Fu | BY195: Pompa calore | BZ195: =IF($BX$108<>"",$CB$192,0) -> 1 | CA195: 24 | CB195: 1 | CC195: 1 | CE195: CARICHI DEGLI APPARECCHI - TRASFERIMENTO A.E. | CL195: Fattore luci di notte | CN195: 0.45 | CW195: ASSORBIMENTI ELETTRICI - TRASFERIMENTO A.E.
V196: RIGA CON INPUT eliminato | BH196: 60" = 152.4 cm | BI196: 60 | BJ196: 152.4 | BK196: 97.536 | BL196: 54.864 | BM196: 53.51215104 | BP196: =AO170 -> Televisore o monitor 1 | BQ196: =IFERROR(VLOOKUP(AT170,$BH$183:$BM$201,6,FALSE)/100,0) -> 0 | BR196: =AR170*(20+BQ196*4.3224) -> 60 | BS196: =VLOOKUP($AV$170,$BP$183:$BS$192,4,FALSE)*BR196 -> 11.7 | BT196: =AX170 -> 6 | BU196: =BS196*BT196/24 -> 2.925 | BV196: =IFERROR(BU196/BR196,0) -> 0.04875 | BY196: Pompa calore ACS | BZ196: =IF($BU$114=BU106,$CB$192,0) -> 0 | CA196: 24 | CB196: 0 | CC196: 0 | CI196: POTENZA INSTALLATA | CL196: Fattori di utilizzo INVERNALI | CP196: Fattori di utilizzo ESTIVI | CT196: CARICHI TERM.
V197: RIGA CON INPUT eliminato | BC197: STANDBY | BH197: 65" = 165.1 cm | BI197: 65 | BJ197: 165.1 | BK197: 105.664 | BL197: 59.436 | BM197: 62.80245504 | BP197: =AO171 -> Televisore o monitor 2 | BQ197: =IFERROR(VLOOKUP(AT171,$BH$183:$BM$201,6,FALSE)/100,0) -> 0.1004839281 | BR197: =AR171*(20+BQ197*4.3224) -> 0 | BS197: =VLOOKUP($AV$170,$BP$183:$BS$192,4,FALSE)*BR197 -> 0 | BT197: =AX171 -> 6 | BU197: 0 | BV197: 0 | BY197: =E164 -> Lavatrice | BZ197: 0 | CA197: =IF(AND(H164<>$BW$156,O164=$BC$24),24,0) -> 0 | CB197: 0 | CC197: 0 | CI197: Potenza nominale | CK197: Fatt. pot. | CL197: nelle ore attive | CN197: nelle ore non attive | CP197: nelle ore attive | CR197: nelle ore non attive | CT197: Quota di | CU197: Frazione | CY197: ENERGIA ELETTRICA ATTIVA ASSORBITA [kWh]
V198: RIGA CON INPUT eliminato | BC198: SI | BH198: 70" = 177.8 cm | BI198: 70 | BJ198: 177.8 | BK198: 113.792 | BL198: 64.008 | BM198: 72.83598336 | BP198: =AO172 -> Televisore o monitor 3 | BQ198: =IFERROR(VLOOKUP(AT172,$BH$183:$BM$201,6,FALSE)/100,0) -> 0.0594579456 | BR198: =AR172*(20+BQ198*4.3224) -> 0 | BS198: =VLOOKUP($AV$170,$BP$183:$BS$192,4,FALSE)*BR198 -> 0 | BT198: =AX172 -> 1 | BU198: 0 | BV198: 0 | BY198: =E165 -> Asciugatrice | BZ198: 0 | CA198: =IF(AND(J165<>$BT$144,O165=$BC$24),24,0) -> 0 | CB198: 0 | CC198: 0 | CE198: TIPO DI UTILIZZATORE | CH198: COMB. | CI198: [W/m2] | CJ198: [kW] | CK198: cosφ | CL198: di giorno | CM198: di notte | CN198: di giorno | CO198: di notte | CP198: di giorno | CQ198: di notte | CR198: di giorno | CS198: di notte | CT198: carico | CU198: latente | CW198: TIPO DI UTILIZZATORE | CY198: GEN | CZ198: FEB | DA198: MAR | DB198: APR | DC198: MAG | DD198: GIU | DE198: LUG | DF198: AGO | DG198: SET | DH198: OTT | DI198: NOV | DJ198: DIC | DK198: TOTALE
V199: RIGA CON INPUT eliminato | BC199: SI | BH199: 80" = 203.2 cm | BI199: 80 | BJ199: 203.2 | BK199: 130.048 | BL199: 73.152 | BM199: 95.13271296 | BP199: =AO173 -> Televisore o monitor 4 | BQ199: =IFERROR(VLOOKUP(AT173,$BH$183:$BM$201,6,FALSE)/100,0) -> 0 | BR199: =AR173*(20+BQ199*4.3224) -> 0 | BS199: =VLOOKUP($AV$170,$BP$183:$BS$192,4,FALSE)*BR199 -> 0 | BT199: =AX173 -> 2 | BU199: 0 | BV199: 0 | BY199: =E166 -> Lavastoviglie | BZ199: 0 | CA199: =IF(AND(J166<>$BT$144,O166=$BC$24),24,0) -> 0 | CB199: 0 | CC199: 0 | CE199: Vent. meccanica (escl. unità int.) | CH199: Energia Elettrica | CW199: Vent. meccanica (escl. unità int.) | DK199: =SUM(CY199:DJ199) -> 0 | DL199: kWh
V200: RIGA CON INPUT eliminato | AR200: =IF(AV201="","! ! !","") ->  | AS200: =IF(AR200="","","ATTENZIONE: C'E UN ERRORE IN QUESTO PARAGRAFO") ->  | BC200: NO | BH200: 90" = 228.6 cm | BI200: 90 | BJ200: 228.6 | BK200: 146.304 | BL200: 82.296 | BM200: 120.4023398 | BP200: =AO176 -> Decoder | BS200: =AR176*10 -> 0 | BT200: =AT176 -> 2 | BU200: =AT176 -> 2 | BV200: 0 | BY200: Lavasciuga | BZ200: 0 | CA200: =IF(AND(J167<>$BT$144,O167=$BC$24),24,0) -> 0 | CB200: =BZ200*CA200/24 -> 0 | CC200: =IFERROR(CB200/BZ200,0) -> 0 | CE200: Illuminazione interna | CH200: Energia Elettrica | CJ200: =BF188/1000 -> 0.468 | CK200: 0.95 | CL200: =CR45*$CN$194 -> 0.02118226601 | CM200: =CS45*$CN$195 -> 0.1285714286 | CN200: =CT45*$CN$194 -> 0.02857142857 | CO200: =CU45*$CN$195 -> 0.02571428571 | CP200: =CW45*$CN$194 -> 0.02261904762 | CQ200: =CX45*$CN$195 -> 0 | CR200: =CY45*$CN$194 -> 0.02857142857 | CS200: =CZ45*$CN$195 -> 0.02571428571 | CT200: 0.8 | CU200: 0 | CW200: Illuminazione interna | CY200: =$CJ200*BL$25*IF(OR(CY$198="GEN",CY$198="FEB",CY$198="MAR",CY$198="OTT",CY$198="NOV",CY$198="DIC"),$CL200*$CR$37+$CM200*$CS$37+$CN200*$CT$37+$CO200*$CU$37,1)*IF(OR(CY$198="APR",CY$198="MAG",CY$198="GIU",CY$198="LUG",CY$198="AGO",CY$198="SET"),$CP200*$CW$37+$CQ200*$CX$37+$CR200*$CY$37+$CS200*$CZ$37,1) -> 11.8482 | CZ200: 10.7016 | DA200: 11.8482 | DB200: 8.230114286 | DC200: 8.504451429 | DD200: 8.230114286 | DE200: 8.504451429 | DF200: 8.504451429 | DG200: 8.230114286 | DH200: 11.8482 | DI200: 11.466 | DJ200: 11.8482 | DK200: =SUM(CY200:DJ200) -> 119.7640971 | DL200: kWh
AP201: RIGA CON INPUT DA TOGLIERE | AR201: Tipo di contratto del gas | AV201: Mercato libero | BC201: SI | BH201: 100" = 254 cm | BI201: 100 | BJ201: 254 | BK201: 162.56 | BL201: 91.44 | BM201: 148.644864 | BP201: =AO177 -> Videoregistratore | BS201: =AR177*13 -> 0 | BT201: =AT177 -> 2 | BU201: 0 | BV201: 0 | BY201: =AO170 -> Televisore o monitor 1 | BZ201: =AR170*$CB$192 -> 3 | CA201: =IF(AND(AR170>0,BC192=$BC$24),24-AX170,0) -> 18 | CB201: =BZ201*CA201/24 -> 2.25 | CC201: =IFERROR(CB201/BZ201,0) -> 0.75 | CE201: Illuminazione esterna | CH201: Energia Elettrica | CJ201: 0 | CW201: Illuminazione esterna | CY201: 0 | CZ201: 0 | DA201: 0 | DB201: 0 | DC201: 0 | DD201: 0 | DE201: 0 | DF201: 0 | DG201: 0 | DH201: 0 | DI201: 0 | DJ201: 0 | DK201: 0 | DL201: kWh
BC202: SI | BP202: =AO178 -> Lettore DVD | BS202: =AR178*13 -> 0 | BT202: =AT178 -> 2 | BU202: 0 | BV202: 0 | BY202: =AO171 -> Televisore o monitor 2 | BZ202: =AR171*$CB$192 -> 0 | CA202: =IF(AND(AR171>0,BC193=$BC$24),24-AX171,0) -> 0 | CB202: 0 | CC202: 0 | CE202: Cucina (utilizzo elettrico) | CH202: Energia Elettrica | CJ202: =BD166/1000 -> 10.692 | CK202: 0.95 | CL202: =$BG$166*CR$47 -> 0.005630918161 | CM202: =$BG$166*CS$47 -> 0.007595191939 | CN202: =$BG$166*CT$47 -> 0.007595191939 | CO202: =$BG$166*CU$47 -> 0.001519038388 | CP202: =$BG$166*CW$47 -> 0.005660027407 | CQ202: =$BG$166*CX$47 -> 0 | CR202: =$BG$166*CY$47 -> 0.007149508304 | CS202: =$BG$166*CZ$47 -> 0.001429901661 | CT202: 0.8 | CU202: 0.3 | CW202: Cucina (utilizzo elettrico) | CY202: 32.30716667 | CZ202: 29.18066667 | DA202: 32.30716667 | DB202: 31.265 | DC202: 32.30716667 | DD202: 31.265 | DE202: 32.30716667 | DF202: 32.30716667 | DG202: 31.265 | DH202: 32.30716667 | DI202: 31.265 | DJ202: 32.30716667 | DK202: 380.3908333 | DL202: kWh
C203: 4.5 | E203: COMPUTER/INTERNET | BP203: =AO179 -> Riproduttore audio (radio, stereo piccolo, ecc) | BS203: =AR179*30 -> 0 | BT203: =AT179 -> 2 | BU203: 0 | BV203: 0 | BY203: =AO172 -> Televisore o monitor 3 | BZ203: =AR172*$CB$192 -> 0 | CA203: =IF(AND(AR172>0,BC194=$BC$24),24-AX172,0) -> 0 | CB203: 0 | CC203: 0 | CE203: Cucina (utilizzo di gas) | CH203: Gas naturale | CJ203: =BD173/1000 -> 7.109090909 | CL203: =$BG$173*CR$47 -> 0.07978440115 | CM203: =$BG$173*CS$47 -> 0.107616169 | CN203: =$BG$173*CT$47 -> 0.107616169 | CO203: =$BG$173*CU$47 -> 0.0215232338 | CP203: =$BG$173*CW$47 -> 0.08019684966 | CQ203: =$BG$173*CX$47 -> 0 | CR203: =$BG$173*CY$47 -> 0.1013012838 | CS203: =$BG$173*CZ$47 -> 0.02026025675 | CT203: 0.8 | CU203: 0.4 | CW203: Cucina (utilizzo di gas) | DK203: 0 | DL203: kWh
E204: =IF(OR(N206<>"",N207<>"",BA187<>"",BA190<>"",BA191<>""),"! ! !","") ->  | F204: =IF(E204="","","ATTENZIONE: C'E UN ERRORE IN QUESTO PARAGRAFO") ->  | BP204: =AO180 -> Impianto hi-fi/home theatre | BS204: =AR180*80 -> 0 | BT204: =AT180 -> 3 | BU204: =BS204*BT204/24 -> 0 | BV204: 0 | BY204: =AO173 -> Televisore o monitor 4 | BZ204: =AR173*$CB$192 -> 0 | CA204: =IF(AND(AR173>0,BC195=$BC$24),24-AX173,0) -> 0 | CB204: 0 | CC204: 0 | CE204: Carico term. ausiliari impianto | CH204: Nessuno | CW204: Carico term. ausiliari impianto | CY204: =$CJ204*BL$25*IF(OR(CY$198="GEN",CY$198="FEB",CY$198="MAR",CY$198="OTT",CY$198="NOV",CY$198="DIC"),$CL204*$CR$37+$CM204*$CS$37+$CN204*$CT$37+$CO204*$CU$37,1)*IF(OR(CY$198="APR",CY$198="MAG",CY$198="GIU",CY$198="LUG",CY$198="AGO",CY$198="SET"),$CP204*$CW$37+$CQ204*$CX$37+$CR204*$CY$37+$CS204*$CZ$37,1) -> 0 | CZ204: =$CJ204*BM$25*IF(OR(CZ$198="GEN",CZ$198="FEB",CZ$198="MAR",CZ$198="OTT",CZ$198="NOV",CZ$198="DIC"),$CL204*$CR$37+$CM204*$CS$37+$CN204*$CT$37+$CO204*$CU$37,1)*IF(OR(CZ$198="APR",CZ$198="MAG",CZ$198="GIU",CZ$198="LUG",CZ$198="AGO",CZ$198="SET"),$CP204*$CW$37+$CQ204*$CX$37+$CR204*$CY$37+$CS204*$CZ$37,1) -> 0 | DA204: =$CJ204*BN$25*IF(OR(DA$198="GEN",DA$198="FEB",DA$198="MAR",DA$198="OTT",DA$198="NOV",DA$198="DIC"),$CL204*$CR$37+$CM204*$CS$37+$CN204*$CT$37+$CO204*$CU$37,1)*IF(OR(DA$198="APR",DA$198="MAG",DA$198="GIU",DA$198="LUG",DA$198="AGO",DA$198="SET"),$CP204*$CW$37+$CQ204*$CX$37+$CR204*$CY$37+$CS204*$CZ$37,1) -> 0 | DB204: =$CJ204*BO$25*IF(OR(DB$198="GEN",DB$198="FEB",DB$198="MAR",DB$198="OTT",DB$198="NOV",DB$198="DIC"),$CL204*$CR$37+$CM204*$CS$37+$CN204*$CT$37+$CO204*$CU$37,1)*IF(OR(DB$198="APR",DB$198="MAG",DB$198="GIU",DB$198="LUG",DB$198="AGO",DB$198="SET"),$CP204*$CW$37+$CQ204*$CX$37+$CR204*$CY$37+$CS204*$CZ$37,1) -> 0 | DC204: =$CJ204*BP$25*IF(OR(DC$198="GEN",DC$198="FEB",DC$198="MAR",DC$198="OTT",DC$198="NOV",DC$198="DIC"),$CL204*$CR$37+$CM204*$CS$37+$CN204*$CT$37+$CO204*$CU$37,1)*IF(OR(DC$198="APR",DC$198="MAG",DC$198="GIU",DC$198="LUG",DC$198="AGO",DC$198="SET"),$CP204*$CW$37+$CQ204*$CX$37+$CR204*$CY$37+$CS204*$CZ$37,1) -> 0 | DD204: =$CJ204*BQ$25*IF(OR(DD$198="GEN",DD$198="FEB",DD$198="MAR",DD$198="OTT",DD$198="NOV",DD$198="DIC"),$CL204*$CR$37+$CM204*$CS$37+$CN204*$CT$37+$CO204*$CU$37,1)*IF(OR(DD$198="APR",DD$198="MAG",DD$198="GIU",DD$198="LUG",DD$198="AGO",DD$198="SET"),$CP204*$CW$37+$CQ204*$CX$37+$CR204*$CY$37+$CS204*$CZ$37,1) -> 0 | DE204: =$CJ204*BR$25*IF(OR(DE$198="GEN",DE$198="FEB",DE$198="MAR",DE$198="OTT",DE$198="NOV",DE$198="DIC"),$CL204*$CR$37+$CM204*$CS$37+$CN204*$CT$37+$CO204*$CU$37,1)*IF(OR(DE$198="APR",DE$198="MAG",DE$198="GIU",DE$198="LUG",DE$198="AGO",DE$198="SET"),$CP204*$CW$37+$CQ204*$CX$37+$CR204*$CY$37+$CS204*$CZ$37,1) -> 0 | DF204: =$CJ204*BS$25*IF(OR(DF$198="GEN",DF$198="FEB",DF$198="MAR",DF$198="OTT",DF$198="NOV",DF$198="DIC"),$CL204*$CR$37+$CM204*$CS$37+$CN204*$CT$37+$CO204*$CU$37,1)*IF(OR(DF$198="APR",DF$198="MAG",DF$198="GIU",DF$198="LUG",DF$198="AGO",DF$198="SET"),$CP204*$CW$37+$CQ204*$CX$37+$CR204*$CY$37+$CS204*$CZ$37,1) -> 0 | DG204: =$CJ204*BT$25*IF(OR(DG$198="GEN",DG$198="FEB",DG$198="MAR",DG$198="OTT",DG$198="NOV",DG$198="DIC"),$CL204*$CR$37+$CM204*$CS$37+$CN204*$CT$37+$CO204*$CU$37,1)*IF(OR(DG$198="APR",DG$198="MAG",DG$198="GIU",DG$198="LUG",DG$198="AGO",DG$198="SET"),$CP204*$CW$37+$CQ204*$CX$37+$CR204*$CY$37+$CS204*$CZ$37,1) -> 0 | DH204: =$CJ204*BU$25*IF(OR(DH$198="GEN",DH$198="FEB",DH$198="MAR",DH$198="OTT",DH$198="NOV",DH$198="DIC"),$CL204*$CR$37+$CM204*$CS$37+$CN204*$CT$37+$CO204*$CU$37,1)*IF(OR(DH$198="APR",DH$198="MAG",DH$198="GIU",DH$198="LUG",DH$198="AGO",DH$198="SET"),$CP204*$CW$37+$CQ204*$CX$37+$CR204*$CY$37+$CS204*$CZ$37,1) -> 0 | DI204: =$CJ204*BV$25*IF(OR(DI$198="GEN",DI$198="FEB",DI$198="MAR",DI$198="OTT",DI$198="NOV",DI$198="DIC"),$CL204*$CR$37+$CM204*$CS$37+$CN204*$CT$37+$CO204*$CU$37,1)*IF(OR(DI$198="APR",DI$198="MAG",DI$198="GIU",DI$198="LUG",DI$198="AGO",DI$198="SET"),$CP204*$CW$37+$CQ204*$CX$37+$CR204*$CY$37+$CS204*$CZ$37,1) -> 0 | DJ204: =$CJ204*BW$25*IF(OR(DJ$198="GEN",DJ$198="FEB",DJ$198="MAR",DJ$198="OTT",DJ$198="NOV",DJ$198="DIC"),$CL204*$CR$37+$CM204*$CS$37+$CN204*$CT$37+$CO204*$CU$37,1)*IF(OR(DJ$198="APR",DJ$198="MAG",DJ$198="GIU",DJ$198="LUG",DJ$198="AGO",DJ$198="SET"),$CP204*$CW$37+$CQ204*$CX$37+$CR204*$CY$37+$CS204*$CZ$37,1) -> 0 | DK204: 0 | DL204: kWh
... 348 more rows

Sheet START
H3: Archi-Energy | O3: Versione | P3: 2.4.4-ENEA(2.10) | BE3: RIFERIMENTI VBA DEL FOGLIO, NON SPOSTARE!!
H5: Software gratuito di audit energetico/economico degli edifici | BH5: Cella di riferimento VBA del foglio
BH6: Codice di attivazione | BI6: ='VBA1'!$H$8 -> TESTCODE00271018030350
H7: Info e forum su → | L7: www.IngEnergia.it | P7: ← | BH7: Deb / Rel | BI7: =INPUT!BL5 -> Debug
D10: Start!
D11: Per cominciare:
E12: La strada più facile è guardare i video didattici sul sito www.IngEnergia.it!
E13: ...altrimenti:
E15: 1) IMPORTANTE!!! Se in alto ti compare una di queste barre:
E16: significa che hai le macro disattivate!
E17: Clicca su "Opzioni.." e "Attiva Macro", oppure su "Abilita contenuto". Puoi anche attivarle in modo definitivo nelle opzioni di Excel.
E18: 2) Inserisci qui sotto i dati generali della struttura da analizzare. NOTA BENE: Solo le celle gialle sono da modificare!!
E19: 3) Descrivi nel foglio "TECNOLOGIE" le tecnologie che andrai a utilizzare nel progetto, oppure utilizza quelle già presenti.
E20: 4) Descrivi lo stato di partenza del sistema edificio/impianto nel foglio "SOLUZIONE01". Al momento sono inseriti i dati di un edificio di prova. | BE20: CHECK ERRORI
E21: IMPORTANTE!! ArchiEnergy effettua parallelamente i calcoli per l'audit energetico e quelli per la certificazione energetica. | BI21: PARAGRAFO
E22: Fai sempre attenzione alle diciture 'CALCOLO AUDIT' e 'CALCOLO APE' sulle le tabelle di input e di output! | BE22: ERRORI DI INPUT IN QUESTO FOGLIO | BI22: =IF(AND(O73="",O83="",T87=""),"","1.2 - DATI GENERALI") -> 
E23: Se ti interessa solo uno dei due calcoli, puoi sceglere di evidenziare solo le relative caselle nel menu in alto "ArchiEnergy" -> "Evidenziaz. celle input"
E24: 5) Copia il foglio "SOLUZIONE01" (dal menu in alto "ArchiEnergy" -> "Aggiungi soluzione") per ogni soluzione alternativa che intendi descrivere.
E25: 6) Effettua le modifiche sul nuovo foglio e visualizza i risultati. ArchiEnergy li confronta automaticamente con quelli di un altro foglio a scelta.
E26: 7) Ripeti i punti 5 e 6 per ipotizzare ulteriori soluzioni.
E27: 8) Stampa l'audit energetico o il fac-simile dell'attestato di prestazione energetica per le diverse soluzioni create.
E28: IMPORTAZIONE DATI: E' possibile importare i dati dalle versioni precedenti di ArchiEnergy. Scarica la CopyUtility sul sito IngEnergia!
D29: Finito!
D31: Codice di attivazione inserito: | I31: =$BI$6 -> TESTCODE00271018030350
E33: CONDIZIONI DI UTILIZZO DEL PROGRAMMA
E35: - ArchiEnergy è un software di audit energetico/economico gratuito e liberamente utilizzabile per uso personale o professionale.
E36: - L'utilizzo è consentito solo alla persona che richiede il codice di attivazione, non è consentito ridistribuire il software a terzi.
E37: - Ogni elaborato derivante, anche parzialmente, da calcoli svolti con ArchiEnergy deve riportare la dicitura:
E38: "Calcolato con ArchiEnergy"
E39: - Non è consentito sbloccare il foglio e modificare le formule e le macro senza previa autorizzazione dei proprietari.
E40: - Lo staff di Archi-Energy non risponde di danni o errori causati dall'utilizzo del programma. Non è garantita la perfetta conformità normativa.
D44: Per applicazioni particolari, personalizzazioni del software, organizzazione di corsi, collaborazioni
D45: o esecuzione di audit energetici contattaci sul forum o a info@ingenergia.it
C47: Copyright Prof. Ing. F.Mancini, Ph.D. Ing. Marco Cecconi 2013-2017
A51: START! | BC51: =$A51 -> START!
C53: A cosa serve questo foglio?
D55: Qui vengono compilati i dati comuni del progetto, che valgono per tutte le soluzioni tecniche.
D57: CHECK ERRORI NEL FOGLIO | I57: =IF(BI22="","OK! NESSUN ERRORE!","ATTENZIONE! SONO PRESENTI ERRORI AL PARAGRAFO: "&BI22) -> OK! NESSUN ERRORE!
A59: 1. | C59: DATI GENERALI | BC59: =$A59 -> 1. | BD59: =$C59 -> DATI GENERALI
C62: 1.1 | D62: DATI DEL SOGGETTO CHE REALIZZA L'AUDIT | BE62: DATI NECESSARI AL CALCOLO
D64: Nome del tecnico o della società che svolge l'analisi | K64: NOME DEL TECNICO
BE65: TEMPERATURE DI SET-POIT, AFFOLLAMENTO, PORTATE D'ARIA, CARICHI INTERNI | CO65: Province | CQ65: Comuni
BH66: Affollamento (UNI 10339) | BK66: Portata d'aria (UNI TS 11300-1 e UNI 10339) | BT66: Fattore Fve,t (UNI TS 11300-1 Prosp.E2) | BW66: Fattore eff. reg. (FCve) - (UNI TS 11300-1:2014 - Prosp.11) | BZ66: Carichi interni e vapore (UNI TS 11300-1:2014 - Prosp.E.3) | CG66: F. pres. (UNI TS 11300-1:2014 - Prosp.E.1) | CH66: UNI EN 15193 e UNI TS 11300-1 App.D | CJ66: LENI
C67: 1.2 | D67: DATI GENERALI DELL'EDIFICIO SOTTO ANALISI | BF67: Temp. set-point norma | BH67: [pers/mq] | BK67: [mc/h/pers] | BN67: [mc/h/mq] | BQ67: [vol/h] | BT67: [] | BW67: Tipo sensore | BZ67: Carichi totali [W/m2] | CD67: Solo apparecchiature [W/m2] | CF67: Vapore | CG67: fday,per | CH67: td | CI67: tn | CJ67: LENI EN 15193 Allegato F | CO67: =Clima!D24 -> AG | CQ67: =TrovaComuni(Luoghi!$D$14:$E$8031,provincia) -> Affile
BE68: Destinazioni d'uso DPR 412/93 | BF68: Invernale | BG68: Estivo | BH68: min | BI68: max | BJ68: med | BK68: min | BL68: max | BM68: med | BN68: min | BO68: max | BP68: med | BQ68: min | BR68: max | BS68: med | BT68: min | BU68: max | BV68: med | BW68: Presenza | BX68: Movimento | BY68: CO2 | BZ68: min | CA68: max | CB68: med | CC68: standard | CD68: max | CE68: med | CF68: g/h mq | CJ68: kWh/m2anno | CK68: 1 | CO68: =Clima!D25 -> AL | CQ68: Agosta
D69: Nome dell'edificio | K69: =INPUT!J12&" "&INPUT!J13 -> Livio de Santoli, Francesco Mancini, Marco Cecconi CITERA | BE69: E.1 (1): Abitazioni residenziali con occupazione continuativa (abitaz, collegi, conventi, case di pena, caserme) | BF69: 20 | BG69: 26 | BH69: =0.04 -> 0.04 | BI69: 0.6 | BJ69: =AVERAGE(BH69:BI69) -> 0.32 | BM69: =11*3.6 -> 39.6 | BN69: 0 | BO69: 1.4 | BP69: 0.7 | BQ69: 0.2 | BS69: 0.3 | BT69: 0.08 | BU69: 1 | BV69: 0.6 | BW69: 0.8 | BX69: 0.7 | BY69: 0.7 | BZ69: 1 | CA69: 20 | CB69: 6 | CC69: 6 | CF69: 6 | CG69: =24/24 -> 1 | CH69: 3000 | CI69: 2000 | CJ69: 40 | CK69: 2 | CO69: =Clima!D26 -> AN | CQ69: Albano Laziale
D70: Descrizione libera | K70: File linkato al modello di input ENEA | BE70: E.1 (2): Abitazioni residenziali con occupazione saltuaria (case vacanze, ecc) | BF70: 20 | BG70: 26 | BH70: 0.001 | BI70: 0.6 | BJ70: 0.1 | BM70: =11*3.6 -> 39.6 | BN70: 0 | BO70: 1 | BP70: 0.2 | BQ70: 0.2 | BS70: 0.3 | BV70: 0.6 | BW70: 0.8 | BX70: 0.7 | BY70: 0.7 | BZ70: 1 | CA70: 20 | CB70: 6 | CC70: 6 | CF70: 6 | CG70: =24/24 -> 1 | CH70: 3000 | CI70: 2000 | CJ70: 20 | CK70: 3 | CO70: =Clima!D27 -> AO | CQ70: Allumiere
BE71: E.1 (3): Alberghi, pensioni e simili | BF71: 20 | BG71: 26 | BH71: =0.05 -> 0.05 | BI71: =0.6 -> 0.6 | BJ71: 0.125 | BK71: =5.5*3.6 -> 19.8 | BL71: =11*3.6 -> 39.6 | BM71: =11*3.6 -> 39.6 | BN71: 0 | BO71: 1 | BP71: 0.7 | BS71: 0.3 | BT71: 0.26 | BU71: 1 | BV71: =AVERAGE(BT71:BU71) -> 0.63 | BW71: 0.8 | BX71: 0.7 | BY71: 0.7 | BZ71: 1 | CA71: 20 | CB71: 6 | CC71: 6 | CD71: 4 | CE71: 2 | CF71: 5 | CG71: =24/24 -> 1 | CH71: 3000 | CI71: 2000 | CJ71: 72.1 | CK71: 4 | CO71: =Clima!D28 -> AP | CQ71: Anguillara Sabazia
D72: Provincia | K72: =INPUT!$J$18 -> RM | BE72: E.2: Uffici | BF72: 20 | BG72: 26 | BH72: =0.06 -> 0.06 | BI72: =0.6 -> 0.6 | BJ72: 0.092 | BK72: =7*3.6 -> 25.2 | BL72: =11*3.6 -> 39.6 | BM72: =11*3.6 -> 39.6 | BT72: 0.51 | BU72: 0.59 | BV72: =AVERAGE(BT72:BU72) -> 0.55 | BW72: =AVERAGE(0.68,0.64,0.64,0.8,0.8,0.8,0.55,0.55,0.6) -> 0.6733333333 | BX72: =AVERAGE(0.67,0.7,0.53,0.59,0.34,0.43) -> 0.5433333333 | BY72: =AVERAGE(0.57,0.61,0.45,0.5,0.29,0.37) -> 0.465 | BZ72: 1 | CA72: 20 | CB72: 6 | CC72: 6 | CD72: 15 | CE72: 3 | CF72: 6 | CG72: =8/24 -> 0.3333333333 | CH72: 2250 | CI72: 250 | CJ72: 54.6 | CK72: 5 | CO72: =Clima!D29 -> AQ | CQ72: Anticoli Corrado
D73: Comune | K73: =INPUT!J19 -> Roma | O73: =IF(IFERROR(VLOOKUP(K73,CQ67:CQ426,1,FALSE),"!")<>"!","","! ! !") ->  | P73: =IF(O73="","","ERRORE: IL COMUNE SCELTO NON FA PARTE DELLA PROVINCIA INDICATA, SCEGLI UN ALTRO COMUNE") ->  | Q73: E' stata tolta la convalida dati da elenco | BE73: E.3: Ospedali, cliniche, case di cura | BF73: 20 | BG73: 26 | BH73: =0.05 -> 0.05 | BI73: =0.2 -> 0.2 | BJ73: =0.12 -> 0.12 | BK73: =8.5*3.6 -> 30.6 | BL73: =11*3.6 -> 39.6 | BM73: =11*3.6 -> 39.6 | BT73: 0.51 | BU73: 1 | BV73: 1 | BW73: 1 | BX73: 1 | BY73: 1 | CC73: 8 | CD73: 15 | CE73: 3 | CF73: 14 | CG73: =24/24 -> 1 | CH73: 3000 | CI73: 2000 | CJ73: 70.6 | CK73: 6 | CO73: =Clima!D30 -> AR | CQ73: Anzio
D74: Località della stazione meteo | K74: =VLOOKUP($K$72,Clima!$D$141:$X$250,Clima!$F$251,FALSE) -> Roma | BE74: E.4 (1): Cinema, teatri, sale riunioni e congressi | BF74: 20 | BG74: 26 | BH74: =0.2 -> 0.2 | BI74: =1.5 -> 1.5 | BJ74: =0.5 -> 0.5 | BK74: =5.5*3.6 -> 19.8 | BL74: =12.5*3.6 -> 45 | BM74: =AVERAGE(BK74:BL74) -> 32.4 | BT74: 0.43 | BU74: 0.51 | BV74: 0.47 | BW74: 1 | BX74: 1 | BY74: =AVERAGE(0.33,0.4) -> 0.365 | CC74: 8 | CF74: 27 | CG74: =8/24 -> 0.3333333333 | CH74: 1250 | CI74: 250 | CJ74: 83.7 | CK74: 7 | CO74: =Clima!D31 -> AT | CQ74: Arcinazzo Romano
D75: Gradi-giorno | K75: =VLOOKUP($K$73,Luoghi!$E$14:$H$8031,Luoghi!$G$8032,FALSE) -> 1415 | M75: GG | BE75: E.4 (2): Musei, biblioteche, luoghi di culto | BF75: 20 | BG75: 26 | BH75: =0.3 -> 0.3 | BI75: =0.8 -> 0.8 | BJ75: =AVERAGE(BH75:BI75) -> 0.55 | BK75: =5.5*3.6 -> 19.8 | BL75: =6*3.6 -> 21.6 | BM75: =AVERAGE(BK75:BL75) -> 20.7 | BT75: 0.34 | BU75: 1 | BV75: 0.67 | BW75: 1 | BX75: 1 | BY75: 1 | CC75: 8 | CD75: 5 | CE75: 1 | CF75: 14 | CG75: =8/24 -> 0.3333333333 | CH75: 1250 | CI75: 250 | CJ75: 65 | CK75: 8 | CO75: =Clima!D32 -> AV | CQ75: Ariccia
D76: Temperatura esterna di progetto invernale | K76: =VLOOKUP(provincia,Clima!$D$141:$X$250,Clima!$T$251,FALSE) -> 0 | M76: C | BE76: E.4 (3): Bar, ristoranti, sale da ballo | BF76: 20 | BG76: 26 | BH76: =0.6 -> 0.6 | BI76: =1 -> 1 | BJ76: =AVERAGE(BH76:BI76) -> 0.8 | BK76: =6*3.6 -> 21.6 | BL76: =16.5*3.6 -> 59.4 | BM76: =AVERAGE(BK76:BL76) -> 40.5 | BT76: 0.34 | BU76: 0.55 | BV76: 0.445 | BW76: 0.8 | BX76: =AVERAGE(0.58,0.63) -> 0.605 | BY76: =AVERAGE(0.49,0.53) -> 0.51 | CC76: 10 | CD76: 10 | CE76: 3 | CF76: 29 | CG76: 0.3333333333 | CH76: 1250 | CI76: 1250 | CJ76: 67.1 | CK76: 9 | CO76: =Clima!D33 -> BA | CQ76: Arsoli
D77: Zona climatica | K77: =VLOOKUP($K$73,Luoghi!$E$14:$H$8031,Luoghi!$H$8032,FALSE) -> D | BE77: E.5: Attività commerciali (negozi, supermercati, ecc) | BF77: 20 | BG77: 26 | BH77: =0.1 -> 0.1 | BI77: =0.25 -> 0.25 | BJ77: =AVERAGE(BH77:BI77) -> 0.175 | BK77: =6.5*3.6 -> 23.4 | BL77: =14*3.6 -> 50.4 | BM77: =11*3.6 -> 39.6 | BT77: 0.47 | BU77: 0.55 | BV77: 0.51 | BW77: 1 | BX77: 1 | BY77: =AVERAGE(0.33,0.4) -> 0.365 | CC77: 8 | CD77: 10 | CE77: 3 | CF77: 9 | CG77: 0.3333333333 | CH77: 3000 | CI77: 2000 | CJ77: 128.1 | CK77: 10 | CO77: =Clima!D34 -> BG | CQ77: Artena
D78: Latitudine della stazione meteo | K78: =VLOOKUP(provincia,Clima!$D$141:$X$250,Clima!$P$251,FALSE) -> 41.92111111 | M78: Nord | BE78: E.6 (1): Piscine, saune e simili | BF78: 28 | BG78: 28 | BH78: =0.2 -> 0.2 | BI78: =0.5 -> 0.5 | BJ78: =0.25 -> 0.25 | BP78: =2.5*3.6 -> 9 | BV78: 0.34 | BW78: 1 | BX78: 1 | BY78: 1 | CC78: 10 | CD78: 4 | CE78: 1 | CF78: 100 | CG78: 0.3333333333 | CH78: 2000 | CI78: 2000 | CJ78: 83.7 | CK78: 11 | CO78: =Clima!D35 -> BI | CQ78: Bellegra
D79: Longitudine della stazione meteo | K79: =VLOOKUP(provincia,Clima!$D$141:$X$250,Clima!$R$251,FALSE) -> 12.52305556 | M79: Est | BE79: E.6 (2): Palestre e simili | BF79: 18 | BG79: 24 | BH79: =0.2 -> 0.2 | BI79: =1.5 -> 1.5 | BJ79: =0.4 -> 0.4 | BK79: =5*3.6 -> 18 | BL79: =16.5*3.6 -> 59.4 | BM79: =13*3.6 -> 46.8 | BV79: 0.18 | BW79: 1 | BX79: 1 | BY79: 1 | CC79: 5 | CD79: 4 | CE79: 1 | CF79: 11 | CG79: 0.3333333333 | CH79: 2000 | CI79: 2000 | CJ79: 83.7 | CK79: 12 | CO79: =Clima!D36 -> BL | CQ79: Bracciano
D80: Altezza s.l.m. della stazione meteo | K80: =VLOOKUP($K$73,Luoghi!$E$14:$H$8031,Luoghi!$F$8032,FALSE) -> 20 | M80: m | BE80: E.6 (3): Servizi di supporto alle attività sportive | BF80: 20 | BG80: 26 | BH80: =0.2 -> 0.2 | BI80: =1.5 -> 1.5 | BJ80: =0.4 -> 0.4 | BM80: =11*3.6 -> 39.6 | BV80: 0.43 | BW80: 1 | BX80: 1 | BY80: 1 | CC80: 4 | CD80: 4 | CE80: 1 | CF80: 8 | CG80: 0.3333333333 | CH80: 2000 | CI80: 2000 | CJ80: 83.7 | CK80: 13 | CO80: =Clima!D37 -> BN | CQ80: Camerata Nuova
D81: Latitudine effettiva (se diversa dalla staz. meteo) | M81: Nord | BE81: E.7: Edifici scolastici a tutti i livelli | BF81: 20 | BG81: 26 | BH81: =0.3 -> 0.3 | BI81: =0.6 -> 0.6 | BJ81: =AVERAGE(BH81:BI81) -> 0.45 | BK81: =4*3.6 -> 14.4 | BL81: =7*3.6 -> 25.2 | BM81: =6.5*3.6 -> 23.4 | BT81: 0.43 | BU81: 0.51 | BV81: 0.47 | BW81: 0.8 | BX81: =AVERAGE(0.48,0.54) -> 0.51 | BY81: =AVERAGE(0.41,0.47) -> 0.44 | CC81: 4 | CD81: 5 | CE81: 1 | CF81: 16 | CG81: 0.3333333333 | CH81: 1800 | CI81: 200 | CJ81: 44.9 | CK81: 14 | CO81: =Clima!D38 -> BO | CQ81: Campagnano di Roma
D82: Longitudine effettiva (se diversa dalla staz. meteo) | M82: Est | BE82: E.8: Edifici per attività industriale ed artigianale | BF82: 18 | BG82: 26 | BH82: =0.04 -> 0.04 | BI82: =0.2 -> 0.2 | BJ82: 0.083 | BM82: =11*3.6 -> 39.6 | BV82: 0.51 | BW82: 1 | BX82: 1 | BY82: 1 | CC82: 6 | CF82: 10 | CG82: 0.3333333333 | CH82: 2500 | CI82: 1500 | CJ82: 83.7 | CK82: 15 | CO82: =Clima!D39 -> BR | CQ82: Canale Monterano
D83: Altezza s.l.m. effettiva (se diversa dalla staz. meteo) | M83: m | O83: =IF(AND(OR(ISNUMBER(K81),K81=""),OR(ISNUMBER(K82),K82=""),OR(ISNUMBER(K83),K83="")),"","! ! !") ->  | P83: =IF(O83="","","ERRORE: INSERIRE SOLO VALORI NUMERICI COME LATITUDINE, LONGITUDINE E ALTITUDINE!") ->  | BE83: 1 | BF83: 2 | BG83: 3 | BH83: 4 | BI83: 5 | BJ83: 6 | BK83: 7 | BL83: 8 | BM83: 9 | BN83: 10 | BO83: 11 | BP83: 12 | BQ83: 13 | BR83: 14 | BS83: 15 | BT83: 16 | BU83: 17 | BV83: 18 | BW83: 19 | BX83: 20 | BY83: 21 | BZ83: 22 | CA83: 23 | CB83: 24 | CC83: 25 | CD83: 26 | CE83: 27 | CF83: 28 | CG83: 29 | CH83: 30 | CI83: 31 | CJ83: 32 | CK83: 16 | CO83: =Clima!D40 -> BS | CQ83: Canterano
D84: Ambiente circostante prevalente | K84: Asfalto invecchiato | O84: → Riflettanza solare (ρ) = | R84: =VLOOKUP(K84,$BE$110:$BF$124,2,FALSE) -> 0.22 | CO84: =Clima!D41 -> BT | CQ84: Capena
D85: Preesistenza | K85: Edificio esistente | CO85: =Clima!D42 -> BZ | CQ85: Capranica Prenestina
D86: Destinazione d'uso (classificazione DPR 412/93) | K86: E.1 (1): Abitazioni residenziali con occupazione continuativa (abitaz, collegi, conventi, case di pena, caserme) | BE86: Limiti APE | BG86: Preesistenza e indici | BK86: Soggetto iva | BM86: Destinazione d'uso (ACS) | CO86: =Clima!D43 -> CA | CQ86: Carpineto Romano
D87: Tipo di attività | K87: Abitazioni | T87: =IF(AND(K86=BE69,OR(K87=BM88,K87=BM89)),"",IF(AND(K86=BE70,K87=BM88),"", IF(AND(K86=BE71,OR(K87=BM90,K87=BM91,K87=BM92,K87=BM104)),"", IF(AND(K86=BE72,K87=BM99),"",IF(AND(K86=BE73,OR(K87=BM93,K87=BM94,K87=BM104)),"",IF(AND(K86=BE74,OR(K87=BM101,K87=BM102,K87=BM103,K87=BM106)),"", IF(AND(K86=BE75,OR(K87=BM100,K87=BM101,K87=BM103,K87=BM106)),"",IF(AND(K86=BE76,OR(K87=BM100,K87=BM101,K87=BM102,K87=BM103)),"", IF(AND(K86=BE77,OR(K87=BM99,K87=BM100,K87=BM101,K87=BM104,K87=BM106)),"",IF(AND(K86=BE78,OR(K87=BM97,K87=BM105)),"", IF(AND(K86=BE79,OR(K87=BM97,K87=BM105,K87=BM106)),"",IF(AND(K86=BE80,OR(K87=BM97,K87=BM105,K87=BM106)),"", IF(AND(K86=BE81,OR(K87=BM95,K87=BM96)),"",IF(AND(K86=BE82,OR(K87=BM98,K87=BM106)),"", "! ! !")))))))))))))) ->  | U87: =IF(T87="","","ERRORE: L'ATTIVITA' SCELTA NON FA PARTE DELLA DESTINAZIONE D'USO INDICATA SOPRA!") ->  | BE87: Dal 01/06/2015 | BG87: Nuovo edificio | BI87: indice di uso (metro quadro/cubo): | BK87: Soggetto IVA | BM87: Tipo | BN87: Q. | BO87: a | BP87: UM | CO87: =Clima!D44 -> CB | CQ87: Casape
D88: Inquadramento fiscale del proprietario | K88: Soggetto non IVA | BE88: Dal 2019 (pubblici) o 2021 (privati) | BG88: Edificio esistente | BI88: =IF($BH$102=$BI$95,"quadri","cubi") -> quadri | BK88: Soggetto non IVA | BM88: Abitazioni | CO88: =Clima!D45 -> CE | CQ88: Castel Gandolfo
D89: Prestazione energetica dell'edificio di riferimento | K89: Dal 2019 (pubblici) o 2021 (privati) | BI89: =IF($BH$102=$BI$95,"kWh/mq anno","kWh/mc anno") -> kWh/mq anno | BM89: Collegi, conventi, case di cura, caserme | CO89: =Clima!D46 -> CH | CQ89: Castel Madama
BI90: =IF($BH$102=$BI$95,"[kWh/mq]","[kWh/mc]") -> [kWh/mq] | BM90: Dormitori, Residence e B&B | BN90: 40 | BO90: litri/G a letto | BP90: letti | CO90: =Clima!D47 -> CI | CQ90: Castelnuovo di Porto
BI91: =IF($BH$102=$BI$95,"kWh/mq","kWh/mc") -> kWh/mq | BM91: Hotel fino a tre stelle | BN91: 60 | BO91: litri/G a letto | BP91: letti | CO91: =Clima!D48 -> CL | CQ91: Castel San Pietro Romano
D92: …e adesso? | BI92: =IF($BH$102=$BI$95,"kWh/m2anno","kWh/m3anno") -> kWh/m2anno | BM92: Hotel quattro stelle e oltre | BN92: 80 | BO92: litri/G a letto | BP92: letti | CO92: =Clima!D49 -> CN | CQ92: Cave
BM93: Attività ospedaliera con pernotto | BN93: 80 | BO93: litri/G a letto | BP93: letti | CO93: =Clima!D50 -> CO | CQ93: Cerreto Laziale
E94: Passa subito a descrivere una soluzione tecnica compilando il foglio "SOLUZIONE"… | BE94: Destinazione d'uso generale (residenziale = E.1) | BI94: SI/NO | BM94: Attività ospedaliera day hospital (senza pernotto) | BN94: 15 | BO94: litri/G a letto | BP94: letti | CO94: =Clima!D51 -> CR | CQ94: Cervara di Roma
BE95: Residenziale | BI95: SI | BM95: Scuole e istruzione | BN95: 0.2 | BO95: litri/G a allievo | BP95: allievi | CO95: =Clima!D52 -> CS | CQ95: Cerveteri
E96: …oppure consulta il database "TECNOLOGIE" per vedere se le tecnologie che intendi utilizzare sono già presenti. | BE96: Non residenziale | BI96: NO | BM96: Scuole materne e asili nido | BN96: 8 | BO96: litri/G a bambino | BP96: bambini | CO96: =Clima!D53 -> CT | CQ96: Ciciliano
BM97: Attività sportive/palestre | BN97: 50 | BO97: litri/G a doccia | BP97: docce | CO97: =Clima!D54 -> CZ | CQ97: Cineto Romano
E98: IMPORTANTE: | BM98: Spogliatoi di stabilimenti | BN98: 10 | BO98: litri/G a doccia | BP98: docce | CO98: =Clima!D55 -> EN | CQ98: Civitavecchia
BE99: CALCOLO DESTINAZIONE D'USO | BM99: Uffici | BN99: 0.2 | BO99: litri/G a mq | BP99: mq | CO99: =Clima!D56 -> FC | CQ99: Civitella San Paolo
F100: Presta attenzione ai MESSAGGI DI AVVISO (scritti in questo colore)….. | BE100: Destinazione d'uso generale (residenziale = E.1) | BH100: =IF(OR(K86=$BE$69,K86=$BE$70,K86=$BE$71),$BE$95,$BE$96) -> Residenziale | BM100: Esercizio commerciale senza obbligo di servizi igienici per il pubblico | BN100: 0 | BO100: litri/G | CO100: =Clima!D57 -> FE | CQ100: Colleferro
BE101: Residenziale stretto (no alberghi) | BH101: =IF(OR(K86=$BE$69,K86=$BE$70),$BI$95,$BI$96) -> SI | BM101: Esercizio commerciale con obbligo di servizi igienici per il pubblico | BN101: 0.2 | BO101: litri/G a mq | BP101: mq | CO101: =Clima!D58 -> FG | CQ101: Colonna
F102: ...e ai MESSAGGI DI ERRORE (scritti in questo colore)… | BE102: Residenziale strettissimo (solo case) | BH102: =IF(AND($BH$101=$BI$95,$K$87=$BM$88),$BI$95,$BI$96) -> SI | BM102: Ristoranti – Caffetterie | BN102: 65 | BO102: litri/G a coperto | BP102: coperti | CO102: =Clima!D59 -> FI | CQ102: Fiano Romano
BM103: Catering, self service, Bar | BN103: 25 | BO103: litri/G a coperto | BP103: coperti | CO103: =Clima!D60 -> FM | CQ103: Filacciano
F104: …e consulta sempre i commenti (triangolini rossi sulle celle) --->---> | BM104: Servizio lavanderia | BN104: 50 | BO104: litri/G a letto | BP104: letti | CO104: =Clima!D61 -> FR | CQ104: Formello
BE105: Temperatura esterna di progetto UNI 5364 | BI105: =VLOOKUP(provincia,Clima!$D$141:$T$251,Clima!$T$251,FALSE) -> 0 | BM105: Centri benessere | BN105: 200 | BO105: litri/G a ospite | BP105: ospiti | CO105: =Clima!D62 -> GE | CQ105: Frascati
BM106: Altro | BN106: 0 | BO106: litri/G | CO106: =Clima!D63 -> GO | CQ106: Gallicano nel Lazio
CO107: =Clima!D64 -> GR | CQ107: Gavignano
BE108: Valori di riflettanza ρ per le diverse superfici (Prospetto C.2 norma UNI 10349:2016-1) | CO108: =Clima!D65 -> IM | CQ108: Genazzano
BE109: Tipo di superficie | BF109: ρ | CO109: =Clima!D66 -> IS | CQ109: Genzano di Roma
BE110: Strade sterrate | BF110: 0.04 | CO110: =Clima!D67 -> KR | CQ110: Gerano
BE111: Sup. acquose | BF111: 0.07 | CO111: =Clima!D68 -> LC | CQ111: Gorga
BE112: Bosco di conifera d'inverno | BF112: 0.07 | CO112: =Clima!D69 -> LE | CQ112: Grottaferrata
BE113: Campi con raccolti e piante | BF113: 0.1 | CO113: =Clima!D70 -> LI | CQ113: Guidonia Montecelio
BE114: Tetti o terrazzi in bitume | BF114: 0.13 | CO114: =Clima!D71 -> LO | CQ114: Jenne
BE115: Suolo (creta, marne) | BF115: 0.14 | CO115: =Clima!D72 -> LT | CQ115: Labico
BE116: Erba secca | BF116: 0.2 | CO116: =Clima!D73 -> LU | CQ116: Lanuvio
BE117: Pietrisco | BF117: 0.2 | CO117: =Clima!D74 -> MB | CQ117: Licenza
BE118: Asfalto invecchiato | BF118: 0.22 | CO118: =Clima!D75 -> MC | CQ118: Magliano Romano
BE119: Bosco in autunno | BF119: 0.26 | CO119: =Clima!D76 -> ME | CQ119: Mandela
BE120: Erba verde | BF120: 0.26 | CO120: =Clima!D77 -> MI | CQ120: Manziana
BE121: Superfici scure di edifici (mattoni o vernici scure) | BF121: 0.27 | CO121: =Clima!D78 -> MN | CQ121: Marano Equo
BE122: Foglie morte | BF122: 0.3 | CO122: =Clima!D79 -> MO | CQ122: Marcellina
BE123: Superfici chiare di edifici (mattoni o vernici chiare) | BF123: 0.6 | CO123: =Clima!D80 -> MS | CQ123: Marino
BE124: Neve fresca | BF124: 0.75 | CO124: =Clima!D81 -> MT | CQ124: Mazzano Romano
CO125: =Clima!D82 -> NA | CQ125: Mentana
BE126: Valori effettivi di coordinate e altitudine del luogo | CO126: =Clima!D83 -> NO | CQ126: Montecompatri
BE127: Latitudine effettiva | BF127: =IF(K81<>0,K81,K78) -> 41.92111111 | BG127: Nord | CO127: =Clima!D84 -> NU | CQ127: Monteflavio
BE128: Longitudine effettiva | BF128: =IF(K82<>0,K82,K79) -> 12.52305556 | BG128: Est | CO128: =Clima!D85 -> OG | CQ128: Montelanico
BE129: Altezza s.l.m. effettiva | BF129: =IF(K83<>0,K83,K80) -> 20 | BG129: m | CO129: =Clima!D86 -> OR | CQ129: Montelibretti
CO130: =Clima!D87 -> OT | CQ130: Monte Porzio Catone
CO131: =Clima!D88 -> PA | CQ131: Monterotondo
CO132: =Clima!D89 -> PC | CQ132: Montorio Romano
CO133: =Clima!D90 -> PD | CQ133: Moricone
CO134: =Clima!D91 -> PE | CQ134: Morlupo
CO135: =Clima!D92 -> PG | CQ135: Nazzano
CO136: =Clima!D93 -> PI | CQ136: Nemi
CO137: =Clima!D94 -> PN | CQ137: Nerola
CO138: =Clima!D95 -> PO | CQ138: Nettuno
CO139: =Clima!D96 -> PR | CQ139: Olevano Romano
CO140: =Clima!D97 -> PT | CQ140: Palestrina
CO141: =Clima!D98 -> PU | CQ141: Palombara Sabina
CO142: =Clima!D99 -> PV | CQ142: Percile
CO143: =Clima!D100 -> PZ | CQ143: Pisoniano
CO144: =Clima!D101 -> RA | CQ144: Poli
CO145: =Clima!D102 -> RC | CQ145: Pomezia
CO146: =Clima!D103 -> RE | CQ146: Ponzano Romano
CO147: =Clima!D104 -> RG | CQ147: Riano
CO148: =Clima!D105 -> RI | CQ148: Rignano Flaminio
CO149: =Clima!D106 -> RM | CQ149: Riofreddo
CO150: =Clima!D107 -> RN | CQ150: Rocca Canterano
CO151: =Clima!D108 -> RO | CQ151: Rocca di Cave
CO152: =Clima!D109 -> SA | CQ152: Rocca di Papa
CO153: =Clima!D110 -> SI | CQ153: Roccagiovine
CO154: =Clima!D111 -> SO | CQ154: Rocca Priora
CO155: =Clima!D112 -> SP | CQ155: Rocca Santo Stefano
CO156: =Clima!D113 -> SR | CQ156: Roiate
CO157: =Clima!D114 -> SS | CQ157: Roma
CO158: =Clima!D115 -> SV | CQ158: Roviano
CO159: =Clima!D116 -> TA | CQ159: Sacrofano
CO160: =Clima!D117 -> TE | CQ160: Sambuci
CO161: =Clima!D118 -> TN | CQ161: San Gregorio da Sassola
CO162: =Clima!D119 -> TO | CQ162: San Polo dei Cavalieri
CO163: =Clima!D120 -> TP | CQ163: Santa Marinella
CO164: =Clima!D121 -> TR | CQ164: Sant'Angelo Romano
CO165: =Clima!D122 -> TS | CQ165: Sant'Oreste
CO166: =Clima!D123 -> TV | CQ166: San Vito Romano
CO167: =Clima!D124 -> UD | CQ167: Saracinesco
CO168: =Clima!D125 -> VA | CQ168: Segni
CO169: =Clima!D126 -> VB | CQ169: Subiaco
CO170: =Clima!D127 -> VC | CQ170: Tivoli
CO171: =Clima!D128 -> VE | CQ171: Tolfa
CO172: =Clima!D129 -> VI | CQ172: Torrita Tiberina
CO173: =Clima!D130 -> VR | CQ173: Trevignano Romano
CO174: =Clima!D131 -> VS | CQ174: Vallepietra
CO175: =Clima!D132 -> VT | CQ175: Vallinfreda
CO176: =Clima!D133 -> VV | CQ176: Valmontone
CQ177: Velletri
CQ178: Vicovaro
CQ179: Vivaro Romano
CQ180: Zagarolo
CQ181: Lariano
CQ182: Ladispoli
CQ183: Ardea
CQ184: Ciampino
CQ185: San Cesareo
CQ186: Fiumicino
CQ187: Fonte Nuova

Sheet SOLUZIONE01
A1: ="CALCOLO DELLA SOLUZIONE TECNICA: "&I15 -> CALCOLO DELLA SOLUZIONE TECNICA: STATO DI FATTO | BA1: =$A1 -> CALCOLO DELLA SOLUZIONE TECNICA: STATO DI FATTO | EA1: =$A1 -> CALCOLO DELLA SOLUZIONE TECNICA: STATO DI FATTO
C3: A cosa serve questo foglio? | BE3: RIFERIMENTI VBA DEL FOGLIO, NON SPOSTARE!! | BP3: VALORI DEI GRAFICI DA NON SPOSTARE | BU3: CHECK ERRORI
BY4: PARAGRAFO
D5: Questo è il cuore di Archi-Energy! | BH5: Cella di riferimento VBA del foglio | BP5: APE1 | BQ5: =BK6316 -> 0 | BU5: ERRORI DI INPUT IN QUESTO FOGLIO | BY5: =IF(M20<>"","DATI GENERALI",IF(Q30<>"",C28&" - DIMENS. GENERALI",IF(Q45<>"",C43&" - SUP. DISPERDENTI",IF(BD84<>"",C43&" - SUP. DISPERDENTI",IF(OR($O$175<>"",AH159<>""),C153&" - CAP. TERMICA EDIFICIO",IF(K208<>"",D202,IF(P232<>"",D229,IF(O244<>"",D229,IF(P262<>"",D259,IF(K292<>"",D291,IF(K293<>"",D291,IF(M311<>"",D291,IF(M312<>"",D291,IF(M313<>"",D291,IF(M314<>"",D291,IF(M315<>"",D291,IF(M319<>"",D291,IF(AD294<>"",D291,IF(AD295<>"",D291,IF(AD300<>"",D291,IF(AD301<>"",D291,IF(AD302<>"",D291,IF(AD303<>"",D291,IF(AF306<>"",D291,IF(AC331<>"",D291,IF(H360<>"",D344,IF(P384<>"",D344,IF(L1174<>"",$C$1170&" - "&D1172,IF(L1352<>"",$C$1170&" - "&D1350,IF(L1530<>"",$C$1170&" - "&D1528,IF(L1708<>"",$C$1170&" - "&D1706,IF(OR(L1888<>"",W1966<>""),$C$1884&" - "&D1886,IF(OR(L2084<>"",W2162<>""),$C$1884&" - "&D2082,IF(OR(L2280<>"",W2358<>""),$C$1884&" - "&D2278,IF(OR(L2476<>"",W2554<>""),$C$1884&" - "&D2474,IF(L2674<>"",$C$2670&" - "&D2672,IF(L2811<>"",$C$2670&" - "&D2809,IF(L2950<>"",$C$2946&" - "&D2948,IF(L3126<>"",$C$3122&" - "&D3124,IF(L3311<>"",$C$3307&" - "&D3309,IF(AB4061<>"",C4057&" - CONFIG. RISCALDAMENTO",IF(AB4100<>"",C4096&" - CONFIG. RAFFRESCAMENTO",IF(AB4138<>"",C4135&" - CONFIG. ACS",IF(N6129<>"",C6123&" - VENDITA ENERGIA PRODOTTA","")))))))))))))))))))))))))))))))))))))))))))) -> 
BH6: Nome del foglio nei link | BI6: =MID(CELL("nomefile",A1),FIND("]",CELL("nomefile",A1))+1,20) -> SOLUZIONE01 | BU6: ERRORI DI INPUT FOGLIO START | BY6: =START!BI22 -> 
D7: Qui puoi descrivere tutte le caratteristiche del sistema edifico/impianto, effettuare i calcoli, visualizzare i risultati e stampare i documenti AUDIT e APE. | BH7: ForceRecalc | BI7: 0 | BP7: APE2 | BQ7: =BK6331 -> 0 | BU7: ERRORI DI INPUT FOGLIO TECNOLOGIE | BY7: =TECNOLOGIE!BW5 -> 
BH8: Foglio linkato | BI8: =I20 -> 0 | BU8: ERRORI DI INPUT FOGLIO INCENTIVI
D9: Utilizza uno di questi fogli "SOLUZIONE" per ogni soluzione tecnica che vuoi realizzare. Per crearne di nuovi puoi utilizzare il comando "Aggiungi soluzione" nella barra in alto. | BP9: APE3 | BQ9: =BK6346 -> 0 | BU9: ERRORI DI INPUT FOGLIO PARAMETRI
D11: Inizia a compilare questo foglio con i dati specifici della soluzione che vuoi descrivere: | BP11: APE4 | BQ11: =BK6361 -> 0 | BU11: ERRORI DI CALCOLO GENERALI | BY11: =IF(OR(ISERR(BF5369),ISERR(BL5369),ISERR(BF5395),ISERR(BL5395),ISERR(W6184),ISERR(BY5),ISERR(BY6),ISERR(BY7),ISERR(BY8),ISERR(BY9)),"! ! !","") -> 
D13: DATI GENERALI DELLA SOLUZIONE TECNICA
D15: Nome esplicativo della soluzione | I15: STATO DI FATTO
D17: Descrizione libera della soluzione | I17: Descrizione dello stato di fatto dell'edificio di esempio
D20: Nome del foglio di confronto | M20: =IF($I$20="","",IF(IFERROR(VLOOKUP($I$20,$BH$46:$BI$66,2,FALSE),"! ! !")=0,"","! ! !")) ->  | N20: =IF($M$20="","","ERRORE: QUESTO FOGLIO NON ESISTE, SCEGLINE UN ALTRO") -> 
D22: CHECK ERRORI GLOBALE | I22: =IF(BY5<>"","ATTENZIONE! SONO PRESENTI ERRORI AL PARAGRAFO: "&BY5,IF(BY6<>"","ATTENZIONE! SONO PRESENTI ERRORI NEL FOGLIO 'START' AL PARAGRAFO: "&BY6,IF(BY7<>"","ATTENZIONE! SONO PRESENTI ERRORI NEL FOGLIO 'TECNOLOGIE' AL PARAGRAFO: "&BY7,IF(BY8<>"","ATTENZIONE! SONO PRESENTI ERRORI NEL FOGLIO 'INCENTIVI' AL PARAGRAFO: "&BY8,IF(BY9<>"","ATTENZIONE! SONO PRESENTI ERRORI NEL FOGLIO 'PARAMETRI' AL PARAGRAFO: "&BY9,IF(BY11<>"","ERRORE DI CALCOLO GENERALE! PROVA A RICALCOLARE (MENU 'FORMULE'-'RICALCOLA') DOPO AVER MODIFICATO UN SET-POINT, "&"OPPURE TORNARE INDIETRO (CTRL+Z) FINO AD UNA SITUAZIONE FUNZIONANTE, OPPURE CHIUDI E RIAPRI. SE ANCORA NON FUNZIONA CONTROLLA BENE I DATI INSERITI","OK! NESSUN ERRORE RILEVATO! Possono esserci comunque errori non rilevabili!")))))) -> OK! NESSUN ERRORE RILEVATO! Possono esserci comunque errori non rilevabili!
A24: 1. | C24: INVOLUCRO E UTILIZZO | BB24: =$A24 -> 1. | BC24: =$C24 -> INVOLUCRO E UTILIZZO | EB24: =$A24 -> 1. | EC24: =$C24 -> INVOLUCRO E UTILIZZO
B26: 1.1 | D26: CARATTERIZZAZIONE DELL'INVOLUCRO | BC26: =$B26 -> 1.1 | BD26: =$D26 -> CARATTERIZZAZIONE DELL'INVOLUCRO | EC26: =$B26 -> 1.1 | ED26: =$D26 -> CARATTERIZZAZIONE DELL'INVOLUCRO
C28: 1.1.1 | D28: DIMENSIONI GENERALI | BD28: =$C28&" "&$D28 -> 1.1.1 DIMENSIONI GENERALI | BK28: DIMENSIONI GENERALI MODIFICATE CON LE PERC. DI RISCALDAMENTO E RAFFRESCAMENTO | ED28: =$C28&" "&$D28 -> 1.1.1 DIMENSIONI GENERALI
BP29: RISC | BQ29: RAFF
D30: Superficie in pianta totale lorda (di tutti i piani) | I30: =INPUT!CJ82 -> 91.08 | K30: m2 | Q30: =IF(OR(I30="",I30<=0,I31="",I31<=0,I32="",I32<=0,I33="",I33<=0,I34="",I35="",I36="",I36<=0,I38="",I38<=0,I31>I30,I33>I32),"! ! !","") ->  | R30: =IF(Q30="","","ERRORE: DATI INPUT MANCANTI O SCORRETTI") ->  | BE30: DATI DI SCELTA MULTIPLA GENERALI | BK30: Superficie in pianta totale lorda (di tutti i piani) | BP30: =I30*$N$232 -> 91.08 | BQ30: =I30*$N$262 -> 91.08 | BR30: m2
D31: Superficie in pianta totale netta (di tutti i piani) | I31: =INPUT!CJ83 -> 79.2 | K31: m2 | L31: Rapporto superficie netta/lorda | O31: =I31/I30 -> 0.8695652174 | BK31: Superficie in pianta totale netta (di tutti i piani) | BP31: =I31*$N$232 -> 79.2 | BQ31: =I31*$N$262 -> 79.2 | BR31: m2
D32: Volume totale lordo | I32: =INPUT!CJ84 -> 278.7048 | K32: m3 | BE32: Si/No | BG32: ALIQUOTE IVA | BK32: Volume totale lordo | BP32: 278.7048 | BQ32: 278.7048 | BR32: m3
D33: Volume totale netto | I33: =INPUT!CJ85 -> 210.672 | K33: m3 | L33: Rapporto volume netto/lordo | O33: =I33/I32 -> 0.7558965615 | BE33: SI | BG33: =PARAMETRI!C14 -> Ordinaria | BK33: Volume totale netto | BP33: 210.672 | BQ33: 210.672 | BR33: m3
D34: Quota minima da terra della zona di calcolo | I34: =INPUT!CJ86 -> 0 | K34: m | BE34: NO | BG34: =PARAMETRI!C15 -> Ridotta
D35: Quota massima da terra della zona di calcolo | I35: =INPUT!CJ87 -> 2.66 | K35: m | BG35: =PARAMETRI!C16 -> Custom1
D36: Altezza media della zona di calcolo climatizzata | I36: =INPUT!CJ88 -> 2.66 | K36: m | BG36: =PARAMETRI!C17 -> Custom2
D37: Numero di ambienti totali nell'edificio | I37: =INPUT!CJ89 -> 7 | BG37: =PARAMETRI!C18 -> Custom3
D38: Numero medio di piani climatizzati | I38: =INPUT!CJ90 -> 1 | BG38: =PARAMETRI!C19 -> Custom4
D39: Superficie in pianta lorda media (di un piano) | I39: =INPUT!CJ91 -> 91.08 | K39: m2 | BK39: Superficie in pianta lorda media (di un piano) | BP39: 91.08 | BQ39: 91.08 | BR39: m2
D40: Superficie in pianta netta media (di un piano) | I40: =INPUT!CJ92 -> 79.2 | K40: m2 | BK40: Superficie in pianta netta media (di un piano) | BP40: 79.2 | BQ40: 79.2 | BR40: m2
D41: Altezza media netta interpiano | I41: =INPUT!CJ93 -> 2.66 | K41: m
C43: 1.1.2 | D43: SUPERFICI DISPERDENTI | BD43: =$C43&" "&$D43 -> 1.1.2 SUPERFICI DISPERDENTI | ED43: =$C43&" "&$D43 -> 1.1.2 SUPERFICI DISPERDENTI
D45: Resistenza termica superficiale esterna | I45: 0.04 | J45: 0.89 | K45: m2K/W | L45: (Valore consigliato = 0.04 m2K/W) | Q45: =IF(OR(I45="",I45<=0,I46<0,I47="",I47<=0,I48<0),"! ! !","") ->  | R45: =IF(Q45="","","ERRORE: DATI INPUT MANCANTI O SCORRETTI") ->  | BH45: FOGLI SOLUZIONE | BJ45: DATI DI SCELTA MULTIPLA
D46: Resistenza termica aggiuntiva per solai a terra | I46: 0 | J46: 0.89 | K46: m2K/W | L46: (Valore consigliato = 0 m2K/W) | BH46: =FogliSoluzione($BI$6) -> Interfaccia
D47: Emissività infrarossa media delle pareti esterne (ε) | I47: 0.88 | L47: (Valori consigliati = da 0.84 a 0.90) | BH47: SOLUZIONE01 | BJ47: Confine: | BL47: Esposizione | BQ47: Confine terreno: | BS47: Spazio non riscaldato:
D48: Percent. di incremento trasmittanze per ponti termici PT | I48: 0.05 | L48: (Valori consigliati = da 0% a 25% vedi commento) | BJ48: Esterno | BL48: Stringa | BM48: Codice | BN48: Stringa per sottotetti | BO48: Stringa per serre | BQ48: Controterra | BS48: =TECNOLOGIE!BE72 -> No irragg. - Tabelle UNI
BJ49: Spazio non clima | BL49: N | BM49: 1 | BN49: OR-A | BO49: N | BQ49: Interc. aerata | BS49: =TECNOLOGIE!BE73 -> Serra
D50: INFO IMPORTANTI su come modellare l'involucro dell'edificio: | BJ50: Terreno | BL50: NE | BM50: 2 | BO50: NE | BS50: =TECNOLOGIE!BE74 -> Sottotetto
E51: - Pensa all'edificio come un contenitore: descrivi solo le pareti perimetrali dello spazio climatizzato tralasciando tutte le strutture interne. | BJ51: Spazi climatizzati | BL51: E | BM51: 3 | BO51: E
E52: - Semplifica al massimo la forma dell'involucro esterno: molti elementi architettonici sono energeticamente irrilevanti. | BL52: SE | BM52: 4 | BO52: SE
BL53: S | BM53: 5 | BO53: S
D54: NOTA1: Ogni riga è un elemento dell'involucro. Le righe compilate in modo non corretto vengono evidenziate in rosso. | BL54: SO | BM54: 6 | BO54: SO
D55: NOTA2: Per velocizzare l'inserimento dei dati puoi disabilitare temporaneamente i calcoli automatici sul menu "Formule" - "Opzioni di calcolo" - "Manuale". RICORDATI POI DI RIABILITARE I CALCOLI AUTOMATICI ALTRIMENTI ARCHI-ENERGY NON FUNZIONA!! | BL55: O | BM55: 7 | BO55: O
D56: ESPOSIZIONE E CONFINI | L56: COMPONENTI DELL'INVOLUCRO | S56: OMBREGGIAMENTI | AB56: DESCRIZIONE LIBERA | BL56: NO | BM56: 8 | BO56: NO
D57: CONFINE DEL COMPONENTE | F57: SPAZI NON CLIMATIZZATI | H57: ESPOSIZIONE COMPONENTE | J57: CONFINE COL TERRENO | L57: SUP. LORDA | M57: COMPONENTI VETRATI | P57: COMPONENTI OPACHI | S57: OSTRUZIONI ORIZZONTALI | U57: AGGETTI ORIZZONTALI E VERTIC. | Y57: ALTRE OSTRUZIONI | BB57: DATI DI CALCOLO ERRORI | BL57: OR-A | BM57: 9
F58: Tecnologia | J58: Tipologia | L58: [m2] | M58: Tecnologia | O58: Area [m2] | P58: Tecnologia | R58: Area [m2] | S58: Tipo | T58: Presenza % | U58: Orizz. Tipo | V58: Vert. Tipo | W58: Pres. opaca | X58: Pres. vetrata | Y58: Tipo | Z58: Pres. opaca | AA58: Pres. vetrata | BB58: Cod.esposiz. | BC58: Semi_compilati | BD58: Tipo sp. non clima | BE58: Compil. Errata | BF58: Errore | BL58: OR-B | BM58: 10
C59: 1 | D59: =INPUT!BP69 ->  | F59: =INPUT!BR69 ->  | H59: =INPUT!BT69 ->  | J59: =INPUT!BV69 ->  | L59: =INPUT!BX69 -> 0 | M59: =INPUT!BY69 ->  | O59: =INPUT!CA69 -> 0 | P59: =INPUT!CB69 ->  | R59: =INPUT!CD69 -> 0 | Y59: =INPUT!CK69 ->  | Z59: =INPUT!CL69 ->  | AA59: =INPUT!CM69 ->  | AB59: =INPUT!CN69 -> A | BB59: =IF(H59="N",1,IF(H59="NE",2,IF(H59="E",3,IF(H59="SE",4,IF(H59="S",5,IF(H59="SO",6,IF(H59="O",7,IF(H59="NO",8,9)))))))) -> 9 | BC59: =IF(OR(D59<>"",F59<>"",H59<>"",J59<>"",L59<>"",M59<>"",O59<>"",P59<>"",S59<>"",T59<>"",U59<>"",V59<>"",W59<>"",Y59<>"",Z59<>"",U59<>"",AB59<>""),TRUE,FALSE) -> TRUE | BD59: =IF($D59<>$BJ$49,"",IFERROR(HLOOKUP($F59,TECNOLOGIE!$F$72:$T$94,TECNOLOGIE!$BC$75,FALSE),"")) ->  | BE59: =IF(OR(AND(F59<>"",ISERROR(HLOOKUP(F59,$BK$73:$BY$73,1,FALSE))),AND(M59<>"",ISERROR(HLOOKUP(M59,$BK$71:$BY$71,1,FALSE))),AND(P59<>"",ISERROR(HLOOKUP(P59,$BK$69:$BY$69,1,FALSE))),AND(S59<>"",ISERROR(HLOOKUP(S59,$BK$76:$BY$76,1,FALSE))),AND(U59<>"",ISERROR(HLOOKUP(U59,$BK$78:$BY$78,1,FALSE))),AND(V59<>"",ISERROR(HLOOKUP(V59,$BK$80:$BY$80,1,FALSE))),AND(Y59<>"",ISERROR(HLOOKUP(Y59,$BK$82:$BY$82,1,FALSE)))),TRUE,FALSE) -> FALSE | BF59: =IF(AND(OR(AND($D59=$BJ$48,$H59<>""),AND($D59=$BJ$49,OR(AND($BD59=$BS$48),AND($BD59=$BS$49,$H59<>$BL$57,$H59<>$BL$58),AND($BD59=$BS$50,$H59=$BL$57))),AND($D59=$BJ$50,$J59<>"",$H59<>""),AND($D59=$BJ$51,$H59<>"")),$H59<>"",$L59>0,OR(AND($M59<>"",NOT(ISERROR(HLOOKUP($M59,TECNOLOGIE!$F$48:$T$48,1,FALSE))),$O59>=0),AND($M59="",OR($O59=0,$O59=""))),OR(AND($P59<>"",NOT(ISERROR(HLOOKUP($P59,TECNOLOGIE!$F$20:$T$20,1,FALSE))),$R59>=0),AND($P59="",$R59=0)),$R59>=0),IF($BE59=FALSE,FALSE,TRUE),IF(AND($BC59=FALSE,$BE59=FALSE),FALSE,TRUE)) -> TRUE
C60: 2 | D60: =INPUT!BP70 -> Esterno | F60: =INPUT!BR70 ->  | H60: =INPUT!BT70 -> N | J60: =INPUT!BV70 ->  | L60: =INPUT!BX70 -> 25.004 | M60: =INPUT!BY70 -> FinEff | O60: =INPUT!CA70 -> 4.517475728 | P60: =INPUT!CB70 -> ParEff | R60: =INPUT!CD70 -> 20.48652427 | Y60: =INPUT!CK70 -> Ostruzione totale | Z60: =INPUT!CL70 -> 0.12 | AA60: =INPUT!CM70 -> 0.12 | AB60: =INPUT!CN70 -> B | BB60: 1 | BC60: TRUE | BD60: =IF($D60<>$BJ$49,"",IFERROR(HLOOKUP($F60,TECNOLOGIE!$F$72:$T$94,TECNOLOGIE!$BC$75,FALSE),"")) ->  | BE60: FALSE | BF60: =IF(AND(OR(AND($D60=$BJ$48,$H60<>""),AND($D60=$BJ$49,OR(AND($BD60=$BS$48),AND($BD60=$BS$49,$H60<>$BL$57,$H60<>$BL$58),AND($BD60=$BS$50,$H60=$BL$57))),AND($D60=$BJ$50,$J60<>"",$H60<>""),AND($D60=$BJ$51,$H60<>"")),$H60<>"",$L60>0,OR(AND($M60<>"",NOT(ISERROR(HLOOKUP($M60,TECNOLOGIE!$F$48:$T$48,1,FALSE))),$O60>=0),AND($M60="",OR($O60=0,$O60=""))),OR(AND($P60<>"",NOT(ISERROR(HLOOKUP($P60,TECNOLOGIE!$F$20:$T$20,1,FALSE))),$R60>=0),AND($P60="",$R60=0)),$R60>=0),IF($BE60=FALSE,FALSE,TRUE),IF(AND($BC60=FALSE,$BE60=FALSE),FALSE,TRUE)) -> FALSE
C61: 3 | D61: =INPUT!BP71 ->  | F61: =INPUT!BR71 ->  | H61: =INPUT!BT71 ->  | J61: =INPUT!BV71 ->  | L61: =INPUT!BX71 -> 0 | M61: =INPUT!BY71 ->  | O61: =INPUT!CA71 -> 0 | P61: =INPUT!CB71 ->  | R61: =INPUT!CD71 -> 0 | Y61: =INPUT!CK71 ->  | Z61: =INPUT!CL71 ->  | AA61: =INPUT!CM71 ->  | AB61: =INPUT!CN71 -> C | BB61: 9 | BC61: TRUE | BD61: =IF($D61<>$BJ$49,"",IFERROR(HLOOKUP($F61,TECNOLOGIE!$F$72:$T$94,TECNOLOGIE!$BC$75,FALSE),"")) ->  | BE61: FALSE | BF61: =IF(AND(OR(AND($D61=$BJ$48,$H61<>""),AND($D61=$BJ$49,OR(AND($BD61=$BS$48),AND($BD61=$BS$49,$H61<>$BL$57,$H61<>$BL$58),AND($BD61=$BS$50,$H61=$BL$57))),AND($D61=$BJ$50,$J61<>"",$H61<>""),AND($D61=$BJ$51,$H61<>"")),$H61<>"",$L61>0,OR(AND($M61<>"",NOT(ISERROR(HLOOKUP($M61,TECNOLOGIE!$F$48:$T$48,1,FALSE))),$O61>=0),AND($M61="",OR($O61=0,$O61=""))),OR(AND($P61<>"",NOT(ISERROR(HLOOKUP($P61,TECNOLOGIE!$F$20:$T$20,1,FALSE))),$R61>=0),AND($P61="",$R61=0)),$R61>=0),IF($BE61=FALSE,FALSE,TRUE),IF(AND($BC61=FALSE,$BE61=FALSE),FALSE,TRUE)) -> TRUE
C62: 4 | D62: =INPUT!BP72 -> Esterno | F62: =INPUT!BR72 ->  | H62: =INPUT!BT72 -> S | J62: =INPUT!BV72 ->  | L62: =INPUT!BX72 -> 9.576 | M62: =INPUT!BY72 -> FinEff | O62: =INPUT!CA72 -> 1.730097087 | P62: =INPUT!CB72 -> ParEff | R62: =INPUT!CD72 -> 7.845902913 | Y62: =INPUT!CK72 -> Ostruzione totale | Z62: =INPUT!CL72 -> 0.12 | AA62: =INPUT!CM72 -> 0.12 | AB62: =INPUT!CN72 -> D | BB62: 5 | BC62: TRUE | BD62: =IF($D62<>$BJ$49,"",IFERROR(HLOOKUP($F62,TECNOLOGIE!$F$72:$T$94,TECNOLOGIE!$BC$75,FALSE),"")) ->  | BE62: FALSE | BF62: =IF(AND(OR(AND($D62=$BJ$48,$H62<>""),AND($D62=$BJ$49,OR(AND($BD62=$BS$48),AND($BD62=$BS$49,$H62<>$BL$57,$H62<>$BL$58),AND($BD62=$BS$50,$H62=$BL$57))),AND($D62=$BJ$50,$J62<>"",$H62<>""),AND($D62=$BJ$51,$H62<>"")),$H62<>"",$L62>0,OR(AND($M62<>"",NOT(ISERROR(HLOOKUP($M62,TECNOLOGIE!$F$48:$T$48,1,FALSE))),$O62>=0),AND($M62="",OR($O62=0,$O62=""))),OR(AND($P62<>"",NOT(ISERROR(HLOOKUP($P62,TECNOLOGIE!$F$20:$T$20,1,FALSE))),$R62>=0),AND($P62="",$R62=0)),$R62>=0),IF($BE62=FALSE,FALSE,TRUE),IF(AND($BC62=FALSE,$BE62=FALSE),FALSE,TRUE)) -> FALSE
C63: 5 | D63: =INPUT!BP73 ->  | F63: =INPUT!BR73 ->  | H63: =INPUT!BT73 ->  | J63: =INPUT!BV73 ->  | L63: =INPUT!BX73 -> 0 | M63: =INPUT!BY73 ->  | O63: =INPUT!CA73 -> 0 | P63: =INPUT!CB73 ->  | R63: =INPUT!CD73 -> 0 | Y63: =INPUT!CK73 ->  | Z63: =INPUT!CL73 ->  | AA63: =INPUT!CM73 ->  | AB63: =INPUT!CN73 -> E | BB63: 9 | BC63: TRUE | BD63: =IF($D63<>$BJ$49,"",IFERROR(HLOOKUP($F63,TECNOLOGIE!$F$72:$T$94,TECNOLOGIE!$BC$75,FALSE),"")) ->  | BE63: FALSE | BF63: =IF(AND(OR(AND($D63=$BJ$48,$H63<>""),AND($D63=$BJ$49,OR(AND($BD63=$BS$48),AND($BD63=$BS$49,$H63<>$BL$57,$H63<>$BL$58),AND($BD63=$BS$50,$H63=$BL$57))),AND($D63=$BJ$50,$J63<>"",$H63<>""),AND($D63=$BJ$51,$H63<>"")),$H63<>"",$L63>0,OR(AND($M63<>"",NOT(ISERROR(HLOOKUP($M63,TECNOLOGIE!$F$48:$T$48,1,FALSE))),$O63>=0),AND($M63="",OR($O63=0,$O63=""))),OR(AND($P63<>"",NOT(ISERROR(HLOOKUP($P63,TECNOLOGIE!$F$20:$T$20,1,FALSE))),$R63>=0),AND($P63="",$R63=0)),$R63>=0),IF($BE63=FALSE,FALSE,TRUE),IF(AND($BC63=FALSE,$BE63=FALSE),FALSE,TRUE)) -> TRUE
C64: 6 | D64: =INPUT!BP74 ->  | F64: =INPUT!BR74 ->  | H64: =INPUT!BT74 ->  | J64: =INPUT!BV74 ->  | L64: =INPUT!BX74 -> 0 | M64: =INPUT!BY74 ->  | O64: =INPUT!CA74 -> 0 | P64: =INPUT!CB74 ->  | R64: =INPUT!CD74 -> 0 | Y64: =INPUT!CK74 ->  | Z64: =INPUT!CL74 ->  | AA64: =INPUT!CM74 ->  | AB64: =INPUT!CN74 -> F | BB64: 9 | BC64: TRUE | BD64: =IF($D64<>$BJ$49,"",IFERROR(HLOOKUP($F64,TECNOLOGIE!$F$72:$T$94,TECNOLOGIE!$BC$75,FALSE),"")) ->  | BE64: FALSE | BF64: =IF(AND(OR(AND($D64=$BJ$48,$H64<>""),AND($D64=$BJ$49,OR(AND($BD64=$BS$48),AND($BD64=$BS$49,$H64<>$BL$57,$H64<>$BL$58),AND($BD64=$BS$50,$H64=$BL$57))),AND($D64=$BJ$50,$J64<>"",$H64<>""),AND($D64=$BJ$51,$H64<>"")),$H64<>"",$L64>0,OR(AND($M64<>"",NOT(ISERROR(HLOOKUP($M64,TECNOLOGIE!$F$48:$T$48,1,FALSE))),$O64>=0),AND($M64="",OR($O64=0,$O64=""))),OR(AND($P64<>"",NOT(ISERROR(HLOOKUP($P64,TECNOLOGIE!$F$20:$T$20,1,FALSE))),$R64>=0),AND($P64="",$R64=0)),$R64>=0),IF($BE64=FALSE,FALSE,TRUE),IF(AND($BC64=FALSE,$BE64=FALSE),FALSE,TRUE)) -> TRUE
C65: 7 | D65: =INPUT!BP75 -> Esterno | F65: =INPUT!BR75 ->  | H65: =INPUT!BT75 -> O | J65: =INPUT!BV75 ->  | L65: =INPUT!BX75 -> 4.788 | M65: =INPUT!BY75 -> FinEff | O65: =INPUT!CA75 -> 0.8650485437 | P65: =INPUT!CB75 -> ParEff | R65: =INPUT!CD75 -> 3.922951456 | Y65: =INPUT!CK75 -> Ostruzione totale | Z65: =INPUT!CL75 -> 0.12 | AA65: =INPUT!CM75 -> 0.12 | AB65: =INPUT!CN75 -> X | BB65: 7 | BC65: TRUE | BD65: =IF($D65<>$BJ$49,"",IFERROR(HLOOKUP($F65,TECNOLOGIE!$F$72:$T$94,TECNOLOGIE!$BC$75,FALSE),"")) ->  | BE65: FALSE | BF65: =IF(AND(OR(AND($D65=$BJ$48,$H65<>""),AND($D65=$BJ$49,OR(AND($BD65=$BS$48),AND($BD65=$BS$49,$H65<>$BL$57,$H65<>$BL$58),AND($BD65=$BS$50,$H65=$BL$57))),AND($D65=$BJ$50,$J65<>"",$H65<>""),AND($D65=$BJ$51,$H65<>"")),$H65<>"",$L65>0,OR(AND($M65<>"",NOT(ISERROR(HLOOKUP($M65,TECNOLOGIE!$F$48:$T$48,1,FALSE))),$O65>=0),AND($M65="",OR($O65=0,$O65=""))),OR(AND($P65<>"",NOT(ISERROR(HLOOKUP($P65,TECNOLOGIE!$F$20:$T$20,1,FALSE))),$R65>=0),AND($P65="",$R65=0)),$R65>=0),IF($BE65=FALSE,FALSE,TRUE),IF(AND($BC65=FALSE,$BE65=FALSE),FALSE,TRUE)) -> FALSE
C66: 8 | D66: =INPUT!BP76 -> Esterno | F66: =INPUT!BR76 ->  | H66: =INPUT!BT76 -> S | J66: =INPUT!BV76 ->  | L66: =INPUT!BX76 -> 15.428 | M66: =INPUT!BY76 -> FinEff | O66: =INPUT!CA76 -> 2.787378641 | P66: =INPUT!CB76 -> ParEff | R66: =INPUT!CD76 -> 12.64062136 | Y66: =INPUT!CK76 -> Ostruzione totale | Z66: =INPUT!CL76 -> 0.12 | AA66: =INPUT!CM76 -> 0.12 | AB66: =INPUT!CN76 -> Y | BB66: 5 | BC66: TRUE | BD66: =IF($D66<>$BJ$49,"",IFERROR(HLOOKUP($F66,TECNOLOGIE!$F$72:$T$94,TECNOLOGIE!$BC$75,FALSE),"")) ->  | BE66: FALSE | BF66: =IF(AND(OR(AND($D66=$BJ$48,$H66<>""),AND($D66=$BJ$49,OR(AND($BD66=$BS$48),AND($BD66=$BS$49,$H66<>$BL$57,$H66<>$BL$58),AND($BD66=$BS$50,$H66=$BL$57))),AND($D66=$BJ$50,$J66<>"",$H66<>""),AND($D66=$BJ$51,$H66<>"")),$H66<>"",$L66>0,OR(AND($M66<>"",NOT(ISERROR(HLOOKUP($M66,TECNOLOGIE!$F$48:$T$48,1,FALSE))),$O66>=0),AND($M66="",OR($O66=0,$O66=""))),OR(AND($P66<>"",NOT(ISERROR(HLOOKUP($P66,TECNOLOGIE!$F$20:$T$20,1,FALSE))),$R66>=0),AND($P66="",$R66=0)),$R66>=0),IF($BE66=FALSE,FALSE,TRUE),IF(AND($BC66=FALSE,$BE66=FALSE),FALSE,TRUE)) -> FALSE
C67: 9 | D67: =INPUT!BP77 -> Spazio non clima | F67: =INPUT!BR77 -> Standard | H67: =INPUT!BT77 -> OR-A | J67: =INPUT!BV77 ->  | L67: =INPUT!BX77 -> 91.08 | M67: =INPUT!BY77 ->  | O67: =INPUT!CA77 -> 0 | P67: =INPUT!CB77 -> CopEff | R67: =INPUT!CD77 -> 91.08 | Y67: =INPUT!CK77 ->  | Z67: =INPUT!CL77 ->  | AA67: =INPUT!CM77 ->  | AB67: =INPUT!CN77 -> Copertura | BB67: 9 | BC67: TRUE | BD67: =IF($D67<>$BJ$49,"",IFERROR(HLOOKUP($F67,TECNOLOGIE!$F$72:$T$94,TECNOLOGIE!$BC$75,FALSE),"")) -> No irragg. - Tabelle UNI | BE67: FALSE | BF67: =IF(AND(OR(AND($D67=$BJ$48,$H67<>""),AND($D67=$BJ$49,OR(AND($BD67=$BS$48),AND($BD67=$BS$49,$H67<>$BL$57,$H67<>$BL$58),AND($BD67=$BS$50,$H67=$BL$57))),AND($D67=$BJ$50,$J67<>"",$H67<>""),AND($D67=$BJ$51,$H67<>"")),$H67<>"",$L67>0,OR(AND($M67<>"",NOT(ISERROR(HLOOKUP($M67,TECNOLOGIE!$F$48:$T$48,1,FALSE))),$O67>=0),AND($M67="",OR($O67=0,$O67=""))),OR(AND($P67<>"",NOT(ISERROR(HLOOKUP($P67,TECNOLOGIE!$F$20:$T$20,1,FALSE))),$R67>=0),AND($P67="",$R67=0)),$R67>=0),IF($BE67=FALSE,FALSE,TRUE),IF(AND($BC67=FALSE,$BE67=FALSE),FALSE,TRUE)) -> FALSE | BJ67: TECNOLOGIE INVOLUCRO
C68: 10 | D68: =INPUT!BP78 ->  | F68: =INPUT!BR78 ->  | H68: =INPUT!BT78 -> OR-B | J68: =INPUT!BV78 ->  | L68: =INPUT!BX78 -> 0 | M68: =INPUT!BY78 ->  | O68: =INPUT!CA78 -> 0 | P68: =INPUT!CB78 ->  | R68: =INPUT!CD78 -> 0 | Z68: =INPUT!CL78 ->  | AB68: =INPUT!CN78 -> Pavimento | BB68: 9 | BC68: TRUE | BD68: =IF($D68<>$BJ$49,"",IFERROR(HLOOKUP($F68,TECNOLOGIE!$F$72:$T$94,TECNOLOGIE!$BC$75,FALSE),"")) ->  | BE68: FALSE | BF68: =IF(AND(OR(AND($D68=$BJ$48,$H68<>""),AND($D68=$BJ$49,OR(AND($BD68=$BS$48),AND($BD68=$BS$49,$H68<>$BL$57,$H68<>$BL$58),AND($BD68=$BS$50,$H68=$BL$57))),AND($D68=$BJ$50,$J68<>"",$H68<>""),AND($D68=$BJ$51,$H68<>"")),$H68<>"",$L68>0,OR(AND($M68<>"",NOT(ISERROR(HLOOKUP($M68,TECNOLOGIE!$F$48:$T$48,1,FALSE))),$O68>=0),AND($M68="",OR($O68=0,$O68=""))),OR(AND($P68<>"",NOT(ISERROR(HLOOKUP($P68,TECNOLOGIE!$F$20:$T$20,1,FALSE))),$R68>=0),AND($P68="",$R68=0)),$R68>=0),IF($BE68=FALSE,FALSE,TRUE),IF(AND($BC68=FALSE,$BE68=FALSE),FALSE,TRUE)) -> TRUE | BJ68: =TECNOLOGIE!D17 -> COMPONENTI OPACHI (PARETI, SOLAI, COPERTURE, ECC)
C69: 11 | BB69: 9 | BC69: FALSE | BD69: =IF($D69<>$BJ$49,"",IFERROR(HLOOKUP($F69,TECNOLOGIE!$F$72:$T$94,TECNOLOGIE!$BC$75,FALSE),"")) ->  | BE69: FALSE | BF69: =IF(AND(OR(AND($D69=$BJ$48,$H69<>""),AND($D69=$BJ$49,OR(AND($BD69=$BS$48),AND($BD69=$BS$49,$H69<>$BL$57,$H69<>$BL$58),AND($BD69=$BS$50,$H69=$BL$57))),AND($D69=$BJ$50,$J69<>"",$H69<>""),AND($D69=$BJ$51,$H69<>"")),$H69<>"",$L69>0,OR(AND($M69<>"",NOT(ISERROR(HLOOKUP($M69,TECNOLOGIE!$F$48:$T$48,1,FALSE))),$O69>=0),AND($M69="",OR($O69=0,$O69=""))),OR(AND($P69<>"",NOT(ISERROR(HLOOKUP($P69,TECNOLOGIE!$F$20:$T$20,1,FALSE))),$R69>=0),AND($P69="",$R69=0)),$R69>=0),IF($BE69=FALSE,FALSE,TRUE),IF(AND($BC69=FALSE,$BE69=FALSE),FALSE,TRUE)) -> FALSE | BK69: =IF(TECNOLOGIE!F20<>0,TECNOLOGIE!F20,"") -> ParBase | BL69: =IF(TECNOLOGIE!G20<>0,TECNOLOGIE!G20,"") -> ParEff | BM69: =IF(TECNOLOGIE!H20<>0,TECNOLOGIE!H20,"") ->  | BN69: =IF(TECNOLOGIE!I20<>0,TECNOLOGIE!I20,"") ->  | BO69: =IF(TECNOLOGIE!J20<>0,TECNOLOGIE!J20,"") ->  | BP69: =IF(TECNOLOGIE!K20<>0,TECNOLOGIE!K20,"") -> CopBase | BQ69: =IF(TECNOLOGIE!L20<>0,TECNOLOGIE!L20,"") -> CopEff | BR69: =IF(TECNOLOGIE!M20<>0,TECNOLOGIE!M20,"") ->  | BS69: =IF(TECNOLOGIE!N20<>0,TECNOLOGIE!N20,"") ->  | BT69: =IF(TECNOLOGIE!O20<>0,TECNOLOGIE!O20,"") ->  | BU69: =IF(TECNOLOGIE!P20<>0,TECNOLOGIE!P20,"") -> PavBase | BV69: =IF(TECNOLOGIE!Q20<>0,TECNOLOGIE!Q20,"") -> PavEff | BW69: =IF(TECNOLOGIE!R20<>0,TECNOLOGIE!R20,"") ->  | BX69: =IF(TECNOLOGIE!S20<>0,TECNOLOGIE!S20,"") ->  | BY69: =IF(TECNOLOGIE!T20<>0,TECNOLOGIE!T20,"") -> 
C70: 12 | BB70: 9 | BC70: FALSE | BD70: =IF($D70<>$BJ$49,"",IFERROR(HLOOKUP($F70,TECNOLOGIE!$F$72:$T$94,TECNOLOGIE!$BC$75,FALSE),"")) ->  | BE70: FALSE | BF70: =IF(AND(OR(AND($D70=$BJ$48,$H70<>""),AND($D70=$BJ$49,OR(AND($BD70=$BS$48),AND($BD70=$BS$49,$H70<>$BL$57,$H70<>$BL$58),AND($BD70=$BS$50,$H70=$BL$57))),AND($D70=$BJ$50,$J70<>"",$H70<>""),AND($D70=$BJ$51,$H70<>"")),$H70<>"",$L70>0,OR(AND($M70<>"",NOT(ISERROR(HLOOKUP($M70,TECNOLOGIE!$F$48:$T$48,1,FALSE))),$O70>=0),AND($M70="",OR($O70=0,$O70=""))),OR(AND($P70<>"",NOT(ISERROR(HLOOKUP($P70,TECNOLOGIE!$F$20:$T$20,1,FALSE))),$R70>=0),AND($P70="",$R70=0)),$R70>=0),IF($BE70=FALSE,FALSE,TRUE),IF(AND($BC70=FALSE,$BE70=FALSE),FALSE,TRUE)) -> FALSE | BJ70: =TECNOLOGIE!D45 -> COMPONENTI VETRATI (FINESTRE, VETRATE, ECC)
C71: 13 | BB71: 9 | BC71: FALSE | BD71: =IF($D71<>$BJ$49,"",IFERROR(HLOOKUP($F71,TECNOLOGIE!$F$72:$T$94,TECNOLOGIE!$BC$75,FALSE),"")) ->  | BE71: FALSE | BF71: =IF(AND(OR(AND($D71=$BJ$48,$H71<>""),AND($D71=$BJ$49,OR(AND($BD71=$BS$48),AND($BD71=$BS$49,$H71<>$BL$57,$H71<>$BL$58),AND($BD71=$BS$50,$H71=$BL$57))),AND($D71=$BJ$50,$J71<>"",$H71<>""),AND($D71=$BJ$51,$H71<>"")),$H71<>"",$L71>0,OR(AND($M71<>"",NOT(ISERROR(HLOOKUP($M71,TECNOLOGIE!$F$48:$T$48,1,FALSE))),$O71>=0),AND($M71="",OR($O71=0,$O71=""))),OR(AND($P71<>"",NOT(ISERROR(HLOOKUP($P71,TECNOLOGIE!$F$20:$T$20,1,FALSE))),$R71>=0),AND($P71="",$R71=0)),$R71>=0),IF($BE71=FALSE,FALSE,TRUE),IF(AND($BC71=FALSE,$BE71=FALSE),FALSE,TRUE)) -> FALSE | BK71: =IF(TECNOLOGIE!F48<>0,TECNOLOGIE!F48,"") -> FinBase | BL71: =IF(TECNOLOGIE!G48<>0,TECNOLOGIE!G48,"") -> FinEff | BM71: =IF(TECNOLOGIE!H48<>0,TECNOLOGIE!H48,"") ->  | BN71: =IF(TECNOLOGIE!I48<>0,TECNOLOGIE!I48,"") ->  | BO71: =IF(TECNOLOGIE!J48<>0,TECNOLOGIE!J48,"") ->  | BP71: =IF(TECNOLOGIE!K48<>0,TECNOLOGIE!K48,"") ->  | BQ71: =IF(TECNOLOGIE!L48<>0,TECNOLOGIE!L48,"") ->  | BR71: =IF(TECNOLOGIE!M48<>0,TECNOLOGIE!M48,"") ->  | BS71: =IF(TECNOLOGIE!N48<>0,TECNOLOGIE!N48,"") ->  | BT71: =IF(TECNOLOGIE!O48<>0,TECNOLOGIE!O48,"") ->  | BU71: =IF(TECNOLOGIE!P48<>0,TECNOLOGIE!P48,"") ->  | BV71: =IF(TECNOLOGIE!Q48<>0,TECNOLOGIE!Q48,"") ->  | BW71: =IF(TECNOLOGIE!R48<>0,TECNOLOGIE!R48,"") ->  | BX71: =IF(TECNOLOGIE!S48<>0,TECNOLOGIE!S48,"") ->  | BY71: =IF(TECNOLOGIE!T48<>0,TECNOLOGIE!T48,"") -> 
C72: 14 | BB72: 9 | BC72: FALSE | BD72: =IF($D72<>$BJ$49,"",IFERROR(HLOOKUP($F72,TECNOLOGIE!$F$72:$T$94,TECNOLOGIE!$BC$75,FALSE),"")) ->  | BE72: FALSE | BF72: =IF(AND(OR(AND($D72=$BJ$48,$H72<>""),AND($D72=$BJ$49,OR(AND($BD72=$BS$48),AND($BD72=$BS$49,$H72<>$BL$57,$H72<>$BL$58),AND($BD72=$BS$50,$H72=$BL$57))),AND($D72=$BJ$50,$J72<>"",$H72<>""),AND($D72=$BJ$51,$H72<>"")),$H72<>"",$L72>0,OR(AND($M72<>"",NOT(ISERROR(HLOOKUP($M72,TECNOLOGIE!$F$48:$T$48,1,FALSE))),$O72>=0),AND($M72="",OR($O72=0,$O72=""))),OR(AND($P72<>"",NOT(ISERROR(HLOOKUP($P72,TECNOLOGIE!$F$20:$T$20,1,FALSE))),$R72>=0),AND($P72="",$R72=0)),$R72>=0),IF($BE72=FALSE,FALSE,TRUE),IF(AND($BC72=FALSE,$BE72=FALSE),FALSE,TRUE)) -> FALSE | BJ72: =TECNOLOGIE!D69 -> SPAZI NON CLIMATIZZATI (SERRE, SOTTETTI, GARAGE, ADIACENZE, ECC)
C73: 15 | BB73: 9 | BC73: FALSE | BD73: =IF($D73<>$BJ$49,"",IFERROR(HLOOKUP($F73,TECNOLOGIE!$F$72:$T$94,TECNOLOGIE!$BC$75,FALSE),"")) ->  | BE73: FALSE | BF73: =IF(AND(OR(AND($D73=$BJ$48,$H73<>""),AND($D73=$BJ$49,OR(AND($BD73=$BS$48),AND($BD73=$BS$49,$H73<>$BL$57,$H73<>$BL$58),AND($BD73=$BS$50,$H73=$BL$57))),AND($D73=$BJ$50,$J73<>"",$H73<>""),AND($D73=$BJ$51,$H73<>"")),$H73<>"",$L73>0,OR(AND($M73<>"",NOT(ISERROR(HLOOKUP($M73,TECNOLOGIE!$F$48:$T$48,1,FALSE))),$O73>=0),AND($M73="",OR($O73=0,$O73=""))),OR(AND($P73<>"",NOT(ISERROR(HLOOKUP($P73,TECNOLOGIE!$F$20:$T$20,1,FALSE))),$R73>=0),AND($P73="",$R73=0)),$R73>=0),IF($BE73=FALSE,FALSE,TRUE),IF(AND($BC73=FALSE,$BE73=FALSE),FALSE,TRUE)) -> FALSE | BK73: =IF(TECNOLOGIE!F72<>0,TECNOLOGIE!F72,"") -> Standard | BL73: =IF(TECNOLOGIE!G72<>0,TECNOLOGIE!G72,"") -> Garage | BM73: =IF(TECNOLOGIE!H72<>0,TECNOLOGIE!H72,"") -> Sottot. Sempl | BN73: =IF(TECNOLOGIE!I72<>0,TECNOLOGIE!I72,"") ->  | BO73: =IF(TECNOLOGIE!J72<>0,TECNOLOGIE!J72,"") ->  | BP73: =IF(TECNOLOGIE!K72<>0,TECNOLOGIE!K72,"") ->  | BQ73: =IF(TECNOLOGIE!L72<>0,TECNOLOGIE!L72,"") ->  | BR73: =IF(TECNOLOGIE!M72<>0,TECNOLOGIE!M72,"") ->  | BS73: =IF(TECNOLOGIE!N72<>0,TECNOLOGIE!N72,"") ->  | BT73: =IF(TECNOLOGIE!O72<>0,TECNOLOGIE!O72,"") ->  | BU73: =IF(TECNOLOGIE!P72<>0,TECNOLOGIE!P72,"") ->  | BV73: =IF(TECNOLOGIE!Q72<>0,TECNOLOGIE!Q72,"") ->  | BW73: =IF(TECNOLOGIE!R72<>0,TECNOLOGIE!R72,"") ->  | BX73: =IF(TECNOLOGIE!S72<>0,TECNOLOGIE!S72,"") ->  | BY73: =IF(TECNOLOGIE!T72<>0,TECNOLOGIE!T72,"") -> 
C74: 16 | BB74: 9 | BC74: FALSE | BD74: =IF($D74<>$BJ$49,"",IFERROR(HLOOKUP($F74,TECNOLOGIE!$F$72:$T$94,TECNOLOGIE!$BC$75,FALSE),"")) ->  | BE74: FALSE | BF74: =IF(AND(OR(AND($D74=$BJ$48,$H74<>""),AND($D74=$BJ$49,OR(AND($BD74=$BS$48),AND($BD74=$BS$49,$H74<>$BL$57,$H74<>$BL$58),AND($BD74=$BS$50,$H74=$BL$57))),AND($D74=$BJ$50,$J74<>"",$H74<>""),AND($D74=$BJ$51,$H74<>"")),$H74<>"",$L74>0,OR(AND($M74<>"",NOT(ISERROR(HLOOKUP($M74,TECNOLOGIE!$F$48:$T$48,1,FALSE))),$O74>=0),AND($M74="",OR($O74=0,$O74=""))),OR(AND($P74<>"",NOT(ISERROR(HLOOKUP($P74,TECNOLOGIE!$F$20:$T$20,1,FALSE))),$R74>=0),AND($P74="",$R74=0)),$R74>=0),IF($BE74=FALSE,FALSE,TRUE),IF(AND($BC74=FALSE,$BE74=FALSE),FALSE,TRUE)) -> FALSE | BK74: =IF(TECNOLOGIE!F75<>0,TECNOLOGIE!F75,"") -> No irragg. - Tabelle UNI | BL74: =IF(TECNOLOGIE!G75<>0,TECNOLOGIE!G75,"") -> No irragg. - Tabelle UNI | BM74: =IF(TECNOLOGIE!H75<>0,TECNOLOGIE!H75,"") -> No irragg. - Tabelle UNI | BN74: =IF(TECNOLOGIE!I75<>0,TECNOLOGIE!I75,"") ->  | BO74: =IF(TECNOLOGIE!J75<>0,TECNOLOGIE!J75,"") ->  | BP74: =IF(TECNOLOGIE!K75<>0,TECNOLOGIE!K75,"") ->  | BQ74: =IF(TECNOLOGIE!L75<>0,TECNOLOGIE!L75,"") ->  | BR74: =IF(TECNOLOGIE!M75<>0,TECNOLOGIE!M75,"") ->  | BS74: =IF(TECNOLOGIE!N75<>0,TECNOLOGIE!N75,"") ->  | BT74: =IF(TECNOLOGIE!O75<>0,TECNOLOGIE!O75,"") ->  | BU74: =IF(TECNOLOGIE!P75<>0,TECNOLOGIE!P75,"") ->  | BV74: =IF(TECNOLOGIE!Q75<>0,TECNOLOGIE!Q75,"") ->  | BW74: =IF(TECNOLOGIE!R75<>0,TECNOLOGIE!R75,"") ->  | BX74: =IF(TECNOLOGIE!S75<>0,TECNOLOGIE!S75,"") ->  | BY74: =IF(TECNOLOGIE!T75<>0,TECNOLOGIE!T75,"") -> 
C75: 17 | BB75: 9 | BC75: FALSE | BD75: =IF($D75<>$BJ$49,"",IFERROR(HLOOKUP($F75,TECNOLOGIE!$F$72:$T$94,TECNOLOGIE!$BC$75,FALSE),"")) ->  | BE75: FALSE | BF75: =IF(AND(OR(AND($D75=$BJ$48,$H75<>""),AND($D75=$BJ$49,OR(AND($BD75=$BS$48),AND($BD75=$BS$49,$H75<>$BL$57,$H75<>$BL$58),AND($BD75=$BS$50,$H75=$BL$57))),AND($D75=$BJ$50,$J75<>"",$H75<>""),AND($D75=$BJ$51,$H75<>"")),$H75<>"",$L75>0,OR(AND($M75<>"",NOT(ISERROR(HLOOKUP($M75,TECNOLOGIE!$F$48:$T$48,1,FALSE))),$O75>=0),AND($M75="",OR($O75=0,$O75=""))),OR(AND($P75<>"",NOT(ISERROR(HLOOKUP($P75,TECNOLOGIE!$F$20:$T$20,1,FALSE))),$R75>=0),AND($P75="",$R75=0)),$R75>=0),IF($BE75=FALSE,FALSE,TRUE),IF(AND($BC75=FALSE,$BE75=FALSE),FALSE,TRUE)) -> FALSE | BJ75: =TECNOLOGIE!D109 -> OSTRUZIONI ORIZZONTALI (PALAZZI ANTISTANTI, VEGETAZIONE, MONTAGNE, ECC)
C76: 18 | BB76: 9 | BC76: FALSE | BD76: =IF($D76<>$BJ$49,"",IFERROR(HLOOKUP($F76,TECNOLOGIE!$F$72:$T$94,TECNOLOGIE!$BC$75,FALSE),"")) ->  | BE76: FALSE | BF76: =IF(AND(OR(AND($D76=$BJ$48,$H76<>""),AND($D76=$BJ$49,OR(AND($BD76=$BS$48),AND($BD76=$BS$49,$H76<>$BL$57,$H76<>$BL$58),AND($BD76=$BS$50,$H76=$BL$57))),AND($D76=$BJ$50,$J76<>"",$H76<>""),AND($D76=$BJ$51,$H76<>"")),$H76<>"",$L76>0,OR(AND($M76<>"",NOT(ISERROR(HLOOKUP($M76,TECNOLOGIE!$F$48:$T$48,1,FALSE))),$O76>=0),AND($M76="",OR($O76=0,$O76=""))),OR(AND($P76<>"",NOT(ISERROR(HLOOKUP($P76,TECNOLOGIE!$F$20:$T$20,1,FALSE))),$R76>=0),AND($P76="",$R76=0)),$R76>=0),IF($BE76=FALSE,FALSE,TRUE),IF(AND($BC76=FALSE,$BE76=FALSE),FALSE,TRUE)) -> FALSE | BK76: =IF(TECNOLOGIE!F112<>0,TECNOLOGIE!F112,"") -> Edificio | BL76: =IF(TECNOLOGIE!G112<>0,TECNOLOGIE!G112,"") -> Montagna | BM76: =IF(TECNOLOGIE!H112<>0,TECNOLOGIE!H112,"") -> Alberi | BN76: =IF(TECNOLOGIE!I112<>0,TECNOLOGIE!I112,"") ->  | BO76: =IF(TECNOLOGIE!J112<>0,TECNOLOGIE!J112,"") ->  | BP76: =IF(TECNOLOGIE!K112<>0,TECNOLOGIE!K112,"") ->  | BQ76: =IF(TECNOLOGIE!L112<>0,TECNOLOGIE!L112,"") ->  | BR76: =IF(TECNOLOGIE!M112<>0,TECNOLOGIE!M112,"") ->  | BS76: =IF(TECNOLOGIE!N112<>0,TECNOLOGIE!N112,"") ->  | BT76: =IF(TECNOLOGIE!O112<>0,TECNOLOGIE!O112,"") ->  | BU76: =IF(TECNOLOGIE!P112<>0,TECNOLOGIE!P112,"") ->  | BV76: =IF(TECNOLOGIE!Q112<>0,TECNOLOGIE!Q112,"") ->  | BW76: =IF(TECNOLOGIE!R112<>0,TECNOLOGIE!R112,"") ->  | BX76: =IF(TECNOLOGIE!S112<>0,TECNOLOGIE!S112,"") ->  | BY76: =IF(TECNOLOGIE!T112<>0,TECNOLOGIE!T112,"") -> 
C77: 19 | BB77: 9 | BC77: FALSE | BD77: =IF($D77<>$BJ$49,"",IFERROR(HLOOKUP($F77,TECNOLOGIE!$F$72:$T$94,TECNOLOGIE!$BC$75,FALSE),"")) ->  | BE77: FALSE | BF77: =IF(AND(OR(AND($D77=$BJ$48,$H77<>""),AND($D77=$BJ$49,OR(AND($BD77=$BS$48),AND($BD77=$BS$49,$H77<>$BL$57,$H77<>$BL$58),AND($BD77=$BS$50,$H77=$BL$57))),AND($D77=$BJ$50,$J77<>"",$H77<>""),AND($D77=$BJ$51,$H77<>"")),$H77<>"",$L77>0,OR(AND($M77<>"",NOT(ISERROR(HLOOKUP($M77,TECNOLOGIE!$F$48:$T$48,1,FALSE))),$O77>=0),AND($M77="",OR($O77=0,$O77=""))),OR(AND($P77<>"",NOT(ISERROR(HLOOKUP($P77,TECNOLOGIE!$F$20:$T$20,1,FALSE))),$R77>=0),AND($P77="",$R77=0)),$R77>=0),IF($BE77=FALSE,FALSE,TRUE),IF(AND($BC77=FALSE,$BE77=FALSE),FALSE,TRUE)) -> FALSE | BJ77: =TECNOLOGIE!D131 -> AGGETTI ORIZZONTALI (BALCONI, BRISE-SOLEIL ORIZZONTALI, ECC)
C78: 20 | BB78: 9 | BC78: FALSE | BD78: =IF($D78<>$BJ$49,"",IFERROR(HLOOKUP($F78,TECNOLOGIE!$F$72:$T$94,TECNOLOGIE!$BC$75,FALSE),"")) ->  | BE78: FALSE | BF78: =IF(AND(OR(AND($D78=$BJ$48,$H78<>""),AND($D78=$BJ$49,OR(AND($BD78=$BS$48),AND($BD78=$BS$49,$H78<>$BL$57,$H78<>$BL$58),AND($BD78=$BS$50,$H78=$BL$57))),AND($D78=$BJ$50,$J78<>"",$H78<>""),AND($D78=$BJ$51,$H78<>"")),$H78<>"",$L78>0,OR(AND($M78<>"",NOT(ISERROR(HLOOKUP($M78,TECNOLOGIE!$F$48:$T$48,1,FALSE))),$O78>=0),AND($M78="",OR($O78=0,$O78=""))),OR(AND($P78<>"",NOT(ISERROR(HLOOKUP($P78,TECNOLOGIE!$F$20:$T$20,1,FALSE))),$R78>=0),AND($P78="",$R78=0)),$R78>=0),IF($BE78=FALSE,FALSE,TRUE),IF(AND($BC78=FALSE,$BE78=FALSE),FALSE,TRUE)) -> FALSE | BK78: =IF(TECNOLOGIE!F134<>0,TECNOLOGIE!F134,"") -> Balconata | BL78: =IF(TECNOLOGIE!G134<>0,TECNOLOGIE!G134,"") -> Brise Soleil | BM78: =IF(TECNOLOGIE!H134<>0,TECNOLOGIE!H134,"") ->  | BN78: =IF(TECNOLOGIE!I134<>0,TECNOLOGIE!I134,"") ->  | BO78: =IF(TECNOLOGIE!J134<>0,TECNOLOGIE!J134,"") ->  | BP78: =IF(TECNOLOGIE!K134<>0,TECNOLOGIE!K134,"") ->  | BQ78: =IF(TECNOLOGIE!L134<>0,TECNOLOGIE!L134,"") ->  | BR78: =IF(TECNOLOGIE!M134<>0,TECNOLOGIE!M134,"") ->  | BS78: =IF(TECNOLOGIE!N134<>0,TECNOLOGIE!N134,"") ->  | BT78: =IF(TECNOLOGIE!O134<>0,TECNOLOGIE!O134,"") ->  | BU78: =IF(TECNOLOGIE!P134<>0,TECNOLOGIE!P134,"") ->  | BV78: =IF(TECNOLOGIE!Q134<>0,TECNOLOGIE!Q134,"") ->  | BW78: =IF(TECNOLOGIE!R134<>0,TECNOLOGIE!R134,"") ->  | BX78: =IF(TECNOLOGIE!S134<>0,TECNOLOGIE!S134,"") ->  | BY78: =IF(TECNOLOGIE!T134<>0,TECNOLOGIE!T134,"") -> 
C79: 21 | BB79: 9 | BC79: FALSE | BD79: =IF($D79<>$BJ$49,"",IFERROR(HLOOKUP($F79,TECNOLOGIE!$F$72:$T$94,TECNOLOGIE!$BC$75,FALSE),"")) ->  | BE79: FALSE | BF79: =IF(AND(OR(AND($D79=$BJ$48,$H79<>""),AND($D79=$BJ$49,OR(AND($BD79=$BS$48),AND($BD79=$BS$49,$H79<>$BL$57,$H79<>$BL$58),AND($BD79=$BS$50,$H79=$BL$57))),AND($D79=$BJ$50,$J79<>"",$H79<>""),AND($D79=$BJ$51,$H79<>"")),$H79<>"",$L79>0,OR(AND($M79<>"",NOT(ISERROR(HLOOKUP($M79,TECNOLOGIE!$F$48:$T$48,1,FALSE))),$O79>=0),AND($M79="",OR($O79=0,$O79=""))),OR(AND($P79<>"",NOT(ISERROR(HLOOKUP($P79,TECNOLOGIE!$F$20:$T$20,1,FALSE))),$R79>=0),AND($P79="",$R79=0)),$R79>=0),IF($BE79=FALSE,FALSE,TRUE),IF(AND($BC79=FALSE,$BE79=FALSE),FALSE,TRUE)) -> FALSE | BJ79: =TECNOLOGIE!D154 -> AGGETTI VERTICALI (SPORGENZE VERTICALI, BRISE-SOLEIL VERTICALI, ECC)
C80: 22 | BB80: 9 | BC80: FALSE | BD80: =IF($D80<>$BJ$49,"",IFERROR(HLOOKUP($F80,TECNOLOGIE!$F$72:$T$94,TECNOLOGIE!$BC$75,FALSE),"")) ->  | BE80: FALSE | BF80: =IF(AND(OR(AND($D80=$BJ$48,$H80<>""),AND($D80=$BJ$49,OR(AND($BD80=$BS$48),AND($BD80=$BS$49,$H80<>$BL$57,$H80<>$BL$58),AND($BD80=$BS$50,$H80=$BL$57))),AND($D80=$BJ$50,$J80<>"",$H80<>""),AND($D80=$BJ$51,$H80<>"")),$H80<>"",$L80>0,OR(AND($M80<>"",NOT(ISERROR(HLOOKUP($M80,TECNOLOGIE!$F$48:$T$48,1,FALSE))),$O80>=0),AND($M80="",OR($O80=0,$O80=""))),OR(AND($P80<>"",NOT(ISERROR(HLOOKUP($P80,TECNOLOGIE!$F$20:$T$20,1,FALSE))),$R80>=0),AND($P80="",$R80=0)),$R80>=0),IF($BE80=FALSE,FALSE,TRUE),IF(AND($BC80=FALSE,$BE80=FALSE),FALSE,TRUE)) -> FALSE | BK80: =IF(TECNOLOGIE!F157<>0,TECNOLOGIE!F157,"") -> Brise Soleil | BL80: =IF(TECNOLOGIE!G157<>0,TECNOLOGIE!G157,"") ->  | BM80: =IF(TECNOLOGIE!H157<>0,TECNOLOGIE!H157,"") ->  | BN80: =IF(TECNOLOGIE!I157<>0,TECNOLOGIE!I157,"") ->  | BO80: =IF(TECNOLOGIE!J157<>0,TECNOLOGIE!J157,"") ->  | BP80: =IF(TECNOLOGIE!K157<>0,TECNOLOGIE!K157,"") ->  | BQ80: =IF(TECNOLOGIE!L157<>0,TECNOLOGIE!L157,"") ->  | BR80: =IF(TECNOLOGIE!M157<>0,TECNOLOGIE!M157,"") ->  | BS80: =IF(TECNOLOGIE!N157<>0,TECNOLOGIE!N157,"") ->  | BT80: =IF(TECNOLOGIE!O157<>0,TECNOLOGIE!O157,"") ->  | BU80: =IF(TECNOLOGIE!P157<>0,TECNOLOGIE!P157,"") ->  | BV80: =IF(TECNOLOGIE!Q157<>0,TECNOLOGIE!Q157,"") ->  | BW80: =IF(TECNOLOGIE!R157<>0,TECNOLOGIE!R157,"") ->  | BX80: =IF(TECNOLOGIE!S157<>0,TECNOLOGIE!S157,"") ->  | BY80: =IF(TECNOLOGIE!T157<>0,TECNOLOGIE!T157,"") -> 
C81: 23 | BB81: 9 | BC81: FALSE | BD81: =IF($D81<>$BJ$49,"",IFERROR(HLOOKUP($F81,TECNOLOGIE!$F$72:$T$94,TECNOLOGIE!$BC$75,FALSE),"")) ->  | BE81: FALSE | BF81: =IF(AND(OR(AND($D81=$BJ$48,$H81<>""),AND($D81=$BJ$49,OR(AND($BD81=$BS$48),AND($BD81=$BS$49,$H81<>$BL$57,$H81<>$BL$58),AND($BD81=$BS$50,$H81=$BL$57))),AND($D81=$BJ$50,$J81<>"",$H81<>""),AND($D81=$BJ$51,$H81<>"")),$H81<>"",$L81>0,OR(AND($M81<>"",NOT(ISERROR(HLOOKUP($M81,TECNOLOGIE!$F$48:$T$48,1,FALSE))),$O81>=0),AND($M81="",OR($O81=0,$O81=""))),OR(AND($P81<>"",NOT(ISERROR(HLOOKUP($P81,TECNOLOGIE!$F$20:$T$20,1,FALSE))),$R81>=0),AND($P81="",$R81=0)),$R81>=0),IF($BE81=FALSE,FALSE,TRUE),IF(AND($BC81=FALSE,$BE81=FALSE),FALSE,TRUE)) -> FALSE | BJ81: =TECNOLOGIE!D177 -> ALTRI SCHERMI (OMBRE SUL PIANO ORIZZONTALE, SCHERMI, TENDE, ALTRO, ECC)
C82: 24 | BB82: 9 | BC82: FALSE | BD82: =IF($D82<>$BJ$49,"",IFERROR(HLOOKUP($F82,TECNOLOGIE!$F$72:$T$94,TECNOLOGIE!$BC$75,FALSE),"")) ->  | BE82: FALSE | BF82: =IF(AND(OR(AND($D82=$BJ$48,$H82<>""),AND($D82=$BJ$49,OR(AND($BD82=$BS$48),AND($BD82=$BS$49,$H82<>$BL$57,$H82<>$BL$58),AND($BD82=$BS$50,$H82=$BL$57))),AND($D82=$BJ$50,$J82<>"",$H82<>""),AND($D82=$BJ$51,$H82<>"")),$H82<>"",$L82>0,OR(AND($M82<>"",NOT(ISERROR(HLOOKUP($M82,TECNOLOGIE!$F$48:$T$48,1,FALSE))),$O82>=0),AND($M82="",OR($O82=0,$O82=""))),OR(AND($P82<>"",NOT(ISERROR(HLOOKUP($P82,TECNOLOGIE!$F$20:$T$20,1,FALSE))),$R82>=0),AND($P82="",$R82=0)),$R82>=0),IF($BE82=FALSE,FALSE,TRUE),IF(AND($BC82=FALSE,$BE82=FALSE),FALSE,TRUE)) -> FALSE | BK82: =IF(TECNOLOGIE!F180<>0,TECNOLOGIE!F180,"") -> Ostruzione totale | BL82: =IF(TECNOLOGIE!G180<>0,TECNOLOGIE!G180,"") -> Veneziana interna | BM82: =IF(TECNOLOGIE!H180<>0,TECNOLOGIE!H180,"") -> Veneziana esterna | BN82: =IF(TECNOLOGIE!I180<>0,TECNOLOGIE!I180,"") ->  | BO82: =IF(TECNOLOGIE!J180<>0,TECNOLOGIE!J180,"") ->  | BP82: =IF(TECNOLOGIE!K180<>0,TECNOLOGIE!K180,"") ->  | BQ82: =IF(TECNOLOGIE!L180<>0,TECNOLOGIE!L180,"") ->  | BR82: =IF(TECNOLOGIE!M180<>0,TECNOLOGIE!M180,"") ->  | BS82: =IF(TECNOLOGIE!N180<>0,TECNOLOGIE!N180,"") ->  | BT82: =IF(TECNOLOGIE!O180<>0,TECNOLOGIE!O180,"") ->  | BU82: =IF(TECNOLOGIE!P180<>0,TECNOLOGIE!P180,"") ->  | BV82: =IF(TECNOLOGIE!Q180<>0,TECNOLOGIE!Q180,"") ->  | BW82: =IF(TECNOLOGIE!R180<>0,TECNOLOGIE!R180,"") ->  | BX82: =IF(TECNOLOGIE!S180<>0,TECNOLOGIE!S180,"") ->  | BY82: =IF(TECNOLOGIE!T180<>0,TECNOLOGIE!T180,"") -> 
C83: 25 | BB83: 9 | BC83: FALSE | BD83: =IF($D83<>$BJ$49,"",IFERROR(HLOOKUP($F83,TECNOLOGIE!$F$72:$T$94,TECNOLOGIE!$BC$75,FALSE),"")) ->  | BE83: FALSE | BF83: =IF(AND(OR(AND($D83=$BJ$48,$H83<>""),AND($D83=$BJ$49,OR(AND($BD83=$BS$48),AND($BD83=$BS$49,$H83<>$BL$57,$H83<>$BL$58),AND($BD83=$BS$50,$H83=$BL$57))),AND($D83=$BJ$50,$J83<>"",$H83<>""),AND($D83=$BJ$51,$H83<>"")),$H83<>"",$L83>0,OR(AND($M83<>"",NOT(ISERROR(HLOOKUP($M83,TECNOLOGIE!$F$48:$T$48,1,FALSE))),$O83>=0),AND($M83="",OR($O83=0,$O83=""))),OR(AND($P83<>"",NOT(ISERROR(HLOOKUP($P83,TECNOLOGIE!$F$20:$T$20,1,FALSE))),$R83>=0),AND($P83="",$R83=0)),$R83>=0),IF($BE83=FALSE,FALSE,TRUE),IF(AND($BC83=FALSE,$BE83=FALSE),FALSE,TRUE)) -> FALSE
D84: Ti servono più righe? Per ottenere una versione ampliata di ArchiEnergy contattaci su info@ingenergia.it | BC84: TOT | BE84: ELIMINATO IL CALCOLO ERRORI
A86: ↓ | B86: =ROW($A86) -> 86 | C86: =$C$131 -> 131 | D86: =HYPERLINK('VBA1'!$H$7&"'"&$BI$6&"'!"&"$B$"&B86,"Allarga/Restringi") -> Allarga/Restringi | F86: Tabelle di calcolo
A87: ¦
A88: ¦ | C88: Riga di riferimento, non eliminare! | G88: =COLUMN(G88)-COLUMN($B88) -> 5 | H88: =COLUMN(H88)-COLUMN($B88) -> 6 | I88: =COLUMN(I88)-COLUMN($B88) -> 7 | J88: =COLUMN(J88)-COLUMN($B88) -> 8 | K88: =COLUMN(K88)-COLUMN($B88) -> 9 | L88: =COLUMN(L88)-COLUMN($B88) -> 10 | M88: 11 | N88: 12 | O88: 13 | P88: 14 | Q88: 15 | R88: 16 | S88: 17 | T88: 18 | U88: 19 | V88: 20 | W88: 21 | X88: 22 | Y88: =COLUMN(Y88)-COLUMN($B88) -> 23 | Z88: 24 | AA88: 25 | AB88: 26 | AC88: 27 | AD88: 28 | AE88: 29 | AF88: 30 | AG88: 31 | AH88: 32 | AI88: 33 | AJ88: 34 | AK88: 35 | AL88: 36 | AM88: 37 | AN88: 38 | AO88: 39 | AP88: 40 | AQ88: 41 | AR88: 42 | AS88: 43 | AT88: 44 | AU88: 45 | AV88: 46 | AW88: 47 | AX88: 48 | AY88: 49 | AZ88: 50 | BA88: 51 | BB88: 52 | BC88: 53 | BD88: 54 | BE88: 55 | BF88: 56 | BG88: 57 | BH88: 58 | BI88: 59 | BJ88: 60 | BK88: 61 | BL88: 62 | BM88: 63 | BN88: 64 | BO88: 65 | BP88: 66 | BQ88: =COLUMN(BQ88)-COLUMN($B88) -> 67 | BR88: 68 | BS88: =COLUMN(BS88)-COLUMN($B88) -> 69 | BT88: =COLUMN(BT88)-COLUMN($B88) -> 70 | BU88: 71 | BV88: 72 | BW88: 73 | BX88: 74 | BY88: 75 | BZ88: 76 | CA88: 77 | CB88: 78 | CC88: 79 | CD88: 80 | CE88: 81 | CF88: 82 | CG88: 83 | CH88: 84 | CI88: 85 | CJ88: 86 | CK88: 87 | CL88: 88 | CM88: 89 | CN88: 90 | CO88: 91 | CP88: 92 | CQ88: 93 | CR88: 94 | CS88: 95 | CT88: 96 | CU88: 97 | CV88: 98 | CW88: 99 | CX88: 100 | CY88: 101 | CZ88: 102 | DA88: 103 | DB88: 104 | DC88: 105 | DD88: 106 | DE88: 107 | DF88: 108 | DG88: 109 | DH88: 110 | DI88: 111 | DJ88: 112 | DK88: 113 | DL88: 114 | DM88: 115 | DN88: 116 | DO88: 117 | DP88: 118 | DQ88: 119 | DR88: 120 | DS88: 121 | DT88: 122 | DU88: 123 | DV88: 124 | DW88: 125 | DX88: 126 | DY88: 127 | DZ88: 128 | EA88: 129 | EB88: 130 | EC88: 131 | ED88: 132 | EE88: 133 | EF88: 134 | EG88: 135 | EH88: =COLUMN(EH88)-COLUMN($B88) -> 136 | EI88: 137 | EJ88: 138 | EK88: 139 | EL88: 140 | EM88: 141 | EN88: 142 | EO88: 143 | EP88: 144 | EQ88: 145 | ER88: 146 | ES88: 147 | ET88: 148 | EU88: 149 | EV88: 150 | EW88: 151 | EX88: 152 | EY88: 153 | EZ88: 154 | FA88: 155 | FB88: 156 | FC88: 157 | FD88: 158 | FE88: 159 | FF88: =COLUMN(FF88)-COLUMN($B88) -> 160 | FG88: 161 | FH88: 162 | FI88: 163 | FJ88: 164 | FK88: 165 | FL88: 166 | FM88: 167 | FN88: 168 | FO88: 169 | FP88: 170 | FQ88: 171 | FR88: 172 | FS88: 173 | FT88: 174 | FU88: 175 | FV88: 176 | FW88: 177 | FX88: 178 | FY88: 179 | FZ88: 180 | GA88: 181 | GB88: 182 | GC88: 183 | GD88: 184 | GE88: 185 | GF88: 186 | GG88: 187 | GH88: 188 | GI88: 189 | GJ88: 190 | GK88: 191 | GL88: 192 | GM88: 193 | GN88: 194 | GO88: 195 | GP88: 196 | GQ88: 197 | GR88: 198 | GS88: 199 | GT88: 200 | GU88: 201 | GV88: 202 | GW88: 203 | GX88: 204 | GY88: 205 | GZ88: 206 | HA88: 207 | HB88: 208 | HC88: 209 | HD88: 210 | HE88: 211 | HF88: 212 | HG88: 213 | HH88: 214 | HI88: 215 | HJ88: 216 | HK88: 217 | HL88: 218 | HM88: 219 | HN88: 220 | HO88: 221 | HP88: 222 | HQ88: 223 | HR88: 224 | HS88: 225 | HT88: 226 | HU88: 227 | HV88: 228 | HW88: 229 | HX88: 230 | HY88: 231 | HZ88: 232 | IA88: 233 | IB88: 234 | IC88: 235 | ID88: 236 | IE88: 237 | IF88: 238 | IG88: 239 | IH88: 240 | II88: 241 | IJ88: =COLUMN(IJ88)-COLUMN($B88) -> 242 | IK88: 243 | IL88: 244 | IM88: 245 | IN88: 246 | IO88: 247 | IP88: 248 | IQ88: 249 | IR88: 250 | IS88: 251 | IT88: 252 | IU88: 253 | IV88: 254 | IW88: 255 | IX88: 256 | IY88: 257 | IZ88: 258 | JA88: 259 | JB88: 260 | JC88: 261 | JD88: 262 | JE88: 263 | JF88: 264 | JG88: 265 | JH88: 266 | JI88: 267 | JJ88: 268 | JK88: 269 | JL88: 270 | JM88: 271 | JN88: 272 | JO88: 273 | JP88: 274 | JQ88: 275 | JR88: 276 | JS88: 277 | JT88: 278 | JU88: 279 | JV88: 280 | JW88: 281 | JX88: 282 | JY88: 283 | JZ88: 284 | KA88: 285 | KB88: 286 | KC88: 287 | KD88: 288 | KE88: 289 | KF88: 290 | KG88: 291 | KH88: 292 | KI88: 293 | KJ88: 294 | KK88: 295 | KL88: 296 | KM88: 297 | KN88: 298 | KO88: 299 | KP88: 300 | KQ88: =COLUMN(KQ88)-COLUMN($B88) -> 301 | KR88: 302 | KS88: 303 | KT88: 304 | KU88: 305 | KV88: 306 | KW88: 307 | KX88: 308 | KY88: 309 | KZ88: 310 | LA88: 311 | LB88: 312 | LC88: 313 | LD88: =COLUMN(LD88)-COLUMN($B88) -> 314 | LE88: =COLUMN(LE88)-COLUMN($B88) -> 315 | LF88: 316 | LG88: 317 | LH88: =COLUMN(LH88)-COLUMN($B88) -> 318 | LI88: =COLUMN(LI88)-COLUMN($B88) -> 319 | LJ88: 320 | LK88: =COLUMN(LK88)-COLUMN($B88) -> 321 | LL88: 322 | LM88: =COLUMN(LM88)-COLUMN($B88) -> 323 | LN88: 324 | LO88: 325 | LP88: 326 | LQ88: 327 | LR88: 328 | LS88: 329 | LT88: 330 | LU88: 331 | LV88: 332 | LW88: 333 | LX88: 334 | LY88: 335 | LZ88: 336 | MA88: 337 | MB88: 338 | MC88: 339 | MD88: 340 | ME88: =COLUMN(ME88)-COLUMN($B88) -> 341 | MF88: 342 | MG88: 343 | MH88: 344 | MI88: 345 | MJ88: 346 | MK88: 347 | ML88: 348 | MM88: 349 | MN88: 350 | MO88: 351 | MP88: 352 | MQ88: 353 | MR88: 354 | MS88: 355 | MT88: 356 | MU88: 357 | MV88: 358 | MW88: 359 | MX88: 360 | MY88: 361 | MZ88: 362 | NA88: 363 | NB88: 364 | NC88: =COLUMN(NC88)-COLUMN($B88) -> 365 | ND88: 366 | NE88: 367 | NF88: 368 | NG88: 369 | NH88: 370 | NI88: 371 | NJ88: 372 | NK88: 373 | NL88: 374 | NM88: 375 | NN88: 376 | NO88: 377 | NP88: =COLUMN(NP88)-COLUMN($B88) -> 378 | NQ88: 379 | NR88: 380 | NS88: 381 | NT88: 382 | NU88: 383 | NV88: 384 | NW88: 385 | NX88: 386 | NY88: 387 | NZ88: =COLUMN(NZ88)-COLUMN($B88) -> 388 | OA88: 389 | OB88: 390 | OC88: =COLUMN(OC88)-COLUMN($B88) -> 391 | OD88: 392 | OE88: 393 | OF88: 394 | OG88: 395 | OH88: 396 | OI88: 397 | OJ88: 398 | OK88: 399 | OL88: 400 | OM88: 401 | ON88: 402 | OO88: 403 | OP88: =COLUMN(OP88)-COLUMN($B88) -> 404 | OQ88: 405 | OR88: 406 | OS88: 407 | OT88: 408 | OU88: 409 | OV88: 410 | OW88: 411 | OX88: 412 | OY88: 413 | OZ88: 414 | PA88: 415 | PB88: 416 | PC88: =COLUMN(PC88)-COLUMN($B88) -> 417 | PD88: 418 | PE88: 419 | PF88: 420 | PG88: 421 | PH88: 422 | PI88: 423 | PJ88: 424 | PK88: 425 | PL88: 426 | PM88: 427 | PN88: 428 | PO88: 429 | PP88: =COLUMN(PP88)-COLUMN($B88) -> 430 | PQ88: 431 | PR88: 432 | PS88: 433 | PT88: 434 | PU88: 435 | PV88: 436 | PW88: 437 | PX88: 438 | PY88: 439 | PZ88: 440 | QA88: 441 | QB88: 442 | QC88: =COLUMN(QC88)-COLUMN($B88) -> 443 | QD88: 444 | QE88: 445 | QF88: 446 | QG88: 447 | QH88: 448 | QI88: 449 | QJ88: 450 | QK88: 451 | QL88: 452 | QM88: 453 | QN88: 454 | QO88: 455 | QP88: =COLUMN(QP88)-COLUMN($B88) -> 456 | QQ88: 457 | QR88: 458 | QS88: 459 | QT88: 460 | QU88: 461 | QV88: 462 | QW88: 463 | QX88: 464 | QY88: 465 | QZ88: 466 | RA88: 467 | RB88: 468 | RC88: 469 | RD88: 470 | RE88: 471 | RF88: 472 | RG88: 473 | RH88: 474 | RI88: 475 | RJ88: 476 | RK88: 477 | RL88: 478 | RM88: 479 | RN88: 480 | RO88: 481 | RP88: 482 | RQ88: 483 | RR88: 484 | RS88: 485 | RT88: 486 | RU88: 487 | RV88: 488 | RW88: 489 | RX88: 490 | RY88: 491 | RZ88: 492 | SA88: 493 | SB88: 494 | SC88: 495 | SD88: 496 | SE88: 497 | SF88: 498 | SG88: 499 | SH88: 500 | SI88: 501 | SJ88: 502 | SK88: 503 | SL88: 504 | SM88: 505 | SN88: 506 | SO88: 507 | SP88: =COLUMN(SP88)-COLUMN($B88) -> 508 | SQ88: =COLUMN(SQ88)-COLUMN($B88) -> 509 | SR88: 510 | SS88: 511 | ST88: 512 | SU88: 513 | SV88: 514 | SW88: 515 | SX88: 516 | SY88: 517 | SZ88: 518 | TA88: 519 | TB88: 520 | TC88: =COLUMN(TC88)-COLUMN($B88) -> 521 | TD88: 522 | TE88: 523 | TF88: 524 | TG88: 525 | TH88: 526 | TI88: 527 | TJ88: 528 | TK88: 529 | TL88: 530 | TM88: 531 | TN88: 532 | TO88: 533 | TP88: =COLUMN(TP88)-COLUMN($B88) -> 534 | TQ88: =COLUMN(TQ88)-COLUMN($B88) -> 535 | TR88: 536 | TS88: 537 | TT88: 538 | TU88: 539 | TV88: 540 | TW88: 541 | TX88: 542 | TY88: 543 | TZ88: 544 | UA88: 545 | UB88: 546 | UC88: =COLUMN(UC88)-COLUMN($B88) -> 547 | UD88: 548 | UE88: 549 | UF88: 550 | UG88: 551 | UH88: 552 | UI88: 553 | UJ88: 554 | UK88: 555 | UL88: 556 | UM88: 557 | UN88: 558 | UO88: 559 | UP88: =COLUMN(UP88)-COLUMN($B88) -> 560 | UQ88: 561 | UR88: 562 | US88: 563 | UT88: 564 | UU88: 565 | UV88: 566 | UW88: 567 | UX88: 568 | UY88: 569 | UZ88: 570 | VA88: 571 | VB88: 572 | VC88: =COLUMN(VC88)-COLUMN($B88) -> 573 | VD88: 574 | VE88: 575 | VF88: 576 | VG88: 577 | VH88: 578 | VI88: 579 | VJ88: 580 | VK88: 581 | VL88: 582 | VM88: 583 | VN88: 584 | VO88: 585 | VP88: =COLUMN(VP88)-COLUMN($B88) -> 586 | VQ88: 587 | VR88: 588 | VS88: 589 | VT88: 590 | VU88: 591 | VV88: 592 | VW88: 593 | VX88: 594 | VY88: 595 | VZ88: 596 | WA88: 597 | WB88: 598 | WC88: =COLUMN(WC88)-COLUMN($B88) -> 599 | WD88: 600 | WE88: 601 | WF88: 602 | WG88: 603 | WH88: 604 | WI88: 605 | WJ88: 606 | WK88: 607 | WL88: 608 | WM88: 609 | WN88: 610 | WO88: 611 | WP88: =COLUMN(WP88)-COLUMN($B88) -> 612 | WQ88: 613 | WR88: 614 | WS88: 615 | WT88: 616 | WU88: 617 | WV88: 618 | WW88: 619 | WX88: 620 | WY88: 621 | WZ88: 622 | XA88: 623 | XB88: 624 | XC88: =COLUMN(XC88)-COLUMN($B88) -> 625 | XD88: 626 | XE88: =COLUMN(XE88)-COLUMN($B88) -> 627 | XF88: 628 | XG88: 629 | XH88: 630 | XI88: 631 | XJ88: 632 | XK88: 633 | XL88: 634 | XM88: 635 | XN88: 636 | XO88: 637 | XP88: =COLUMN(XP88)-COLUMN($B88) -> 638 | XQ88: =COLUMN(XQ88)-COLUMN($B88) -> 639 | XR88: 640 | XS88: 641 | XT88: 642 | XU88: 643 | XV88: 644 | XW88: 645 | XX88: 646 | XY88: 647 | XZ88: 648 | YA88: 649 | YB88: 650 | YC88: =COLUMN(YC88)-COLUMN($B88) -> 651 | YD88: =COLUMN(YD88)-COLUMN($B88) -> 652 | YE88: 653 | YF88: 654 | YG88: 655 | YH88: 656 | YI88: 657 | YJ88: 658 | YK88: 659 | YL88: 660 | YM88: 661 | YN88: 662 | YO88: 663 | YP88: 664 | YQ88: 665 | YR88: 666 | YS88: 667 | YT88: 668 | YU88: 669 | YV88: 670 | YW88: 671 | YX88: 672 | YY88: 673 | YZ88: 674 | ZA88: 675 | ZB88: 676 | ZC88: 677 | ZD88: 678 | ZE88: 679 | ZF88: 680 | ZG88: 681 | ZH88: 682 | ZI88: 683 | ZJ88: 684 | ZK88: 685 | ZL88: 686 | ZM88: 687 | ZN88: =COLUMN(ZN88)-COLUMN($B88) -> 688 | ZO88: 689 | ZP88: 690 | ZQ88: 691 | ZR88: 692 | ZS88: 693 | ZT88: 694 | ZU88: 695 | ZV88: 696 | ZW88: 697 | ZX88: 698 | ZY88: 699 | ZZ88: 700 | AAA88: 701 | AAB88: 702 | AAC88: 703 | AAD88: 704 | AAE88: 705 | AAF88: 706 | AAG88: 707 | AAH88: 708 | AAI88: 709 | AAJ88: 710 | AAK88: 711 | AAL88: =COLUMN(AAL88)-COLUMN($B88) -> 712 | AAM88: 713 | AAN88: 714 | AAO88: 715 | AAP88: 716 | AAQ88: 717 | AAR88: 718 | AAS88: 719 | AAT88: 720 | AAU88: 721 | AAV88: 722 | AAW88: 723 | AAX88: 724 | AAY88: 725 | AAZ88: 726 | ABA88: 727 | ABB88: 728 | ABC88: 729 | ABD88: 730 | ABE88: 731 | ABF88: 732 | ABG88: 733 | ABH88: 734 | ABI88: 735 | ABJ88: 736 | ABK88: 737 | ABL88: 738 | ABM88: 739 | ABN88: 740 | ABO88: 741 | ABP88: 742 | ABQ88: 743 | ABR88: 744 | ABS88: 745 | ABT88: 746 | ABU88: 747 | ABV88: 748 | ABW88: 749 | ABX88: 750 | ABY88: 751 | ABZ88: 752 | ACA88: 753 | ACB88: 754 | ACC88: 755
A89: ¦ | ABC89: IMPORTI POTENZIALMENTE INCENTIVABILI CON CONTO TERMICO | ABQ89: SUPERFICI INCENTIVABILI CON CONTO TERMICO
A90: ¦ | D90: ESPOSIZIONE E CONFINI | G90: COMPONENTI DELL'INVOLUCRO | EH90: SPAZI NON CLIMATIZZATI | HE90: OMBREGGIAMENTI | MQ90: IRRAGGIAMENTO SOLARE | NQ90: IRRAGGIAMENTO SPECIFICO DEGLI SPAZI NON CLIMATIZZATI | QD90: FLUSSI DI CALORE DOVUTI AL SOLE E EXTRA-FLUSSI INFRAROSSI | TQ90: FLUSSI DI CALORE DOVUTI AL SOLE, SPECIFICI DEGLI SPAZI NON CLIMATIZZATI | ZP90: IMPORTI POTENZIALMENTE INCENTIVABILI IN DETRAZIONE FISCALE | AAD90: IMPORTI POTENZIALMENTE INCENTIVABILI IN CONTO CAPITALE | AAR90: DATI DELLE SUPERFICI POTENZIALMENTE INCENTIVABILI COI TEE STANDARDIZZATI | ABC90: =INCENTIVI!$F$78 -> Isolamento coperture | ABF90: =INCENTIVI!$H$78 -> Isolamento pavimenti | ABH90: =+INCENTIVI!$J$78 -> Isolam. pareti perim. | ABK90: =+INCENTIVI!$L$78 -> Sost. infissi e termoreg. | ABL90: =+INCENTIVI!$N$78 -> Schermi solari | ABM90: =+INCENTIVI!$P$78 -> 0 | ABQ90: =INCENTIVI!$F$78 -> Isolamento coperture | ABT90: =INCENTIVI!$H$78 -> Isolamento pavimenti | ABV90: =+INCENTIVI!$J$78 -> Isolam. pareti perim. | ABY90: =+INCENTIVI!$L$78 -> Sost. infissi e termoreg. | ABZ90: =+INCENTIVI!$N$78 -> Schermi solari | ACA90: =+INCENTIVI!$P$78 -> 0
A91: ¦ | D91: Confine | E91: Esposizione | G91: Area tot. | H91: Parametri termici comuni | K91: Parametri comuni dei componenti opachi (escluso ground) | Y91: Compon. opachi verso l'esterno | AN91: Compon. vetrati verso l'esterno | BQ91: Compon. opachi verso il terreno | CP91: Compon. opachi verso spazi climatizzati | DB91: Compon. opachi verso spazi non climatizzati | DS91: Compon. vetrati verso spazi non climatizzati | EG91: Hd | EH91: Spazi non climatizzati - Dati di origine | GC91: Spazi non climatizzati - Coefficienti di scambio termico utili per i calcoli | GR91: Spazi non climatizzati - Parametri di scambio termico calcolati | HE91: Ostruzioni orizzontali | IE91: Aggetti orizzontali | JQ91: Aggetti verticali | LC91: Altro | LS91: TOTALE OMBREGGIAMENTI | MQ91: IRRAGGIAM. solare INCIDENTE su superficie ESTERNA OPACA al netto delle ombre | ND91: IRRAGGIAM. solare INCIDENTE su superficie ESTERNA TRASPARENTE al netto delle ombre | NQ91: IRRAGGIAM. solare VIRTUALE INCIDENTE sulla PARETE DI SEPARAZ. OPACA al netto delle ombre | OD91: IRRAGGIAM. solare VIRTUALE INCIDENTE sulla PARETE DI SEPARAZ. TRASPAR. al netto delle ombre | OQ91: IRRAGGIAM. solare INCIDENTE su sup. ESTERNA TRASPARENTE sul PIANO della PAR. INT. al netto delle ombre | PD91: IRRAGGIAM. solare mensile ASSORBITO sulle PARETI INTERNE dello SPAZIO NON CLIMA | PQ91: IRRAGGIAM. solare mensile ASSORBITO sulle PARETI ESTERNE dello SPAZIO NON CLIMA | QD91: FLUSSO solare TRASMESSO DALLE PARETI OPACHE (CALCOLO APE) | QQ91: FLUSSO solare TRASMESSO DALLE PARETI OPACHE - EDIFICIO DI RIFERIMENTO APE | RD91: FLUSSO solare TRASMESSO DAL LATO ESTERNO (EW) DELLE PARETI OPACHE (CALCOLO AUDIT) | RQ91: EXTRA-FLUSSO TRASMESSO DAL LATO ESTERNO DELLE PARETI OPACHE (sempre <0) | SD91: FLUSSO solare TRASMESSO DALLE PARETI VETRATE | SQ91: FLUSSO solare TRASMESSO DALLE PARETI VETRATE - EDIFICIO DI RIFERIMENTO APE | TD91: EXTRA-FLUSSO ENTRANTE DALLE PARETI VETRATE (sempre <0) | TQ91: FLUSSO solare VIRTUALE trasmesso dalle PARETI OPACHE in assenza dello spazio non climatizzato | UD91: FLUSSO solare VIRTUALE trasmesso dalle PARETI TRASPARENTI in assenza dello spazio non climatizzato | UQ91: FLUSSO solare TRAMESSO DIRETTAMENTE agli AMBIENTI INTERNI | VD91: FLUSSO solare TRASMESSO dalle pareti OPACHE ESTERNE dello spazio non climat. agli AMBIENTI INTERNI | VQ91: FLUSSO solare IRRAGGIATO sulla PARETE OPACA DI SEPARAZ. (dalle vetrate) e TRASMESSO agli AMBIENTI | WD91: FLUSSO solare IRRAGGIATO sulle PARETI OPACHE ESTERNE (dalle vetrate) e TRASMESSO agli AMBIENTI | WQ91: FLUSSO solare TOTALE ENTRANTE DA SPAZI NON CLIMATIZZATI attraverso PARETI OPACHE e VENTILAZ. | XD91: FLUSSO solare TOTALE ENTRANTE DA SPAZI NON CLIMATIZZATI attraverso le PARETI OPACHE per TRASMISS | XQ91: FLUSSO solare TOTALE ENTRANTE DA SPAZI NON CLIMATIZZATI attraverso per VENTILAZ. | YD91: FATTORE DI CORREZIONE del FLUSSO SOLARE per TRASMISS. OPACA dovuto allo spazio non climatizzato | YP91: FATTORE DI CORREZIONE del FLUSSO SOLARE per TRASMISS. TRASP. dovuto allo spazio non climatizzato | ZB91: FATTORE DI CORREZIONE GENERALE del FLUSSO SOLARE per la presenza dello spazio non climatizz. | ZP91: =INCENTIVI!$F$14 -> 36%Ristrutturazione | ZQ91: =INCENTIVI!$H$14 -> 50%Ristrutturazione | ZR91: =+INCENTIVI!$J$14 -> 0 | ZS91: =+INCENTIVI!$L$14 -> 0 | ZT91: =+INCENTIVI!$N$14 -> 65%Riqualificazione | ZU91: =+INCENTIVI!$P$14 -> 65%Involucro | ZV91: =+INCENTIVI!$R$14 -> 65%SolareTermico | ZW91: =+INCENTIVI!$T$14 -> 65%CaldaieCond. | ZX91: =+INCENTIVI!$V$14 -> 65%PompeCalore | ZY91: =+INCENTIVI!$X$14 -> 0 | ZZ91: =+INCENTIVI!$X$14 -> 0 | AAA91: =+INCENTIVI!$Z$14 -> 0 | AAB91: =+INCENTIVI!$AB$14 -> 0 | AAD91: =INCENTIVI!$F$26 -> Esempio Finanz.50% in 10 anni | AAE91: =INCENTIVI!$H$26 -> 0 | AAF91: =+INCENTIVI!$J$26 -> 0 | AAG91: =+INCENTIVI!$L$26 -> 0 | AAH91: =+INCENTIVI!$N$26 -> 0 | AAI91: =+INCENTIVI!$P$26 -> 0 | AAJ91: =+INCENTIVI!$R$26 -> 0 | AAK91: =+INCENTIVI!$T$26 -> 0 | AAL91: =+INCENTIVI!$V$26 -> 0 | AAM91: =+INCENTIVI!$X$26 -> 0 | AAN91: =+INCENTIVI!$X$26 -> 0 | AAO91: =+INCENTIVI!$Z$26 -> 0 | AAP91: =+INCENTIVI!$AB$26 -> 0 | AAR91: =INCENTIVI!$N$40 -> Isolamento par. e copert. | AAT91: =+INCENTIVI!X40 -> Isolam. per raffrescam. | AAV91: =+INCENTIVI!L40 -> Vetri doppi | ABC91: =+TECNOLOGIE!$BK$20 -> Esterno | ABD91: =+TECNOLOGIE!$BK$21 -> Interno | ABE91: =+TECNOLOGIE!$BK$22 -> Ventilato | ABF91: =+TECNOLOGIE!$BK$20 -> Esterno | ABG91: =+TECNOLOGIE!$BK$21 -> Interno | ABH91: =+TECNOLOGIE!$BK$20 -> Esterno | ABI91: =+TECNOLOGIE!$BK$21 -> Interno | ABJ91: =+TECNOLOGIE!$BK$22 -> Ventilato | ABQ91: =+TECNOLOGIE!$BK$20 -> Esterno | ABR91: =+TECNOLOGIE!$BK$21 -> Interno | ABS91: =+TECNOLOGIE!$BK$22 -> Ventilato | ABT91: =+TECNOLOGIE!$BK$20 -> Esterno | ABU91: =+TECNOLOGIE!$BK$21 -> Interno | ABV91: =+TECNOLOGIE!$BK$20 -> Esterno | ABW91: =+TECNOLOGIE!$BK$21 -> Interno | ABX91: =+TECNOLOGIE!$BK$22 -> Ventilato
A92: ¦ | E92: Esposiz. | F92: Codice | G92: Area | H92: hi,inv | I92: hi,est | J92: he | K92: Tipo | L92: Area | M92: Isolamento | N92: R ins tot | O92: R iso | P92: % R we | Q92: % R wi | R92: Massa sup. | S92: Massa tot | T92: Ct spec | U92: Ct tot | V92: Ct s | W92: Ct netta | X92: C.assorb. | Y92: Tipo | Z92: U inserita | AA92: U inv | AB92: U est | AC92: U rif | AD92: Area | AE92: Costo | AF92: C.+IVA | AG92: Detr. Fisc. | AH92: Inc. C. Cap. | AI92: TEE 1 | AJ92: TEE 2 | AK92: U pre-int | AL92: Conto T. | AM92: Tipo isol. | AN92: Tipo | AO92: U inserita | AP92: U inv | AQ92: U est | AR92: U rif | AS92: Area | AT92: Tipo di | AU92: Trasm. sol. | AV92: Trasmittanza solare totale mensile per ciascuna inclinazione gtot | BI92: Trasm. sol. | BJ92: F.telaio | BK92: Costo | BL92: C.+IVA | BM92: Detr. Fisc. | BN92: Inc. C. Cap. | BO92: TEE | BP92: Conto T. | BQ92: Tipo | BR92: Esposiz. | BS92: Isolamento | BT92: Area | BU92: U inserita | BV92: U effettiva | BW92: U rif | BX92: R iso | BY92: % R we | BZ92: % R wi | CA92: Massa sup. | CB92: Massa tot | CC92: Ct spec | CD92: Ct tot | CE92: Ct s | CF92: Ct netta | CG92: Fatt.correz. | CH92: Costo | CI92: C.+IVA | CJ92: Detr. Fisc. | CK92: Inc. C. Cap. | CL92: TEE 1 | CM92: TEE 2 | CN92: Conto T. | CO92: Tipo isol. | CP92: Tipo | CQ92: U inserita | CR92: U effettiva | CS92: Area | CT92: Costo | CU92: C.+IVA | CV92: Detr. Fisc. | CW92: Inc. C. Cap. | CX92: TEE 1 | CY92: TEE 2 | CZ92: Conto T. | DA92: Tipo isol. | DB92: Tipo | DC92: U,iu inserita | DD92: U,iu effett. | DE92: U,iu rif | DF92: Area | DG92: Massa | DH92: Isolamento | DI92: C.assorb. | DJ92: Costo | DK92: C.+IVA | DL92: Detr. Fisc. | DM92: Inc. C. Cap. | DN92: TEE 1 | DO92: TEE 2 | DP92: U pre-int | DQ92: Conto T. | DR92: Tipo isol. | DS92: Tipo | DT92: Uiu inserita | DU92: Uiu effett. | DV92: U rif | DW92: Area | DX92: Tipo di | DY92: Trasm. sol. | DZ92: F.telaio | EA92: Costo | EB92: C.+IVA | EC92: Detr. Fisc. | ED92: Inc. C. Cap. | EE92: TEE | EF92: Conto T. | EG92: origin. | EH92: Tipo spazio | EI92: Categoria | EJ92: Dim. 'h' | EK92: Dim. 'l' | EL92: Uue,inv ins. | EM92: Uue,est ins. | EN92: Uue,inv eff. | EO92: Uue,est eff. | EP92: Aiu,TOT | EQ92: Aiu,op. | ER92: Aiu,vetr. | ES92: Aue,A | ET92: Aue,B | EU92: Aue,C | EV92: Aue,D | EW92: Aue,E | EX92: Aue,F | EY92: Aue,TOT | EZ92: Volume | FA92: Fattore di trasparenza invernale delle superfici esterne | FG92: Fattore di trasparenza estiva delle superfici esterne | FM92: Trasm. sol. | FN92: C.assorb. | FO92: Esposizione delle facce dello spazio non climatizzato | FT92: Qe,inv | FU92: Qe,est | FV92: Qi,inv | FW92: Qi,est | FX92: Fatt. | FY92: Costo | FZ92: C.+IVA | GA92: Detr. Fisc. | GB92: Inc. C. Cap. | GC92: R_tr-o,I | GD92: R_tr-t,I | GE92: R_P,tr,I | GF92: R_ve,I,inv | GG92: R_ve,I,est | GH92: R_P,tr-ve,I,inv | GI92: R_P,tr-ve,I,est | GJ92: R_tr,E,inv | GK92: R_tr,E,est | GL92: R_ve,E,inv | GM92: R_ve,E,est | GN92: R_P,tr-ve,E,inv | GO92: R_P,tr-ve,E,est | GP92: R_PPP,inv | GQ92: R_PPP,est | GR92: Htr,ei | GS92: Htr,ui,inv | GT92: Htr,ui,est | GU92: btr,ui,inv | GV92: btr,ui,est | GW92: Hve,ei,inv | GX92: Hve,ei,est | GY92: Hve,ui,inv | GZ92: Hve,ui,est | HA92: bve,ui,inv | HB92: bve,ui,est | HC92: Htot,ui,inv | HD92: Htot,ui,est | HE92: Tipo | HF92: Presenza | HG92: Area eff. | HH92: Altezza | HI92: Distanza | HJ92: Angolo | HK92: α approx + esposiz. | HL92: Traspar. | HM92: Traspar. | HN92: Fattori di ombreggiamento Fsh | HZ92: Costo | IA92: C.+IVA | IB92: Detr. Fisc. | IC92: Inc. C. Cap. | ID92: Conto T. | IE92: Tipo | IF92: Presenza | II92: Area eff. | IJ92: Angolo | IK92: α approx + esposiz. | IL92: Traspar. | IM92: Traspar. | IN92: Fattori di ombreggiamento parte oapca Fsh_op | IZ92: Fattori di ombreggiamento parte vetrata Fsh_ve | JL92: Costo | JM92: C.+IVA | JN92: Detr. Fisc. | JO92: Inc. C. Cap. | JP92: Conto T. | JQ92: Tipo | JR92: Presenza | JU92: Area eff. | JV92: Angolo β | JW92: b approx | JX92: Traspar. | JY92: Traspar. | JZ92: Fattori di ombreggiamento opaco Fsh_op | KL92: Fattori di ombreggiamento vetrato Fsh_ve | KX92: Costo | KY92: C.+IVA | KZ92: Detr. Fisc. | LA92: Inc. C. Cap. | LB92: Conto T. | LC92: Tipo | LD92: Presenza | LG92: Area eff. | LH92: Fsh,inv | LI92: Fsh,est | LJ92: Fsh,inv,op | LK92: Fsh,inv,ve | LL92: Fsh,est,op | LM92: Fsh,est,ve | LN92: Costo | LO92: C.+IVA | LP92: Detr. Fisc. | LQ92: Inc. C. Cap. | LR92: Conto T. | LS92: Fattori di ombreggiamento effettivo opaco Fsh_op | ME92: Fattori di ombreggiamento effettivo vetrato Fsh_ve | MQ92: Valori mensili [kWh/giorno] | ND92: Valori mensili [kWh/giorno] | NQ92: Valori mensili [kWh/giorno] | OD92: Valori mensili [kWh/giorno] | OQ92: Valori mensili [kWh/giorno] | PD92: Isol,to_i (TRASPARENTE - OPACO INTERNO) [kWh/giorno] | PQ92: Isol,to_e (TRASPARENTE - OPACO ESTERNO) [kWh/giorno] | QD92: Фsol,o (OPACO) [kWh/giorno] | QQ92: Фsol,o (OPACO) [kWh/giorno] | RD92: Фsol,o (OPACO) [kWh/giorno] | RQ92: Фextra,o (OPACO) [kWh/giorno] | SD92: Фsol,t (TRASPARENTE) [kWh] | SQ92: Фsol,t_rif (TRASPARENTE) [kWh] | TD92: Фextra,t (TRASPARENTE) [kWh/giorno] | TQ92: Фsol,o,virt (VIRTUALE - OPACO) [kWh/giorno] | UD92: Фsol,t,virt (VIRTUALE - TRASPARENTE) [kWh/giorno] | UQ92: Фsol,tt (TRASPARENTE - TRASPARENTE) [kWh/giorno] | VD92: Фsol,o = ko * Isol,o [kWh/giorno] | VQ92: Фsol,to_i = koi * Isol,to_i (TRASPARENTE - OPACO INTERNO) [kWh/giorno] | WD92: Фsol,to_e = koe * Isol,to_e ( TRASPARENTE - OPACO ESTERNO ) [kWh/giorno] | WQ92: Фsol,ov,tot = ( OPACO TOTALE + VENTILAZIONE ) [kWh/giorno] | XD92: Фsol,o,tot = ( OPACO TOTALE per TRASMISSIONE ) [kWh/giorno] | XQ92: Фsol,ve,tot = ( VENTILAZIONE DIRETTA + VENTILAZIONE SOLARE ) [kWh/giorno] | YD92: bi,o = Фsol,o,tot,t / Фsol,o,virt | YP92: bi,t = Фsol,t,tot / Фsol,t,virt | ZB92: bi,tr = Фsol,tr,tot / Фsol,tr,virt | ZP92: [euro] | ZQ92: [euro] | ZR92: [euro] | ZS92: [euro] | ZT92: [euro] | ZU92: [euro] | ZV92: [euro] | ZW92: [euro] | ZX92: [euro] | ZY92: [euro] | ZZ92: [euro] | AAA92: [euro] | AAB92: [euro] | AAD92: [euro] | AAE92: [euro] | AAF92: [euro] | AAG92: [euro] | AAH92: [euro] | AAI92: [euro] | AAJ92: [euro] | AAK92: [euro] | AAL92: [euro] | AAM92: [euro] | AAN92: [euro] | AAO92: [euro] | AAP92: [euro] | AAR92: [m2] | AAS92: RSL medio | AAT92: [m2] | AAU92: RSL medio | AAV92: [m2] | AAW92: [m2] | AAX92: [m2] | AAY92: [m2] | AAZ92: [m2] | ABA92: [m2] | ABC92: [euro] | ABD92: [euro] | ABE92: [euro] | ABF92: [euro] | ABG92: [euro] | ABH92: [euro] | ABI92: [euro] | ABJ92: [euro] | ABK92: [euro] | ABL92: [euro] | ABM92: [euro] | ABN92: [euro] | ABO92: [euro] | ABQ92: [m2] | ABR92: [m2] | ABS92: [m2] | ABT92: [m2] | ABU92: [m2] | ABV92: [m2] | ABW92: [m2] | ABX92: [m2] | ABY92: [m2] | ABZ92: [m2] | ACA92: [m2] | ACB92: [m2] | ACC92: [m2]
A93: ¦ | F93: esposiz. | G93: [m2] | H93: [W/m2K] | I93: [W/m2K] | J93: [W/m2K] | L93: [m2] | N93: [m2K/W] | O93: [m2K/W] | P93: (di R ins) | Q93: (di R ins) | R93: [kg/mq] | S93: [kg] | T93: [J/kgK] | U93: [Wh/K] | V93: [Wh/K] | W93: [Wh/K] | X93: α | Z93: [W/m2K] | AA93: [W/m2K] | AB93: [W/m2K] | AC93: [W/m2K] | AD93: [m2] | AE93: [euro] | AF93: [euro] | AK93: [W/m2K] | AO93: [W/m2K] | AP93: [W/m2K] | AQ93: [W/m2K] | AR93: [W/m2K] | AS93: [m2] | AT93: vetro | AU93: normale gn | AV93: GEN | AW93: FEB | AX93: MAR | AY93: APR | AZ93: MAG | BA93: GIU | BB93: LUG | BC93: AGO | BD93: SET | BE93: OTT | BF93: NOV | BG93: DIC | BH93: MEDIA | BI93: riferim. | BJ93: Ff | BK93: [euro] | BL93: [euro] | BT93: [m2] | BU93: [W/m2K] | BV93: [W/m2K] | BW93: [W/m2K] | BX93: [m2K/W] | BY93: (di R ins) | BZ93: (di R ins) | CA93: [kg/mq] | CB93: [kg] | CC93: [J/kgK] | CD93: [Wh/K] | CE93: [Wh/K] | CF93: [Wh/K] | CG93: btr,g,med | CH93: [euro] | CI93: [euro] | CQ93: [W/m2K] | CR93: [W/m2K] | CS93: [m2] | CT93: [euro] | CU93: [euro] | DC93: [W/m2K] | DD93: [W/m2K] | DE93: [W/m2K] | DF93: [m2] | DI93: α | DJ93: [euro] | DK93: [euro] | DP93: [W/m2K] | DT93: [W/m2K] | DU93: [W/m2K] | DV93: [W/m2K] | DW93: [m2] | DX93: vetro | DY93: normale gn | DZ93: Ff | EA93: [euro] | EB93: [euro] | EG93: [W/K] | EJ93: [m] | EK93: [m] | EL93: [W/m2K] | EM93: [W/m2K] | EN93: [W/m2K] | EO93: [W/m2K] | EP93: [m2] | EQ93: [m2] | ER93: [m2] | ES93: [m2] | ET93: [m2] | EU93: [m2] | EV93: [m2] | EW93: [m2] | EX93: [m2] | EY93: [m2] | EZ93: [m3] | FA93: A | FB93: B | FC93: C | FD93: D | FE93: E | FF93: Media | FG93: A | FH93: B | FI93: C | FJ93: D | FK93: E | FL93: Media | FM93: g | FN93: α | FO93: A | FP93: B | FQ93: C | FR93: D | FS93: E | FT93: [m3/h] | FU93: [m3/h] | FV93: [m3/h] | FW93: [m3/h] | FX93: btr,u,med | FY93: [euro] | FZ93: [euro] | GC93: [K/W] | GD93: [K/W] | GE93: [K/W] | GF93: [K/W] | GG93: [K/W] | GH93: [K/W] | GI93: [K/W] | GJ93: [K/W] | GK93: [K/W] | GL93: [K/W] | GM93: [K/W] | GN93: [K/W] | GO93: [K/W] | GP93: [K/W] | GQ93: [K/W] | GR93: [W/K] | GS93: [W/K] | GT93: [W/K] | GW93: [W/K] | GX93: [W/K] | GY93: [W/K] | GZ93: [W/K] | HC93: [W/K] | HD93: [W/K] | HG93: [m2] | HH93: [m] | HI93: [m] | HJ93: α | HL93: invernale | HM93: estiva | HN93: GEN | HO93: FEB | HP93: MAR | HQ93: APR | HR93: MAG | HS93: GIU | HT93: LUG | HU93: AGO | HV93: SET | HW93: OTT | HX93: NOV | HY93: DIC | HZ93: [euro] | IA93: [euro] | IF93: opaca | IG93: vetrata | IH93: totale | II93: [m2] | IJ93: α | IL93: invernale | IM93: estiva | IN93: GEN | IO93: FEB | IP93: MAR | IQ93: APR | IR93: MAG | IS93: GIU | IT93: LUG | IU93: AGO | IV93: SET | IW93: OTT | IX93: NOV | IY93: DIC | IZ93: GEN | JA93: FEB | JB93: MAR | JC93: APR | JD93: MAG | JE93: GIU | JF93: LUG | JG93: AGO | JH93: SET | JI93: OTT | JJ93: NOV | JK93: DIC | JL93: [euro] | JM93: [euro] | JR93: opaca | JS93: vetrata | JT93: totale | JU93: [m2] | JW93: + esposiz. | JX93: invernale | JY93: estiva | JZ93: GEN | KA93: FEB | KB93: MAR | KC93: APR | KD93: MAG | KE93: GIU | KF93: LUG | KG93: AGO | KH93: SET | KI93: OTT | KJ93: NOV | KK93: DIC | KL93: GEN | KM93: FEB | KN93: MAR | KO93: APR | KP93: MAG | KQ93: GIU | KR93: LUG | KS93: AGO | KT93: SET | KU93: OTT | KV93: NOV | KW93: DIC | KX93: [euro] | KY93: [euro] | LD93: opaca | LE93: vetrata | LF93: totale | LG93: [m2] | LH93: inserito | LI93: inserito | LJ93: effettivo | LK93: effettivo | LL93: effettivo | LM93: effettivo | LN93: [euro] | LO93: [euro] | LS93: GEN | LT93: FEB | LU93: MAR | LV93: APR | LW93: MAG | LX93: GIU | LY93: LUG | LZ93: AGO | MA93: SET | MB93: OTT | MC93: NOV | MD93: DIC | ME93: GEN | MF93: FEB | MG93: MAR | MH93: APR | MI93: MAG | MJ93: GIU | MK93: LUG | ML93: AGO | MM93: SET | MN93: OTT | MO93: NOV | MP93: DIC | MQ93: GEN | MR93: FEB | MS93: MAR | MT93: APR | MU93: MAG | MV93: GIU | MW93: LUG | MX93: AGO | MY93: SET | MZ93: OTT | NA93: NOV | NB93: DIC | NC93: TOTALE | ND93: GEN | NE93: FEB | NF93: MAR | NG93: APR | NH93: MAG | NI93: GIU | NJ93: LUG | NK93: AGO | NL93: SET | NM93: OTT | NN93: NOV | NO93: DIC | NP93: TOTALE | NQ93: GEN | NR93: FEB | NS93: MAR | NT93: APR | NU93: MAG | NV93: GIU | NW93: LUG | NX93: AGO | NY93: SET | NZ93: OTT | OA93: NOV | OB93: DIC | OC93: TOTALE | OD93: GEN | OE93: FEB | OF93: MAR | OG93: APR | OH93: MAG | OI93: GIU | OJ93: LUG | OK93: AGO | OL93: SET | OM93: OTT | ON93: NOV | OO93: DIC | OP93: TOTALE | OQ93: GEN | OR93: FEB | OS93: MAR | OT93: APR | OU93: MAG | OV93: GIU | OW93: LUG | OX93: AGO | OY93: SET | OZ93: OTT | PA93: NOV | PB93: DIC | PC93: TOTALE | PD93: GEN | PE93: FEB | PF93: MAR | PG93: APR | PH93: MAG | PI93: GIU | PJ93: LUG | PK93: AGO | PL93: SET | PM93: OTT | PN93: NOV | PO93: DIC | PP93: TOTALE | PQ93: GEN | PR93: FEB | PS93: MAR | PT93: APR | PU93: MAG | PV93: GIU | PW93: LUG | PX93: AGO | PY93: SET | PZ93: OTT | QA93: NOV | QB93: DIC | QC93: TOTALE | QD93: GEN | QE93: FEB | QF93: MAR | QG93: APR | QH93: MAG | QI93: GIU | QJ93: LUG | QK93: AGO | QL93: SET | QM93: OTT | QN93: NOV | QO93: DIC | QP93: TOTALE | QQ93: GEN | QR93: FEB | QS93: MAR | QT93: APR | QU93: MAG | QV93: GIU | QW93: LUG | QX93: AGO | QY93: SET | QZ93: OTT | RA93: NOV | RB93: DIC | RC93: TOTALE | RD93: GEN | RE93: FEB | RF93: MAR | RG93: APR | RH93: MAG | RI93: GIU | RJ93: LUG | RK93: AGO | RL93: SET | RM93: OTT | RN93: NOV | RO93: DIC | RP93: TOTALE | RQ93: GEN | RR93: FEB | RS93: MAR | RT93: APR | RU93: MAG | RV93: GIU | RW93: LUG | RX93: AGO | RY93: SET | RZ93: OTT | SA93: NOV | SB93: DIC | SC93: TOTALE | SD93: GEN | SE93: FEB | SF93: MAR | SG93: APR | SH93: MAG | SI93: GIU | SJ93: LUG | SK93: AGO | SL93: SET | SM93: OTT | SN93: NOV | SO93: DIC | SP93: TOTALE | SQ93: GEN | SR93: FEB | SS93: MAR | ST93: APR | SU93: MAG | SV93: GIU | SW93: LUG | SX93: AGO | SY93: SET | SZ93: OTT | TA93: NOV | TB93: DIC | TC93: TOTALE | TD93: GEN | TE93: FEB | TF93: MAR | TG93: APR | TH93: MAG | TI93: GIU | TJ93: LUG | TK93: AGO | TL93: SET | TM93: OTT | TN93: NOV | TO93: DIC | TP93: TOTALE | TQ93: GEN | TR93: FEB | TS93: MAR | TT93: APR | TU93: MAG | TV93: GIU | TW93: LUG | TX93: AGO | TY93: SET | TZ93: OTT | UA93: NOV | UB93: DIC | UC93: TOTALE | UD93: GEN | UE93: FEB | UF93: MAR | UG93: APR | UH93: MAG | UI93: GIU | UJ93: LUG | UK93: AGO | UL93: SET | UM93: OTT | UN93: NOV | UO93: DIC | UP93: TOTALE | UQ93: GEN | UR93: FEB | US93: MAR | UT93: APR | UU93: MAG | UV93: GIU | UW93: LUG | UX93: AGO | UY93: SET | UZ93: OTT | VA93: NOV | VB93: DIC | VC93: TOTALE | VD93: GEN | VE93: FEB | VF93: MAR | VG93: APR | VH93: MAG | VI93: GIU | VJ93: LUG | VK93: AGO | VL93: SET | VM93: OTT | VN93: NOV | VO93: DIC | VP93: TOTALE | VQ93: GEN | VR93: FEB | VS93: MAR | VT93: APR | VU93: MAG | VV93: GIU | VW93: LUG | VX93: AGO | VY93: SET | VZ93: OTT | WA93: NOV | WB93: DIC | WC93: TOTALE | WD93: GEN | WE93: FEB | WF93: MAR | WG93: APR | WH93: MAG | WI93: GIU | WJ93: LUG | WK93: AGO | WL93: SET | WM93: OTT | WN93: NOV | WO93: DIC | WP93: TOTALE | WQ93: GEN | WR93: FEB | WS93: MAR | WT93: APR | WU93: MAG | WV93: GIU | WW93: LUG | WX93: AGO | WY93: SET | WZ93: OTT | XA93: NOV | XB93: DIC | XC93: TOTALE | XD93: GEN | XE93: FEB | XF93: MAR | XG93: APR | XH93: MAG | XI93: GIU | XJ93: LUG | XK93: AGO | XL93: SET | XM93: OTT | XN93: NOV | XO93: DIC | XP93: TOTALE | XQ93: GEN | XR93: FEB | XS93: MAR | XT93: APR | XU93: MAG | XV93: GIU | XW93: LUG | XX93: AGO | XY93: SET | XZ93: OTT | YA93: NOV | YB93: DIC | YC93: TOTALE | YD93: GEN | YE93: FEB | YF93: MAR | YG93: APR | YH93: MAG | YI93: GIU | YJ93: LUG | YK93: AGO | YL93: SET | YM93: OTT | YN93: NOV | YO93: DIC | YP93: GEN | YQ93: FEB | YR93: MAR | YS93: APR | YT93: MAG | YU93: GIU | YV93: LUG | YW93: AGO | YX93: SET | YY93: OTT | YZ93: NOV | ZA93: DIC | ZB93: GEN | ZC93: FEB | ZD93: MAR | ZE93: APR | ZF93: MAG | ZG93: GIU | ZH93: LUG | ZI93: AGO | ZJ93: SET | ZK93: OTT | ZL93: NOV | ZM93: DIC
